Workbook

Sheet Facilities Management
A1: Appendix B: Capital Infrastructure Needs - Facilities Management
A2: The values presented reflect identified capital needs and have been rounded to the nearest million for presentation purposes. These capital needs have not received approved budget and will be considered for future business cycles. The majority of the 10-year capital investments are foundational in nature reflecting the essential funding required to sustain current service levels, meet regulatory and safety obligations, and manage core operational risks. All values are presented in 2025 dollars, with estimates prepared as of January 2026. Further refinements and adjustments are expected through the development of the 2027–2030 Budget and the 10-Year Capital Infrastructure Plan.
B3: Legend (% of capital $ per opportunity item) | G3: Critical Assets in Poor / Very Poor Condition
B4: 1% ~ 10% | H4: Severe Consequence of Failure
B5: 11% ~ 25% | H5: High Consequence of Failure
B6: 25% +
A8: Appendix B: Capital Infrastructure Needs | C8: Total
A9: ($millions) | C9: 2027-2035+ | D9: 2027 | E9: 2028 | F9: 2029 | G9: 2030 | H9: 2031 | I9: 2032 | J9: 2033 | K9: 2034 | L9: 2035+
A11: Maintenance - Primary Driver
A13: Athletic Parks Lifecycle and Upgrades | C13: 38283750 | D13: 23.03849545 | E13: 16.27322297 | F13: 3.056126947 | G13: 3.134489176 | H13: 14.70597839 | I13: 5.615959774 | J13: 18.51960688 | K13: 4.545009306 | L13: 11.11111111
A14: Capital Conservation Grant Program | C14: 230000000 | D14: 11.11111111 | E14: 11.11111111 | F14: 11.11111111 | G14: 11.11111111 | H14: 11.11111111 | I14: 11.11111111 | J14: 11.11111111 | K14: 11.11111111 | L14: 11.11111111
A15: Facility Asset Sustainment | C15: 880000000 | D15: 11.11111111 | E15: 11.11111111 | F15: 11.11111111 | G15: 11.11111111 | H15: 11.11111111 | I15: 11.11111111 | J15: 11.11111111 | K15: 11.11111111 | L15: 11.11111111
A16: Facility Asset Sustainment - Demolitions Annual Investment Program | C16: 50000000 | D16: 11.11111111 | E16: 11.11111111 | F16: 11.11111111 | G16: 11.11111111 | H16: 11.11111111 | I16: 11.11111111 | J16: 11.11111111 | K16: 11.11111111 | L16: 11.11111111
A17: Facility Climate Sustainment Annual Investment Program | C17: 20000000 | D17: 11.11111111 | E17: 11.11111111 | F17: 11.11111111 | G17: 11.11111111 | H17: 11.11111111 | I17: 11.11111111 | J17: 11.11111111 | K17: 11.11111111 | L17: 11.11111111
A18: Facility Data and Technology Annual Investment Program | C18: 16000000 | D18: 11.11111111 | E18: 11.11111111 | F18: 11.11111111 | G18: 11.11111111 | H18: 11.11111111 | I18: 11.11111111 | J18: 11.11111111 | K18: 11.11111111 | L18: 11.11111111
A19: Facility Inspections Programs | C19: 30000000 | D19: 10 | E19: 10 | F19: 10 | G19: 10 | H19: 10 | I19: 10 | J19: 10 | K19: 10 | L19: 20
A20: Heritage Asset Sustainment Program | C20: 60000000 | D20: 11.1111 | E20: 11.1111 | F20: 11.1111 | G20: 11.1111 | H20: 11.1111 | I20: 11.1111 | J20: 11.1111 | K20: 11.1111 | L20: 11.1112
A21: Cliff Bungalow School Restoration | C21: 2500000 | D21: 11.11111111 | E21: 11.11111111 | F21: 11.11111111 | G21: 11.11111111 | H21: 11.11111111 | I21: 11.11111111 | J21: 11.11111111 | K21: 11.11111111 | L21: 11.11111111
A22: Colonel Walker House Interior / Exterior Remediation | C22: 5000000 | D22: 11.11111111 | E22: 11.11111111 | F22: 11.11111111 | G22: 11.11111111 | H22: 11.11111111 | I22: 11.11111111 | J22: 11.11111111 | K22: 11.11111111 | L22: 11.11111111
A23: Colonel Walker House Porch Remediation | C23: 1500000 | D23: 11.11111111 | E23: 11.11111111 | F23: 11.11111111 | G23: 11.11111111 | H23: 11.11111111 | I23: 11.11111111 | J23: 11.11111111 | K23: 11.11111111 | L23: 11.11111111
A24: Edworthy House Restoration | C24: 2500000 | D24: 11.11111111 | E24: 11.11111111 | F24: 11.11111111 | G24: 11.11111111 | H24: 11.11111111 | I24: 11.11111111 | J24: 11.11111111 | K24: 11.11111111 | L24: 11.11111111
A25: Emerging Lifecycle / Lifesafety at 32 Heritage Properties | C25: 43000000 | D25: 11.11109302 | E25: 11.11109302 | F25: 11.11109302 | G25: 11.11109302 | H25: 11.11109302 | I25: 11.11109302 | J25: 11.11109302 | K25: 11.11109302 | L25: 11.11125581
A26: Historic Building Condition and Intervention Studies / Conservation Plans | C26: 1500000 | D26: 11.11111111 | E26: 11.11111111 | F26: 11.11111111 | G26: 11.11111111 | H26: 11.11111111 | I26: 11.11111111 | J26: 11.11111111 | K26: 11.11111111 | L26: 11.11111111
A27: Southwest Heritage Restoration | C27: 4000000 | D27: 11.11111111 | E27: 11.11111111 | F27: 11.11111111 | G27: 11.11111111 | H27: 11.11111111 | I27: 11.11111111 | J27: 11.11111111 | K27: 11.11111111 | L27: 11.11111111
A28: Municipal Complex Upgrades | C28: 270500000 | D28: 11.11111111 | E28: 11.11111111 | F28: 11.11111111 | G28: 11.11111111 | H28: 11.11111111 | I28: 11.11111111 | J28: 11.11111111 | K28: 11.11111111 | L28: 11.11111111
A29: Electrial Distribution, Redundancies and Enhancement | C29: 90000000 | D29: 11.11111111 | E29: 11.11111111 | F29: 11.11111111 | G29: 11.11111111 | H29: 11.11111111 | I29: 11.11111111 | J29: 11.11111111 | K29: 11.11111111 | L29: 11.11111111
A30: Electrical Distribution Floors 1-13 and 13th Floor Motor Control Centres Replacement | C30: 9600000 | D30: 11.11111111 | E30: 11.11111111 | F30: 11.11111111 | G30: 11.11111111 | H30: 11.11111111 | I30: 11.11111111 | J30: 11.11111111 | K30: 11.11111111 | L30: 11.11111111
A31: Exterior Plaza Redevelopment and Accessibility Enhancements | C31: 21600000 | D31: 11.11111111 | E31: 11.11111111 | F31: 11.11111111 | G31: 11.11111111 | H31: 11.11111111 | I31: 11.11111111 | J31: 11.11111111 | K31: 11.11111111 | L31: 11.11111111
A32: Fire Supression and Dampers Compliance Upgrades | C32: 14800000 | D32: 11.11111111 | E32: 11.11111111 | F32: 11.11111111 | G32: 11.11111111 | H32: 11.11111111 | I32: 11.11111111 | J32: 11.11111111 | K32: 11.11111111 | L32: 11.11111111
A33: Interior Atrium Redevelopment and Activation | C33: 12500000 | D33: 11.11111111 | E33: 11.11111111 | F33: 11.11111111 | G33: 11.11111111 | H33: 11.11111111 | I33: 11.11111111 | J33: 11.11111111 | K33: 11.11111111 | L33: 11.11111111
A34: Lifecycle Replacement of Curtain Wall and Entrance Doors / Building Envelope | C34: 116000000 | D34: 11.11111111 | E34: 11.11111111 | F34: 11.11111111 | G34: 11.11111111 | H34: 11.11111111 | I34: 11.11111111 | J34: 11.11111111 | K34: 11.11111111 | L34: 11.11111111
A35: Mechanical and Plumbing (Including Storm Drainage) | C35: 6000000 | D35: 11.11111111 | E35: 11.11111111 | F35: 11.11111111 | G35: 11.11111111 | H35: 11.11111111 | I35: 11.11111111 | J35: 11.11111111 | K35: 11.11111111 | L35: 11.11111111
A36: Operations Facilities Portfolio Program | C36: 2482807000 | D36: 7.204748496 | E36: 13.26933588 | F36: 16.57700337 | G36: 8.270880499 | H36: 4.96212553 | I36: 4.041796241 | J36: 5.116185028 | K36: 0.6806811806 | L36: 39.87724378
A37: Additional Snow Storage Yard | C37: 20000000 | D37: 100 | E37: 0 | F37: 0 | G37: 0 | H37: 0 | I37: 0 | J37: 0 | K37: 0 | L37: 0
A38: Bearspaw Operations Workplace Centre Phase 3: Snow and Ice, Salt Storage, Washout | C38: 40000000 | D38: 0 | E38: 0 | F38: 0 | G38: 0 | H38: 0 | I38: 0 | J38: 0 | K38: 0 | L38: 100
A39: Bearspaw Operations Workplace Centre Phase 4: Shared Facilities, Wash Bay, Vehicle Storage and Maintenance | C39: 77500000 | D39: 0 | E39: 0 | F39: 0 | G39: 0 | H39: 0 | I39: 0 | J39: 0 | K39: 0 | L39: 100
A40: Chinook Stables Depot Development | C40: 10000000 | D40: 0 | E40: 0 | F40: 0 | G40: 0 | H40: 20 | I40: 75 | J40: 5 | K40: 0 | L40: 0
A41: Chinook Stables Relocation | C41: 10000000 | D41: 20 | E41: 80 | F41: 0 | G41: 0 | H41: 0 | I41: 0 | J41: 0 | K41: 0 | L41: 0
A42: Confederation Park Mobility Depot Decomissioning | C42: 5000000 | D42: 0 | E42: 20 | F42: 80 | G42: 0 | H42: 0 | I42: 0 | J42: 0 | K42: 0 | L42: 0
A43: Deep South Operations Workplace Centre - Phase 1 Traffic Operations, Servicing and Revolving Fund | C43: 109000000 | D43: 20 | E43: 0 | F43: 75 | G43: 0 | H43: 5 | I43: 0 | J43: 0 | K43: 0 | L43: 0
A44: Deep South Operations Workplace Centre Development - Phase 2 Mobility, Parks, Fleet | C44: 133500000 | D44: 0 | E44: 0 | F44: 0 | G44: 0 | H44: 20 | I44: 0 | J44: 75 | K44: 0 | L44: 5
A45: Deep South Operations Workplace Centres - Phase 3 Transit | C45: 482000000 | D45: 0 | E45: 0 | F45: 0 | G45: 0 | H45: 0 | I45: 0 | J45: 0 | K45: 0 | L45: 100
A46: Downtown Surface Lots Land Acquistion | C46: 1500000 | D46: 20 | E46: 80 | F46: 0 | G46: 0 | H46: 0 | I46: 0 | J46: 0 | K46: 0 | L46: 0
A47: East Calgary Waste Management Site Redevelopment | C47: 66600000 | D47: 7.507507508 | E47: 47.44744745 | F47: 42.04204204 | G47: 3.003003003 | H47: 0 | I47: 0 | J47: 0 | K47: 0 | L47: 0
A48: Facility Management Fleet Electric Vehicle Infrastructure | C48: 12600000 | D48: 11.11111111 | E48: 11.11111111 | F48: 11.11111111 | G48: 11.11111111 | H48: 11.11111111 | I48: 11.11111111 | J48: 11.11111111 | K48: 11.11111111 | L48: 11.11111111
A49: Fleet Centralized Operations Centre Development | C49: 200000000 | D49: 20 | E49: 75 | F49: 5 | G49: 0 | H49: 0 | I49: 0 | J49: 0 | K49: 0 | L49: 0
A50: Greyhound Demolition | C50: 8000000 | D50: 100 | E50: 0 | F50: 0 | G50: 0 | H50: 0 | I50: 0 | J50: 0 | K50: 0 | L50: 0
A51: Haddon Road Depot Redevelopment Phase 1: Site Preparation, Salt and Pickle Storage Building | C51: 24975000 | D51: 8.408408408 | E51: 20.02002002 | F51: 71.57157157 | G51: 0 | H51: 0 | I51: 0 | J51: 0 | K51: 0 | L51: 0
A52: Haddon Road Depot Redevelopment Phase 2: New Vehicle Bays, Wash Bay, Outdoor Wash Pad, and Associated Works | C52: 29580000 | D52: 11.08857336 | E52: 27.04530088 | F52: 61.86612576 | G52: 0 | H52: 0 | I52: 0 | J52: 0 | K52: 0 | L52: 0
A53: Impound Lot Expansion | C53: 40000000 | D53: 0 | E53: 20 | F53: 75 | G53: 5 | H53: 0 | I53: 0 | J53: 0 | K53: 0 | L53: 0
A54: Manchester Fleet Facility Upgrade | C54: 15000000 | D54: 0 | E54: 20 | F54: 75 | G54: 5 | H54: 0 | I54: 0 | J54: 0 | K54: 0 | L54: 0
A55: Midpark Urban Forestry Depot | C55: 5000000 | D55: 0 | E55: 0 | F55: 100 | G55: 0 | H55: 0 | I55: 0 | J55: 0 | K55: 0 | L55: 0
A56: Modular Surface Lot Pilot​ | C56: 2000000 | D56: 100 | E56: 0 | F56: 0 | G56: 0 | H56: 0 | I56: 0 | J56: 0 | K56: 0 | L56: 0
A57: Nose Creek Depot Development | C57: 90000000 | D57: 0 | E57: 20 | F57: 75 | G57: 5 | H57: 0 | I57: 0 | J57: 0 | K57: 0 | L57: 0
A58: NW Snow Storage Area | C58: 20000000 | D58: 100 | E58: 0 | F58: 0 | G58: 0 | H58: 0 | I58: 0 | J58: 0 | K58: 0 | L58: 0
A59: Peigan Trail - Materials Conversion and Distribution Centre and Snow Dump Development | C59: 15000000 | D59: 0 | E59: 0 | F59: 6.666666667 | G59: 13.33333333 | H59: 75 | I59: 5 | J59: 0 | K59: 0 | L59: 0
A60: Pumphouse Depot Consolidation and New Build | C60: 202000 | D60: 99.00990099 | E60: 0.9900990099 | F60: 0 | G60: 0 | H60: 0 | I60: 0 | J60: 0 | K60: 0 | L60: 0
A61: Sage Hill Depot Redevelopment | C61: 15000000 | D61: 20 | E61: 80 | F61: 0 | G61: 0 | H61: 0 | I61: 0 | J61: 0 | K61: 0 | L61: 0
A62: Sarcee New Vehicle Storage Building | C62: 30000000 | D62: 0 | E62: 0 | F62: 0 | G62: 0 | H62: 20 | I62: 75 | J62: 0 | K62: 0 | L62: 5
A63: Shepard Operations Workplace Centre Parking Lot Construction | C63: 5250000 | D63: 19.04761905 | E63: 80.95238095 | F63: 0 | G63: 0 | H63: 0 | I63: 0 | J63: 0 | K63: 0 | L63: 0
A64: South Central Bus Maintenance Storage Facility Development - Phase 1 | C64: 256000000 | D64: 2.34375 | E64: 5.859375 | F64: 21.2890625 | G64: 47.65625 | H64: 11.71875 | I64: 11.1328125 | J64: 0 | K64: 0 | L64: 0
A65: South Central Bus Maintenance Storage Facility Development - Phase 2 | C65: 300000000 | D65: 0 | E65: 0 | F65: 0 | G65: 0 | H65: 0 | I65: 0 | J65: 0 | K65: 0 | L65: 100
A66: Spring Gardens Development - Phase 2 | C66: 110000000 | D66: 0 | E66: 0 | F66: 1.818181818 | G66: 5.454545455 | H66: 20 | I66: 35.90909091 | J66: 22.72727273 | K66: 14.09090909 | L66: 0
A67: Spring Gardens Development - Phase 3 | C67: 81000000 | D67: 0 | E67: 0 | F67: 0 | G67: 0 | H67: 0 | I67: 0 | J67: 0 | K67: 0 | L67: 100
A68: Spring Gardens Development - Phase 1 and Revolving Fund | C68: 144100000 | D68: 25.53782096 | E68: 33.31020125 | F68: 37.47397641 | G68: 3.261623872 | H68: 0.2775850104 | I68: 0.1387925052 | J68: 0 | K68: 0 | L68: 0
A69: Spyhill Waste Management Site Redevelopment: Waste & Recycling, Fleet | C69: 114000000 | D69: 5.263157895 | E69: 10.96491228 | F69: 19.73684211 | G69: 48.24561404 | H69: 15.78947368 | I69: 0 | J69: 0 | K69: 0 | L69: 0
A70: Stanley Park Depot Redevelopment | C70: 10000000 | D70: 0 | E70: 25 | F70: 25 | G70: 50 | H70: 0 | I70: 0 | J70: 0 | K70: 0 | L70: 0
A71: Operations Workplace Centres Program | C71: 339500000 | D71: 11.11111111 | E71: 11.11111111 | F71: 11.11111111 | G71: 11.11111111 | H71: 11.11111111 | I71: 11.11111111 | J71: 11.11111111 | K71: 11.11111111 | L71: 11.11111111
A72: 30-35 Implementation of Masterplans | C72: 220000000 | D72: 11.11111111 | E72: 11.11111111 | F72: 11.11111111 | G72: 11.11111111 | H72: 11.11111111 | I72: 11.11111111 | J72: 11.11111111 | K72: 11.11111111 | L72: 11.11111111
A73: Bearspaw Operations Workplace Centre Operations Bay Expansion and Accommodation | C73: 20000000 | D73: 11.11111111 | E73: 11.11111111 | F73: 11.11111111 | G73: 11.11111111 | H73: 11.11111111 | I73: 11.11111111 | J73: 11.11111111 | K73: 11.11111111 | L73: 11.11111111
A74: Fencing Lifecycle | C74: 2000000 | D74: 11.11111111 | E74: 11.11111111 | F74: 11.11111111 | G74: 11.11111111 | H74: 11.11111111 | I74: 11.11111111 | J74: 11.11111111 | K74: 11.11111111 | L74: 11.11111111
A75: Manchester Building Q - Accessiblity and Building Envelope Upgrade | C75: 10000000 | D75: 11.11111111 | E75: 11.11111111 | F75: 11.11111111 | G75: 11.11111111 | H75: 11.11111111 | I75: 11.11111111 | J75: 11.11111111 | K75: 11.11111111 | L75: 11.11111111
A76: Manchester Building R - Trench Drains Sump and Storm Water Management | C76: 3500000 | D76: 11.11111111 | E76: 11.11111111 | F76: 11.11111111 | G76: 11.11111111 | H76: 11.11111111 | I76: 11.11111111 | J76: 11.11111111 | K76: 11.11111111 | L76: 11.11111111
A77: Manchester Pedestrian Safety Improvements | C77: 6000000 | D77: 11.11111111 | E77: 11.11111111 | F77: 11.11111111 | G77: 11.11111111 | H77: 11.11111111 | I77: 11.11111111 | J77: 11.11111111 | K77: 11.11111111 | L77: 11.11111111
A78: Operations Bay Expansion and Accommodation As Required | C78: 40000000 | D78: 11.11111111 | E78: 11.11111111 | F78: 11.11111111 | G78: 11.11111111 | H78: 11.11111111 | I78: 11.11111111 | J78: 11.11111111 | K78: 11.11111111 | L78: 11.11111111
A79: Spring Gardens Building G - Accessibility and Building Envelope Upgrade | C79: 10000000 | D79: 11.11111111 | E79: 11.11111111 | F79: 11.11111111 | G79: 11.11111111 | H79: 11.11111111 | I79: 11.11111111 | J79: 11.11111111 | K79: 11.11111111 | L79: 11.11111111
A80: Spring Gardens Pedestrian Safety Improvements | C80: 8000000 | D80: 11.11111111 | E80: 11.11111111 | F80: 11.11111111 | G80: 11.11111111 | H80: 11.11111111 | I80: 11.11111111 | J80: 11.11111111 | K80: 11.11111111 | L80: 11.11111111
A81: Storm Ponds and Parking Improvement - All Existing Sites | C81: 20000000 | D81: 11.11111111 | E81: 11.11111111 | F81: 11.11111111 | G81: 11.11111111 | H81: 11.11111111 | I81: 11.11111111 | J81: 11.11111111 | K81: 11.11111111 | L81: 11.11111111
A82: Plus 15 Capital Investment | C82: 40000000 | D82: 11.11111111 | E82: 11.11111111 | F82: 11.11111111 | G82: 11.11111111 | H82: 11.11111111 | I82: 11.11111111 | J82: 11.11111111 | K82: 11.11111111 | L82: 11.11111111
A83: Plus 15 Operating & BCAs | C83: 4000000 | D83: 11.111 | E83: 11.111 | F83: 11.111 | G83: 11.111 | H83: 11.111 | I83: 11.111 | J83: 11.111 | K83: 11.111 | L83: 11.112
A84: Public Building Exterior Inspections | C84: 2500000 | D84: 11.11111111 | E84: 11.11111111 | F84: 11.11111111 | G84: 11.11111111 | H84: 11.11111111 | I84: 11.11111111 | J84: 11.11111111 | K84: 11.11111111 | L84: 11.11111111
A85: Public Building Exterior Repairs | C85: 59000000 | D85: 3.389830508 | E85: 3.389830508 | F85: 25.42372881 | G85: 25.42372881 | H85: 25.42372881 | I85: 16.94915254 | J85: 0 | K85: 0 | L85: 0
A86: Records Repository | C86: 2000000 | D86: 11.11111111 | E86: 11.11111111 | F86: 11.11111111 | G86: 11.11111111 | H86: 11.11111111 | I86: 11.11111111 | J86: 11.11111111 | K86: 11.11111111 | L86: 11.11111111
A87: Saddledome Demolition | C87: 20000000 | D87: 11.11111111 | E87: 11.11111111 | F87: 11.11111111 | G87: 11.11111111 | H87: 11.11111111 | I87: 11.11111111 | J87: 11.11111111 | K87: 11.11111111 | L87: 11.11111111
A88: Village Square Lifecycle | C88: 34000000 | D88: 0 | E88: 0 | F88: 0 | G88: 0 | H88: 4.411764706 | I88: 92.64705882 | J88: 2.941176471 | K88: 0 | L88: 0
A89: Workplace Continuity Management | C89: 2500000 | D89: 11.11111111 | E89: 11.11111111 | F89: 11.11111111 | G89: 11.11111111 | H89: 11.11111111 | I89: 11.11111111 | J89: 11.11111111 | K89: 11.11111111 | L89: 11.11111111
A90: Workplace Planning Sustainment Annual Investment Program | C90: 240000000 | D90: 11.11111111 | E90: 11.11111111 | F90: 11.11111111 | G90: 11.11111111 | H90: 11.11111111 | I90: 11.11111111 | J90: 11.11111111 | K90: 11.11111111 | L90: 11.11111111
A92: Service Enhancement - Primary Driver
A94: Business Support Program | C94: 5000000 | D94: 11.11111111 | E94: 11.11111111 | F94: 11.11111111 | G94: 11.11111111 | H94: 11.11111111 | I94: 11.11111111 | J94: 11.11111111 | K94: 11.11111111 | L94: 11.11111111
A95: Centralization of Common Spaces - Meeting Rooms | C95: 10000000 | D95: 11 | E95: 11 | F95: 11 | G95: 11 | H95: 11 | I95: 11 | J95: 11 | K95: 11 | L95: 12
A96: Community Spaces Investment Program (CSIP) | C96: 152000000 | D96: 10 | E96: 10 | F96: 10 | G96: 10 | H96: 10 | I96: 10 | J96: 10 | K96: 10 | L96: 20
A97: Corporate Coordinated Operations and Maintenance Program | C97: 10000000 | D97: 11.11111111 | E97: 11.11111111 | F97: 11.11111111 | G97: 11.11111111 | H97: 11.11111111 | I97: 11.11111111 | J97: 11.11111111 | K97: 11.11111111 | L97: 11.11111111
A99: Growth - Primary Driver
A101: Community Facilities Portfolio Program | C101: 1537264000 | D101: 4.876846137 | E101: 9.969660384 | F101: 16.2623336 | G101: 17.55352932 | H101: 5.446223485 | I101: 4.280532166 | J101: 3.80123388 | K101: 2.133660842 | L101: 35.67598018
A102: Animal Services Facility Redevelopment and Expansion | C102: 30000000 | D102: 20 | E102: 75 | F102: 0 | G102: 5 | H102: 0 | I102: 0 | J102: 0 | K102: 0 | L102: 0
A103: Armour Block | C103: 30000000 | D103: 0 | E103: 0 | F103: 0 | G103: 10 | H103: 33.33333333 | I103: 56.66666667 | J103: 0 | K103: 0 | L103: 0
A104: Belvedere Civic Centre Phase 1: Calgary Police Service and Fire Station | C104: 50400000 | D104: 0 | E104: 7.936507937 | F104: 28.61111111 | G104: 36.46644246 | H104: 13.33895437 | I104: 4.510079365 | J104: 9.136904762 | K104: 0 | L104: 0
A105: Belvedere Civic Centre Phase 2: Waste & Recycling Collections | C105: 54834000 | D105: 0 | E105: 0 | F105: 0 | G105: 0 | H105: 0 | I105: 0 | J105: 0 | K105: 0 | L105: 100
A106: Belvedere Civic Centre Phase 3: Recreation, Library and WPS | C106: 408130000 | D106: 0 | E106: 0 | F106: 0 | G106: 0 | H106: 0 | I106: 0 | J106: 0 | K106: 0 | L106: 100
A107: Cowboys Park Washrooms | C107: 3500000 | D107: 14.28571429 | E107: 28.57142857 | F107: 57.14285714 | G107: 0 | H107: 0 | I107: 0 | J107: 0 | K107: 0 | L107: 0
A108: Don Hartman North East Sportsplex Improvements | C108: 30000000 | D108: 0 | E108: 0 | F108: 0 | G108: 0 | H108: 0 | I108: 20 | J108: 33.33333333 | K108: 41.66666667 | L108: 5
A109: Downtown Fire Station 2 Replacement | C109: 35200000 | D109: 0 | E109: 0 | F109: 0 | G109: 0.5681818182 | H109: 11.36363636 | I109: 22.72727273 | J109: 46.16477273 | K109: 14.20454545 | L109: 4.971590909
A110: Foothills Athletic Park Improvements | C110: 14000000 | D110: 0 | E110: 20 | F110: 0 | G110: 75 | H110: 0 | I110: 5 | J110: 0 | K110: 0 | L110: 0
A111: Forest Lawn Civic Centre Development - Phase 1: Fire, Parks | C111: 50300000 | D111: 10.05964215 | E111: 9.940357853 | F111: 35.23856859 | G111: 39.76143141 | H111: 5 | I111: 0 | J111: 0 | K111: 0 | L111: 0
A112: Forest Lawn Civic Centre Phase 2: Recreation, Arts & Culture, Library | C112: 324200000 | D112: 3.084515731 | E112: 6.927822332 | F112: 32.69586675 | G112: 46.33096854 | H112: 6.169031462 | I112: 4.791795188 | J112: 0 | K112: 0 | L112: 0
A113: Forest Lawn Civic Centre Redevelopment - Phase 3: Demolition | C113: 5700000 | D113: 0 | E113: 0 | F113: 0 | G113: 2.456140351 | H113: 17.54385965 | I113: 52.63157895 | J113: 22.36842105 | K113: 5 | L113: 0
A114: Glacier Ridge Phase 2: Library, Housing, Household Hazardous Waste | C114: 19400000 | D114: 0 | E114: 0 | F114: 0 | G114: 0 | H114: 9.690721649 | I114: 10.30927835 | J114: 51.54639175 | K114: 23.45360825 | L114: 5
A115: Glenmore Canoe and Rowing Building Washroom | C115: 4000000 | D115: 0 | E115: 10 | F115: 10 | G115: 62.5 | H115: 12.5 | I115: 5 | J115: 0 | K115: 0 | L115: 0
A116: Glenmore Velodrome Relocation | C116: 3000000 | D116: 33.33333333 | E116: 61.66666667 | F116: 5 | G116: 0 | H116: 0 | I116: 0 | J116: 0 | K116: 0 | L116: 0
A117: Historic Fire Station 1 / Northwest Travellers Redevelopment | C117: 30000000 | D117: 0 | E117: 5 | F117: 61.66666667 | G117: 33.33333333 | H117: 0 | I117: 0 | J117: 0 | K117: 0 | L117: 0
A118: Indigenous Gathering Place | C118: 30000000 | D118: 20 | E118: 33.33333333 | F118: 41.66666667 | G118: 5 | H118: 0 | I118: 0 | J118: 0 | K118: 0 | L118: 0
A119: Inglewood Fire Station and Housing | C119: 50000000 | D119: 35 | E119: 44 | F119: 16 | G119: 5 | H119: 0 | I119: 0 | J119: 0 | K119: 0 | L119: 0
A120: Keystone Hills Phase 2: Household Hazardous Waste, Housing (To Be Confirmed) | C120: 6600000 | D120: 0 | E120: 0 | F120: 0 | G120: 0 | H120: 0 | I120: 20 | J120: 0 | K120: 75 | L120: 5
A121: Melcor YMCA at Crowfoot - Improvements Part 2 | C121: 30000000 | D121: 0 | E121: 0 | F121: 20 | G121: 0 | H121: 75 | I121: 0 | J121: 5 | K121: 0 | L121: 0
A122: Melcor YMCA at Crowfoot Improvements Part 1 | C122: 8000000 | D122: 0 | E122: 0 | F122: 0 | G122: 0 | H122: 20 | I122: 0 | J122: 75 | K122: 0 | L122: 5
A123: North Hill - Louise Riley Library Redevelopment | C123: 14000000 | D123: 0 | E123: 14.28571429 | F123: 14.28571429 | G123: 53.57142857 | H123: 14.28571429 | I123: 3.571428571 | J123: 0 | K123: 0 | L123: 0
A124: Princes Island - River Cafe Public Washrooms | C124: 3500000 | D124: 0 | E124: 5 | F124: 28.57142857 | G124: 66.42857143 | H124: 0 | I124: 0 | J124: 0 | K124: 0 | L124: 0
A125: Reader Rock Cafe Washroom | C125: 4400000 | D125: 0 | E125: 0 | F125: 0 | G125: 0 | H125: 20 | I125: 0 | J125: 75 | K125: 0 | L125: 5
A126: Richmond Green Public Washroom | C126: 4100000 | D126: 0 | E126: 0 | F126: 20 | G126: 0 | H126: 75 | I126: 0 | J126: 5 | K126: 0 | L126: 0
A127: Riley Park Washroom | C127: 3600000 | D127: 95 | E127: 0 | F127: 5 | G127: 0 | H127: 0 | I127: 0 | J127: 0 | K127: 0 | L127: 0
A128: River Walk West Public Washroom | C128: 3700000 | D128: 20 | E128: 75 | F128: 0 | G128: 5 | H128: 0 | I128: 0 | J128: 0 | K128: 0 | L128: 0
A129: Rotary Park Washrooms | C129: 4300000 | D129: 0 | E129: 0 | F129: 0 | G129: 20 | H129: 0 | I129: 75 | J129: 0 | K129: 5 | L129: 0
A130: Shaganappi Clubhouse Redevelopment | C130: 35000000 | D130: 3.571428571 | E130: 14.28571429 | F130: 42.85714286 | G130: 34.28571429 | H130: 5 | I130: 0 | J130: 0 | K130: 0 | L130: 0
A131: Shouldice Facility Improvements | C131: 5000000 | D131: 0 | E131: 20 | F131: 0 | G131: 75 | H131: 0 | I131: 5 | J131: 0 | K131: 0 | L131: 0
A132: Skyview Ranch Civic Centre Phase 1: Library | C132: 10000000 | D132: 0 | E132: 20 | F132: 0 | G132: 75 | H132: 0 | I132: 5 | J132: 0 | K132: 0 | L132: 0
A133: South East Regional Athletic Park | C133: 75000000 | D133: 0 | E133: 0 | F133: 0 | G133: 0 | H133: 0 | I133: 0 | J133: 0 | K133: 0 | L133: 100
A134: Tomkins Public Washroom | C134: 2000000 | D134: 25 | E134: 75 | F134: 0 | G134: 0 | H134: 0 | I134: 0 | J134: 0 | K134: 0 | L134: 0
A135: Tuxedo Park Multi Service Centre | C135: 47700000 | D135: 16.14255765 | E135: 31.44654088 | F135: 41.92872117 | G135: 10.48218029 | H135: 0 | I135: 0 | J135: 0 | K135: 0 | L135: 0
A136: Tuxedo Park Multi Service Centre Restoration and Redevelopment | C136: 47700000 | D136: 11.11111111 | E136: 11.11111111 | F136: 11.11111111 | G136: 11.11111111 | H136: 11.11111111 | I136: 11.11111111 | J136: 11.11111111 | K136: 11.11111111 | L136: 11.11111111
A137: Downtown Fire - Lot 91 | C137: 60000000 | D137: 16.66666667 | E137: 41.66666667 | F137: 33.33333333 | G137: 8.333333333 | H137: 0 | I137: 0 | J137: 0 | K137: 0 | L137: 0
A138: Expand Real Estate Footprint to Accommodate Employee Growth | C138: 260000000 | D138: 11.11111077 | E138: 11.11111115 | F138: 11.11111115 | G138: 11.11111115 | H138: 11.11111115 | I138: 11.11111115 | J138: 11.11111115 | K138: 11.11111115 | L138: 11.11111115
A139: Facility Planning Project Development | C139: 123567000 | D139: 11.11111111 | E139: 11.11111111 | F139: 11.11111111 | G139: 11.11111111 | H139: 11.11111111 | I139: 11.11111111 | J139: 11.11111111 | K139: 11.11111111 | L139: 11.11111111
A140: Land Acquisition for Facilities Program | C140: 125000000 | D140: 10 | E140: 10 | F140: 10 | G140: 10 | H140: 10 | I140: 10 | J140: 10 | K140: 10 | L140: 20
A142: Total Capital Infrastructure Needs - Facility Management | C142: 7043921750
A146: ICS: Unrestricted

Sheet Fire
A1: Appendix B: Capital Infrastructure Needs - Fire
A2: The values presented reflect identified capital needs and have been rounded to the nearest million for presentation purposes. These capital needs have not received approved budget and will be considered for future business cycles.
B3: Legend (% of capital $ per opportunity item)
B4: 1% ~ 10%
B5: 11% ~ 25%
B6: 25% +
A8: Appendix B: Capital Infrastructure Needs | B8: Priority | C8: Total
A9: ($millions) | B9: (H / M / L) | C9: 2027-2035+ | D9: 2027 | E9: 2028 | F9: 2029 | G9: 2030 | H9: 2031 | I9: 2032 | J9: 2033 | K9: 2034 | L9: 2035+
A11: Maintenance - Primary Driver
A13: Downtown Core Emergency Response Station | B13: H | C13: 34.821128 | D13: 0 | E13: 36.48727864 | F13: 33.61545898 | G13: 29.89726237 | H13: 0 | I13: 0 | J13: 0 | K13: 0 | L13: 0
A14: Facility General Lifecycle | B14: H | C14: 2.57 | D14: 12.91828794 | E14: 12.91828794 | F14: 12.91828794 | G14: 12.91828794 | H14: 8.054474708 | I14: 8.054474708 | J14: 8.054474708 | K14: 8.054474708 | L14: 16.10894942
A15: Replace Support Vehicles | B15: H | C15: 10.93 | D15: 44.83074108 | E15: 7.548032937 | F15: 3.247941446 | G15: 14.8673376 | H15: 0.9149130833 | I15: 5.4894785 | J15: 1.738334858 | K15: 4.117108875 | L15: 17.24611162
A16: Emergency Units | B16: H | C16: 128.9892434 | D16: 6.652880033 | E16: 5.786021378 | F16: 10.60002884 | G16: 10.79078769 | H16: 12.3581359 | I16: 13.44278464 | J16: 11.18703639 | K16: 10.45054087 | L16: 18.73178426
A17: Technology & Innovation | B17: H | C17: 31.38496635 | D17: 4.986279044 | E17: 5.939550737 | F17: 3.976572688 | G17: 6.026774026 | H17: 7.441763595 | I17: 12.53338607 | J17: 3.657760812 | K17: 12.80917098 | L17: 42.62874205
A18: Equipment - General | B18: H | C18: 32.72214081 | D18: 3.125349487 | E18: 4.541941735 | F18: 13.94814893 | G18: 3.115365355 | H18: 22.2103361 | I18: 12.03914555 | J18: 3.932223232 | K18: 14.03334296 | L18: 23.05414665
A19: Equipment - Personal Protective Equipment | B19: H | C19: 80.28298628 | D19: 19.26273513 | E19: 8.548950803 | F19: 9.372578611 | G19: 9.194432522 | H19: 8.519927219 | I19: 9.513551195 | J19: 10.95878144 | K19: 9.117928143 | L19: 15.51111494
A20: Equipment - Fire Training | B20: H | C20: 18.4713 | D20: 23.47966846 | E20: 16.29555039 | F20: 14.74178861 | G20: 25.63327974 | H20: 0.5197251953 | I20: 3.583938326 | J20: 4.517819536 | K20: 0.6713117106 | L20: 10.55691803
A21: Stations Privacy Enhancement | B21: M | C21: 2 | D21: 10 | E21: 10 | F21: 10 | G21: 10 | H21: 10 | I21: 10 | J21: 10 | K21: 10 | L21: 20
A22: Healthy and Safety Improvements | B22: M | C22: 5.825 | D22: 15.87982833 | E22: 15.87982833 | F22: 15.87982833 | G22: 15.87982833 | H22: 7.296137339 | I22: 7.296137339 | J22: 7.296137339 | K22: 7.296137339 | L22: 7.296137339
A24: Growth - Primary Driver
A26: New Growth Emergency Response Stations - Temporary | B26: H | C26: 5.5 | D26: 100 | E26: 0 | F26: 0 | G26: 0 | H26: 0 | I26: 0 | J26: 0 | K26: 0 | L26: 0
A27: Keystone Emergency Response Station | B27: H | C27: 27.00485 | D27: 0 | E27: 23.4032035 | F27: 29.34602488 | G27: 47.25077162 | H27: 0 | I27: 0 | J27: 0 | K27: 0 | L27: 0
A28: Yorkville Emergency Response Station | B28: H | C28: 9.7 | D28: 0 | E28: 0 | F28: 58.7628866 | G28: 41.2371134 | H28: 0 | I28: 0 | J28: 0 | K28: 0 | L28: 0
A29: Rangeview Emergency Response Station | B29: H | C29: 30.705 | D29: 21.16919069 | E29: 4.885197851 | F29: 25.09363296 | G29: 48.85197851 | H29: 0 | I29: 0 | J29: 0 | K29: 0 | L29: 0
A30: Downtown Emergency Response Station (Stampede/East Beltline) | B30: H | C30: 45 | D30: 5.555555556 | E30: 5.555555556 | F30: 5.555555556 | G30: 5.555555556 | H30: 0 | I30: 0 | J30: 0 | K30: 0 | L30: 77.77777778
A31: Incident Command Improvements | B31: H | C31: 0.7 | D31: 64.28571429 | E31: 0 | F31: 0 | G31: 0 | H31: 35.71428571 | I31: 0 | J31: 0 | K31: 0 | L31: 0
A32: Fire Training Academy | B32: H | C32: 80.5 | D32: 0 | E32: 0.6211180124 | F32: 24.8447205 | G32: 24.8447205 | H32: 24.8447205 | I32: 24.8447205 | J32: 0 | K32: 0 | L32: 0
A33: Sustain Service Performance | B33: H | C33: 26.8 | D33: 17.91044776 | E33: 10.44776119 | F33: 10.44776119 | G33: 10.44776119 | H33: 7.462686567 | I33: 0 | J33: 0 | K33: 0 | L33: 43.28358209
A34: Improve Medical Response Performance | B34: H | C34: 0.3 | D34: 50 | E34: 50 | F34: 0 | G34: 0 | H34: 0 | I34: 0 | J34: 0 | K34: 0 | L34: 0
A35: Glacier Ridge Emergency Response Station | B35: M | C35: 6.705 | D35: 0 | E35: 0 | F35: 0 | G35: 100 | H35: 0 | I35: 0 | J35: 0 | K35: 0 | L35: 0
A36: Hidden Valley Emergency Response Station | B36: M | C36: 24 | D36: 25 | E36: 25 | F36: 25 | G36: 25 | H36: 0 | I36: 0 | J36: 0 | K36: 0 | L36: 0
A37: Prairesong (Nose Creek) Emergency Response Station | B37: M | C37: 30.705 | D37: 13.02719427 | E37: 6.513597134 | F37: 6.513597134 | G37: 7.490636704 | H37: 0 | I37: 22.79758997 | J37: 31.30434783 | K37: 12.35303696 | L37: 0
A38: NW Emergency Response Station | B38: M | C38: 25.2 | D38: 21.42857143 | E38: 15.07936508 | F38: 35.71428571 | G38: 27.77777778 | H38: 0 | I38: 0 | J38: 0 | K38: 0 | L38: 0
A39: SE Emergency Response Station | B39: M | C39: 25.2 | D39: 0 | E39: 0 | F39: 0 | G39: 0 | H39: 21.42857143 | I39: 15.07936508 | J39: 35.71428571 | K39: 27.77777778 | L39: 0
A40: Specialty Team Improvement | B40: M | C40: 6 | D40: 0 | E40: 30 | F40: 0 | G40: 46.66666667 | H40: 0 | I40: 0 | J40: 0 | K40: 23.33333333 | L40: 0
A41: Belvedere Emergency Response Station | B41: L | C41: 36.39999974 | D41: 0 | E41: 0 | F41: 0 | G41: 0 | H41: 13.41347262 | I41: 25.02696375 | J41: 40.33176128 | K41: 21.22780235 | L41: 0
A42: Haskayne Emergency Response Station | B42: L | C42: 22.2 | D42: 6.756756757 | E42: 20.27027027 | F42: 40.54054054 | G42: 32.43243243 | H42: 0 | I42: 0 | J42: 0 | K42: 0 | L42: 0
A43: StoneGate (NE Industrial) Emergency Response Station | B43: L | C43: 15.015881 | D43: 0 | E43: 35.40172568 | F43: 37.95981068 | G43: 26.63846364 | H43: 0 | I43: 0 | J43: 0 | K43: 0 | L43: 0
A44: Hotchkiss (South Shepard) Emergency Response Station | B44: L | C44: 25.2 | D44: 0 | E44: 0 | F44: 0 | G44: 0 | H44: 0 | I44: 0 | J44: 0 | K44: 0 | L44: 100
A45: Providence Emergency Response Station | B45: L | C45: 25.2 | D45: 0 | E45: 0 | F45: 0 | G45: 0 | H45: 0 | I45: 21.03174603 | J45: 15.87301587 | K45: 63.0952381 | L45: 0
A46: Saatoohtsi Emergency Response Station | B46: L | C46: 25.2 | D46: 0 | E46: 0 | F46: 0 | G46: 0 | H46: 0 | I46: 0 | J46: 0 | K46: 0 | L46: 100
A47: Naato'siyinnipi Emergency Response Station | B47: L | C47: 25.2 | D47: 0 | E47: 0 | F47: 0 | G47: 0 | H47: 0 | I47: 0 | J47: 0 | K47: 0 | L47: 100
A49: Total Capital Infrastructure Needs - Fire | C49: 866.4324956
A53: ICS: Unrestricted

Sheet Fleet Management
A1: Appendix B: Capital Infrastructure Needs - Fleet Management
A2: The values presented reflect identified capital needs and have been rounded to the nearest million for presentation purposes. These capital needs have not received approved budget and will be considered for future business cycles.
B3: Legend (% of capital $ per opportunity item)
B4: 1% ~ 10%
B5: 11% ~ 25%
B6: 25% +
A8: Appendix B: Capital Infrastructure Needs | B8: Priority | C8: Total
A9: ($millions) | B9: (H / M / L) | C9: 2027-2035+ | D9: 2027 | E9: 2028 | F9: 2029 | G9: 2030 | H9: 2031 | I9: 2032 | J9: 2033 | K9: 2034 | L9: 2035+
A11: Maintenance - Primary Driver
A13: Facility & Equipment Lifecycle | B13: M | C13: 48.891 | D13: 8.774621096 | E13: 9.285962652 | F13: 9.858665194 | G13: 10.4518214 | H13: 11.06543127 | I13: 11.74040212 | J13: 12.43582663 | K13: 13.19261214 | L13: 13.1946575
A14: Fuel Infrastructure and System Upgrades | B14: H | C14: 24.22685711 | D14: 16.71619614 | E14: 22.78355622 | F14: 23.1963018 | G14: 9.08040284 | H14: 5.006603929 | I14: 5.307908205 | J14: 5.625722305 | K14: 5.964173683 | L14: 6.319134885
A15: Vehicle and Equipment Replacements | B15: H | C15: 975 | D15: 12.30264507 | E15: 11.11338938 | F15: 9.226983802 | G15: 9.226983802 | H15: 10.25220422 | I15: 10.86733648 | J15: 11.58499077 | K15: 12.30264507 | L15: 13.12282141
A17: Service Enhancement - Primary Driver
A19: Green Fleet Strategy | B19: L | C19: 47.349 | D19: 2.179560286 | E19: 7.022323597 | F19: 2.238695643 | G19: 2.259815413 | H19: 15.30972143 | I19: 16.22843143 | J19: 17.20205284 | K19: 18.23269763 | L19: 19.32670173
A20: Technology Improvements | B20: M | C20: 19.5 | D20: 24.35897436 | E20: 16.66666667 | F20: 16.66666667 | G20: 16.66666667 | H20: 5.128205128 | I20: 5.128205128 | J20: 5.128205128 | K20: 5.128205128 | L20: 5.128205128
A22: Growth - Primary Driver
A24: Vehicle and Equipment Growth | B24: H | C24: 304 | D24: 12.02635914 | E24: 10.54365733 | F24: 10.54365733 | G24: 10.54365733 | H24: 9.884678748 | I24: 10.54365733 | J24: 11.20263591 | K24: 11.8616145 | L24: 12.85008237
A26: Total Capital Infrastructure Needs - Fleet Management | C26: =SUM(C13:C24) -> 1418.966857
A30: ICS: Unrestricted

Sheet Housing
A1: Appendix B: Capital Infrastructure Needs - Housing
A2: The values presented reflect identified capital needs and have been rounded to the nearest million for presentation purposes. These capital needs have not received approved budget and will be considered for future business cycles.
B3: Legend (% of capital $ per opportunity item)
A4: 0 | B4: 1% ~ 10% | D4: 0 | E4: 0 | F4: 0 | G4: 0 | H4: 0 | I4: 0 | J4: 0 | K4: 0 | L4: 0
A5: 0 | B5: 11% ~ 25% | D5: 0 | E5: 0 | F5: 0 | G5: 0 | H5: 0 | I5: 0 | J5: 0 | K5: 0 | L5: 0
B6: 25% + | D6: 0 | E6: 0 | F6: 0 | G6: 0 | H6: 0 | I6: 0 | J6: 0 | K6: 0 | L6: 0
A7: 0 | B7: 0 | C7: 0 | D7: 0 | E7: 0 | F7: 0 | G7: 0 | H7: 0 | I7: 0 | J7: 0 | K7: 0 | L7: 0
A8: Appendix B: Capital Infrastructure Needs | B8: Priority | C8: Total | D8: 0 | E8: 0 | F8: 0 | G8: 0 | H8: 0 | I8: 0 | J8: 0 | K8: 0 | L8: 0
A9: ($millions) | B9: (H / M / L) | C9: 2027-2035+ | D9: 2027 | E9: 2028 | F9: 2029 | G9: 2030 | H9: 2031 | I9: 2032 | J9: 2033 | K9: 2034 | L9: 2035+
A10: 0 | B10: 0 | C10: 0 | D10: 0 | E10: 0 | F10: 0 | G10: 0 | H10: 0 | I10: 0 | J10: 0 | K10: 0 | L10: 0
A11: Maintenance - Primary Driver | B11: 0 | C11: 0 | D11: 0 | E11: 0 | F11: 0 | G11: 0 | H11: 0 | I11: 0 | J11: 0 | K11: 0 | L11: 0
A12: 0 | B12: 0 | C12: 0 | D12: 0 | E12: 0 | F12: 0 | G12: 0 | H12: 0 | I12: 0 | J12: 0 | K12: 0 | L12: 0
A13: Housing Lifecycle City Owned | B13: H | C13: 47400000 | D13: 0.111814346 | E13: 0.111814346 | F13: 0.111814346 | G13: 0.111814346 | H13: 0.1105485232 | I13: 0.1105485232 | J13: 0.1105485232 | K13: 0.1105485232 | L13: 0.1105485232
A14: Silvera for Seniors Lodge Lifecycle | B14: H | C14: 70480000 | D14: 0.1680618615 | E14: 0.1447219069 | F14: 0.09960272418 | G14: 0.1035754824 | H14: 0.09680760499 | I14: 0.09680760499 | J14: 0.09680760499 | K14: 0.09680760499 | L14: 0.09680760499
A15: Indigenous Housing Lifecycle | B15: M | C15: 3000000 | D15: 0.375 | E15: 0.375 | F15: 0.25 | G15: 0 | H15: 0 | I15: 0 | J15: 0 | K15: 0 | L15: 0
A16: Housing Lifecycle Calgary Housing Owned | B16: L | C16: 10800000 | D16: 0.25 | E16: 0.25 | F16: 0.25 | G16: 0.25 | H16: 0 | I16: 0 | J16: 0 | K16: 0 | L16: 0
A17: 0 | B17: 0 | C17: 0 | D17: 0 | E17: 0 | F17: 0 | G17: 0 | H17: 0 | I17: 0 | J17: 0 | K17: 0 | L17: 0
A18: Growth - Primary Driver | B18: 0 | C18: 0 | D18: 0 | E18: 0 | F18: 0 | G18: 0 | H18: 0 | I18: 0 | J18: 0 | K18: 0 | L18: 0
A19: 0 | B19: 0 | C19: 0 | D19: 0 | E19: 0 | F19: 0 | G19: 0 | H19: 0 | I19: 0 | J19: 0 | K19: 0 | L19: 0
A20: Indigenous Housing Capital Funding | B20: H | C20: 744900000 | D20: 0.111222983 | E20: 0.111222983 | F20: 0.111222983 | G20: 0.1102161364 | H20: 0.111222983 | I20: 0.111222983 | J20: 0.111222983 | K20: 0.111222983 | L20: 0.111222983
A21: Housing Subsidiaries Capital Funding | B21: M | C21: 649350000 | D21: 0.1037191037 | E21: 0.1432201432 | F21: 0.1432201432 | G21: 0.08085008085 | H21: 0.1057981058 | I21: 0.1057981058 | J21: 0.1057981058 | K21: 0.1057981058 | L21: 0.1057981058
A22: Non-Market Housing Capital Funding | B22: M | C22: 2025000000 | D22: 0.1111111111 | E22: 0.1111111111 | F22: 0.1111111111 | G22: 0.1111111111 | H22: 0.1111111111 | I22: 0.1111111111 | J22: 0.1111111111 | K22: 0.1111111111 | L22: 0.1111111111
A23: 0 | B23: 0 | C23: 0 | D23: 0 | E23: 0 | F23: 0 | G23: 0 | H23: 0 | I23: 0 | J23: 0 | K23: 0 | L23: 0
A24: Total Capital Infrastructure Needs - Housing | B24: 0 | C24: 3550930000 | D24: 0 | E24: 0 | F24: 0 | G24: 0 | H24: 0 | I24: 0 | J24: 0 | K24: 0 | L24: 0
A28: ICS: Unrestricted

Sheet Information Technology
A1: Appendix B: Capital Infrastructure Needs - Information Technology
A2: The values presented reflect identified capital needs and have been rounded to the nearest million for presentation purposes. These capital needs have not received approved budget and will be considered for future business cycles. The majority of the 10-year capital investments are foundational in nature and have been prioritized as High, reflecting the essential funding required to sustain current service levels and manage core operational risks. These investments establish the baseline level of service and define the essential capital required to maintain system reliability over time. All values are presented in 2025 dollars, with estimates prepared as of January 2026. Further refinements and adjustments are expected through the development of the 2027–2030 Budget and the 10-Year Capital Infrastructure Plan.
B3: Legend (% of capital $ per opportunity item)
B4: 1% ~ 10%
B5: 11% ~ 25%
B6: 25% +
A8: Appendix B: Capital Infrastructure Needs | C8: Total
A9: ($millions) | C9: 2027-2035+ | D9: 2027 | E9: 2028 | F9: 2029 | G9: 2030 | H9: 2031 | I9: 2032 | J9: 2033 | K9: 2034 | L9: 2035+
A11: Maintenance - Primary Driver
A13: Calgary City Net | C13: 48800000 | D13: 18.75 | E13: 11.06557377 | F13: 9.221311475 | G13: 9.016393443 | H13: 6.967213115 | I13: 14.65163934 | J13: 12.29508197 | K13: 11.06557377 | L13: 6.967213115
A14: Client Access | C14: 14712000 | D14: 27.18868951 | E14: 0.7069059271 | F14: 0.7340946166 | G14: 3.534529636 | H14: 29.90755846 | I14: 0.7884719956 | J14: 0.8428493747 | K14: 3.670473083 | L14: 32.62642741
A15: Corporate Geographic Information System (GIS) Upgrades | C15: 24455516.52 | D15: 8.2685223 | E15: 8.621645933 | F15: 9.021735008 | G15: 9.475035931 | H15: 11.19627208 | I15: 11.88759118 | J15: 12.68606474 | K15: 13.6083017 | L15: 15.23483113
A16: Corporate Imagery Program | C16: 17480605.45 | D16: 9.893161856 | E16: 10.57076996 | F16: 9.893161856 | G16: 12.60359429 | H16: 10.65188173 | I16: 11.34264727 | J16: 10.65188173 | K16: 13.41494392 | L16: 10.97795739
A17: Data Centre Environmentals (Lifecycle Replacement) | C17: 7603000 | D17: 67.07878469 | E17: 3.603840589 | F17: 6.168617651 | G17: 4.919110877 | H17: 0.9733000132 | I17: 1.315270288 | J17: 3.603840589 | K17: 6.168617651 | L17: 6.168617651
A18: Development Pool | C18: 31500000 | D18: 11.11111111 | E18: 11.11111111 | F18: 11.11111111 | G18: 11.11111111 | H18: 11.11111111 | I18: 11.11111111 | J18: 11.11111111 | K18: 11.11111111 | L18: 11.11111111
A19: Enterprise Information Management | C19: 6250000 | D19: 6.4 | E19: 9.6 | F19: 9.6 | G19: 12 | H19: 12 | I19: 12 | J19: 12.8 | K19: 12.8 | L19: 12.8
A20: Enterprise Servers | C20: 12050000 | D20: 18.25726141 | E20: 9.958506224 | F20: 5.394190871 | G20: 16.59751037 | H20: 14.93775934 | I20: 5.809128631 | J20: 18.25726141 | K20: 5.394190871 | L20: 5.394190871
A21: Enterprise Storage Units | C21: 23510000 | D21: 2.807316036 | E21: 7.868991918 | F21: 17.01403658 | G21: 3.721820502 | H21: 22.96894938 | I21: 7.868991918 | J21: 3.721820502 | K21: 17.01403658 | L21: 17.01403658
A22: Enterprise Support Systems | C22: 5450000 | D22: 18.34862385 | E22: 18.34862385 | F22: 20.18348624 | G22: 20.18348624 | H22: 22.93577982 | I22: 0 | J22: 0 | K22: 0 | L22: 0
A23: Fibre Optics | C23: 27000000 | D23: 11.11111111 | E23: 11.11111111 | F23: 11.11111111 | G23: 11.11111111 | H23: 11.11111111 | I23: 11.11111111 | J23: 11.11111111 | K23: 11.11111111 | L23: 11.11111111
A24: IT Communications Infrastructure | C24: 15391153 | D24: 9.745858546 | E24: 10.46055484 | F24: 10.8536378 | G24: 11.75100397 | H24: 10.05052708 | I24: 11.05557849 | J24: 11.47892559 | K24: 12.30195684 | L24: 12.30195684
A25: Lifecycle Replace-Desktop | C25: 38680000 | D25: 12.09927611 | E25: 10.98759049 | F25: 10.98759049 | G25: 10.98759049 | H25: 10.98759049 | I25: 10.98759049 | J25: 10.98759049 | K25: 10.98759049 | L25: 10.98759049
A26: Modernize City Online | C26: 4560000 | D26: 0 | E26: 12.5 | F26: 12.5 | G26: 12.5 | H26: 12.5 | I26: 12.5 | J26: 12.5 | K26: 12.5 | L26: 12.5
A27: Network Infrastructure | C27: 6750000 | D27: 11.11111111 | E27: 11.11111111 | F27: 11.11111111 | G27: 11.11111111 | H27: 11.11111111 | I27: 11.11111111 | J27: 11.11111111 | K27: 11.11111111 | L27: 11.11111111
A28: New Data Centre | C28: 53000000 | D28: 0 | E28: 0 | F28: 0 | G28: 0 | H28: 18.86792453 | I28: 66.03773585 | J28: 7.547169811 | K28: 3.773584906 | L28: 3.773584906
A29: PeopleSoft Finance and Supply Chain Management (FSCM) | C29: 7150000 | D29: 16.78321678 | E29: 16.78321678 | F29: 20.97902098 | G29: 20.97902098 | H29: 24.47552448 | I29: 0 | J29: 0 | K29: 0 | L29: 0
A30: PeopleSoft Human Capital Management (HCM) | C30: 7150000 | D30: 16.78321678 | E30: 16.78321678 | F30: 20.97902098 | G30: 20.97902098 | H30: 24.47552448 | I30: 0 | J30: 0 | K30: 0 | L30: 0
A31: Service Resiliency and Disaster Recovery | C31: 4500000 | D31: 11.11111111 | E31: 11.11111111 | F31: 11.11111111 | G31: 11.11111111 | H31: 11.11111111 | I31: 11.11111111 | J31: 11.11111111 | K31: 11.11111111 | L31: 11.11111111
A32: Software Lifecycle Replacement | C32: 46650000 | D32: 8.038585209 | E32: 9.11039657 | F32: 10.18220793 | G32: 11.25401929 | H32: 11.52197213 | I32: 11.84351554 | J32: 12.21864952 | K32: 12.64737406 | L32: 13.18327974
A33: Business Intelligence | C33: 15150000 | D33: 14.85148515 | E33: 11.55115512 | F33: 10.56105611 | G33: 8.910891089 | H33: 11.22112211 | I33: 9.570957096 | J33: 12.21122112 | K33: 10.56105611 | L33: 10.56105611
A34: Modernize Open Data | C34: 2700000 | D34: 7.407407407 | E34: 7.407407407 | F34: 11.11111111 | G34: 14.81481481 | H34: 14.81481481 | I34: 11.11111111 | J34: 11.11111111 | K34: 11.11111111 | L34: 11.11111111
A36: Service Enhancement - Primary Driver
A38: City Network of Things and Robotic Process Automation (RPA) | C38: 9850000 | D38: 0 | E38: 9.644670051 | F38: 9.644670051 | G38: 9.644670051 | H38: 10.65989848 | I38: 11.6751269 | J38: 11.6751269 | K38: 11.6751269 | L38: 12.69035533
A39: Smart Calgary | C39: 10800000 | D39: 0 | E39: 9.259259259 | F39: 9.259259259 | G39: 9.259259259 | H39: 11.11111111 | I39: 11.11111111 | J39: 11.11111111 | K39: 12.96296296 | L39: 12.96296296
A40: Corporate Data Governance Program | C40: 7500000 | D40: 0 | E40: 10 | F40: 10 | G40: 13.33333333 | H40: 13.33333333 | I40: 13.33333333 | J40: 13.33333333 | K40: 6.666666667 | L40: 6.666666667
A42: Growth - Primary Driver
A44: Borehole Monitoring System | C44: 900000 | D44: 0 | E44: 33.33333333 | F44: 33.33333333 | G44: 33.33333333 | H44: 0 | I44: 0 | J44: 0 | K44: 0 | L44: 0
A46: Total Capital Infrastructure Needs - Information Technology | C46: 449542275
A50: ICS: Unrestricted

Sheet Parks & Urban Forestry
A1: Appendix B: Capital Infrastructure Needs - Parks & Urban Forestry | M1: 0
A2: The values presented reflect identified capital needs and have been rounded to the nearest million for presentation purposes. These capital needs have not received approved budget and will be considered for future business cycles.
B3: Legend (% of capital $ per opportunity item)
B4: 1% ~ 10% | D4: 0 | E4: 0 | F4: 0 | G4: 0 | H4: 0 | I4: 0 | J4: 0 | K4: 0 | L4: 0 | M4: 0
B5: 11% ~ 25% | D5: 0 | E5: 0 | F5: 0 | G5: 0 | H5: 0 | I5: 0 | J5: 0 | K5: 0 | L5: 0 | M5: 0
B6: 25% + | D6: 0 | E6: 0 | F6: 0 | G6: 0 | H6: 0 | I6: 0 | J6: 0 | K6: 0 | L6: 0 | M6: 0
B7: 0 | C7: 0 | D7: 0 | E7: 0 | F7: 0 | G7: 0 | H7: 0 | I7: 0 | J7: 0 | K7: 0 | L7: 0 | M7: 0
A8: Appendix B: Capital Infrastructure Needs | B8: Priority | C8: Total | D8: 0 | E8: 0 | F8: 0 | G8: 0 | H8: 0 | I8: 0 | J8: 0 | K8: 0 | L8: 0
A9: ($ Millions) | B9: (H / M / L) | C9: 2027-2035+ | D9: 2027 | E9: 2028 | F9: 2029 | G9: 2030 | H9: 2031 | I9: 2032 | J9: 2033 | K9: 2034 | L9: 2035+
A10: 0 | B10: 0 | C10: 0 | D10: 0 | E10: 0 | F10: 0 | G10: 0 | H10: 0 | I10: 0 | J10: 0 | K10: 0 | L10: 0
A11: Maintenance - Primary Driver
A13: Golf Course Lifecycle Program | B13: H | C13: 15320500 | D13: 0.08863940472 | E13: 0.1876570608 | F13: 0.1229072158 | G13: 0.1225155837 | H13: 0.1876570608 | I13: 0.04552723475 | J13: 0.2447700793 | K13: 0.0003263601057 | L13: 0
A14: Habitat Restoration | B14: H | C14: 101635000 | D14: 0.07118610715 | E14: 0.07128449845 | F14: 0.08417375904 | G14: 0.1094111281 | H14: 0.09691543268 | I14: 0.09022482413 | J14: 0.0889457372 | K14: 0.08638756334 | L14: 0.30147095
A15: Park Infrastructure Lifecycle | B15: H | C15: 455973280 | D15: 0.08664668684 | E15: 0.1103823957 | F15: 0.1227157697 | G15: 0.1019199305 | H15: 0.1092382453 | I15: 0.07533568634 | J15: 0.08057914929 | K15: 0.1269430437 | L15: 0.1862390928
A16: Urban Forestry - Lifecycle | B16: H | C16: 88402996 | D16: 0.1338880868 | E16: 0.1082639892 | F16: 0.1082639892 | G16: 0.1082639892 | H16: 0.1082639892 | I16: 0.1082639892 | J16: 0.1082639892 | K16: 0.1082639892 | L16: 0.1082639892
A17: Confederation Park Golf Course Clubhouse Upgrade | B17: M | C17: 4128000 | D17: 1 | E17: 0 | F17: 0 | G17: 0 | H17: 0 | I17: 0 | J17: 0 | K17: 0 | L17: 0
A18: Cultural Landscape Conservation | B18: M | C18: 4500000 | D18: 0.1111111111 | E18: 0.1111111111 | F18: 0.1111111111 | G18: 0.1111111111 | H18: 0.1111111111 | I18: 0.1111111111 | J18: 0.1111111111 | K18: 0.1111111111 | L18: 0.1111111111
A19: Park Delivery 2 - Upgrade Existing Regional Parks | B19: M | C19: 195710000 | D19: 0.1541055644 | E19: 0.1969751162 | F19: 0.1387256655 | G19: 0.1461345869 | H19: 0.1586531092 | I19: 0.07408921363 | J19: 0.06489193194 | K19: 0.03576720658 | L19: 0.03065760564
A20: 12-Mile Coulee | C20: 200000 | D20: 0 | E20: 1 | F20: 0 | G20: 0 | H20: 0 | I20: 0 | J20: 0 | K20: 0 | L20: 0
A21: Baker Park | C21: 600000 | D21: 0 | E21: 0 | F21: 0 | G21: 0.6666666667 | H21: 0.3333333333 | I21: 0 | J21: 0 | K21: 0 | L21: 0
A22: Big Marlborough | C22: 10250000 | D22: 0.5707317073 | E22: 0.3902439024 | F22: 0.01951219512 | G22: 0.01951219512 | H22: 0 | I22: 0 | J22: 0 | K22: 0 | L22: 0
A23: Bottomlands Park | C23: 600000 | D23: 0 | E23: 0 | F23: 0 | G23: 0.6666666667 | H23: 0.3333333333 | I23: 0 | J23: 0 | K23: 0 | L23: 0
A24: Bowness Lagoon | C24: 5000000 | D24: 0.2 | E24: 0.6 | F24: 0.2 | G24: 0 | H24: 0 | I24: 0 | J24: 0 | K24: 0 | L24: 0
A25: Carburn Park | C25: 600000 | D25: 0 | E25: 0 | F25: 0 | G25: 0 | H25: 0 | I25: 0.6666666667 | J25: 0.3333333333 | K25: 0 | L25: 0
A26: Chinese Market Gardens | C26: 4100000 | D26: 0.9024390244 | E26: 0.0487804878 | F26: 0.0487804878 | G26: 0 | H26: 0 | I26: 0 | J26: 0 | K26: 0 | L26: 0
A27: Clearwater Park | C27: 10000000 | D27: 0 | E27: 0 | F27: 0 | G27: 0 | H27: 0 | I27: 0 | J27: 0 | K27: 0.5 | L27: 0.5
A28: Confederation Park | C28: 600000 | D28: 0 | E28: 0 | F28: 0 | G28: 0.6666666667 | H28: 0.3333333333 | I28: 0 | J28: 0 | K28: 0 | L28: 0
A29: Corridor Park Improvements | C29: 3300000 | D29: 0.8787878788 | E29: 0.06060606061 | F29: 0.06060606061 | G29: 0 | H29: 0 | I29: 0 | J29: 0 | K29: 0 | L29: 0
A30: Cowboys Park | C30: 30000000 | D30: 0 | E30: 0.01666666667 | F30: 0.1166666667 | G30: 0.3333333333 | H30: 0.3333333333 | I30: 0.1 | J30: 0.06666666667 | K30: 0.03333333333 | L30: 0
A31: Edworthy Park | C31: 20000000 | D31: 0 | E31: 0 | F31: 0.05 | G31: 0.2 | H31: 0.3 | I31: 0.2 | J31: 0.2 | K31: 0.025 | L31: 0.025
A32: Homestead Trail Improvements | C32: 500000 | D32: 1 | E32: 0 | F32: 0 | G32: 0 | H32: 0 | I32: 0 | J32: 0 | K32: 0 | L32: 0
A33: Inland Athletic Park | C33: 600000 | D33: 0 | E33: 0 | F33: 0 | G33: 0 | H33: 0.6666666667 | I33: 0.3333333333 | J33: 0 | K33: 0 | L33: 0
A34: McHugh Bluff | C34: 600000 | D34: 0 | E34: 0 | F34: 0 | G34: 0.6666666667 | H34: 0.3333333333 | I34: 0 | J34: 0 | K34: 0 | L34: 0
A35: N. Glenmore Reservoir Park | C35: 26000000 | D35: 0 | E35: 0 | F35: 0.03846153846 | G35: 0.1923076923 | H35: 0.2692307692 | I35: 0.2307692308 | J35: 0.2307692308 | K35: 0.01923076923 | L35: 0.01923076923
A36: Pearce Estate Boathouse | C36: 5000000 | D36: 0 | E36: 0 | F36: 0.1 | G36: 0.2 | H36: 0.5 | I36: 0.1 | J36: 0.1 | K36: 0 | L36: 0
A37: Pearce Estate Destination Playground | C37: 2000000 | D37: 0.2 | E37: 0.75 | F37: 0.025 | G37: 0.025 | H37: 0 | I37: 0 | J37: 0 | K37: 0 | L37: 0
A38: Pearce Estate Parking Lot | C38: 610000 | D38: 0.9180327869 | E38: 0.08196721311 | F38: 0 | G38: 0 | H38: 0 | I38: 0 | J38: 0 | K38: 0 | L38: 0
A39: Pearce Estate Washrooms | C39: 2500000 | D39: 0 | E39: 0.96 | F39: 0.02 | G39: 0.02 | H39: 0 | I39: 0 | J39: 0 | K39: 0 | L39: 0
A40: Poppy Plaza | C40: 600000 | D40: 0 | E40: 0 | F40: 0 | G40: 0 | H40: 0.6666666667 | I40: 0.3333333333 | J40: 0 | K40: 0 | L40: 0
A41: Richmond Green | C41: 24000000 | D41: 0.4583333333 | E41: 0.4583333333 | F41: 0.04166666667 | G41: 0.04166666667 | H41: 0 | I41: 0 | J41: 0 | K41: 0 | L41: 0
A42: Sandy Beach Washrooms | C42: 2500000 | D42: 0 | E42: 0.96 | F42: 0.02 | G42: 0.02 | H42: 0 | I42: 0 | J42: 0 | K42: 0 | L42: 0
A43: Shouldice Park Washrooms | C43: 2500000 | D43: 0 | E43: 0 | F43: 0.96 | G43: 0.02 | H43: 0.02 | I43: 0 | J43: 0 | K43: 0 | L43: 0
A44: Sien Lok Park | C44: 15000000 | D44: 0.1333333333 | E44: 0.5 | F44: 0.3333333333 | G44: 0.02 | H44: 0.01333333333 | I44: 0 | J44: 0 | K44: 0 | L44: 0
A45: Stanley Regional Park | C45: 12450000 | D45: 0.1485943775 | E45: 0.4016064257 | F45: 0.4016064257 | G45: 0.02409638554 | H45: 0.02409638554 | I45: 0 | J45: 0 | K45: 0 | L45: 0
A46: Sue Higgins Park | C46: 600000 | D46: 0 | E46: 0 | F46: 0 | G46: 0 | H46: 0.6666666667 | I46: 0.3333333333 | J46: 0 | K46: 0 | L46: 0
A47: Tomkins Park | C47: 15000000 | D47: 0.02666666667 | E47: 0.04 | F47: 0.4 | G47: 0.3333333333 | H47: 0.2 | I47: 0 | J47: 0 | K47: 0 | L47: 0
A48: Parks Project Development Program | B48: M | C48: 9000000 | D48: 0.1111111111 | E48: 0.1111111111 | F48: 0.1111111111 | G48: 0.1111111111 | H48: 0.1111111111 | I48: 0.1111111111 | J48: 0.1111111111 | K48: 0.1111111111 | L48: 0.1111111111
A49: Parks Technology Annual Investment Plan | B49: M | C49: 4500000 | D49: 0.1333333333 | E49: 0.1111111111 | F49: 0.3333333333 | G49: 0.1111111111 | H49: 0.06222222222 | I49: 0.06222222222 | J49: 0.06222222222 | K49: 0.06222222222 | L49: 0.06222222222
A51: Service Enhancement - Primary Driver
A53: Parks and Playgrounds Amenities (PAPA) | B53: H | C53: 100182000 | D53: 0.0443073606 | E53: 0.1891357729 | F53: 0.1715397976 | G53: 0.1446367611 | H53: 0.09702341738 | I53: 0.08923758759 | J53: 0.08803976762 | K53: 0.08803976762 | L53: 0.08803976762
A54: Elliston Park Washrooms | C54: 3600000 | D54: 0.2333333333 | E54: 0.7333333333 | F54: 0.03333333333 | G54: 0 | H54: 0 | I54: 0 | J54: 0 | K54: 0 | L54: 0
A55: Kingsland Park | C55: 3000000 | D55: 0 | E55: 0 | F55: 0.2 | G55: 0.8 | H55: 0 | I55: 0 | J55: 0 | K55: 0 | L55: 0
A56: New Inclusive Playgrounds | C56: 5760000 | D56: 0 | E56: 0.125 | F56: 0.125 | G56: 0.125 | H56: 0.125 | I56: 0.125 | J56: 0.125 | K56: 0.125 | L56: 0.125
A57: R.B. Bennet School Redevelopment | C57: 2400000 | D57: 0 | E57: 0.1 | F57: 0.75 | G57: 0.15 | H57: 0 | I57: 0 | J57: 0 | K57: 0 | L57: 0
A58: Rouleaville Square | C58: 3600000 | D58: 0 | E58: 0 | F58: 1 | G58: 0 | H58: 0 | I58: 0 | J58: 0 | K58: 0 | L58: 0
A59: Other Components | C59: 81822000 | D59: 0.04207670309 | E59: 0.2088435873 | F59: 0.2100315319 | G59: 0.1770917357 | H59: 0.1187944563 | I59: 0.1092615678 | J59: 0.1077949696 | K59: 0.1077949696 | L59: 0.1077949696
A60: Park Site Event Upgrades | B60: L | C60: 10050000 | D60: 0 | E60: 1.388888889e-06 | F60: 0 | G60: 0 | H60: 0 | I60: 0 | J60: 0 | K60: 0 | L60: 0
A62: Growth - Primary Driver
A64: Cemetery Development | B64: M | C64: 42800000 | D64: 0.005841121495 | E64: 0.2336448598 | F64: 0.03621495327 | G64: 0.6308411215 | H64: 0.04672897196 | I64: 0.04672897196 | J64: 0 | K64: 0 | L64: 0
A65: Park Delivery 1 - Development of New Regional Parks | B65: M | C65: 295100000 | D65: 0.08641138597 | E65: 0.07793968146 | F65: 0.06980684514 | G65: 0.1448661471 | H65: 0.1719756015 | I65: 0.1670620129 | J65: 0.129786513 | K65: 0.08641138597 | L65: 0.06574042697
A66: Bearspaw Reservoir Park | C66: 3850000 | D66: 0 | E66: 0 | F66: 0 | G66: 0.1948051948 | H66: 0.6493506494 | I66: 0.07792207792 | J66: 0.07792207792 | K66: 0 | L66: 0
A67: Haskayne Regional Pk (wayfinding + improvements) | C67: 30000000 | D67: 0.03333333333 | E67: 0.1333333333 | F67: 0.1 | G67: 0.08333333333 | H67: 0.2 | I67: 0.1666666667 | J67: 0.1666666667 | K67: 0.1166666667 | L67: 0
A68: Medicine Hill Interpretive Centre | C68: 8250000 | D68: 0 | E68: 0.1212121212 | F68: 0.2424242424 | G68: 0.6060606061 | H68: 0.0303030303 | I68: 0 | J68: 0 | K68: 0 | L68: 0
A69: Medicine Hill Reg'l Park | C69: 30000000 | D69: 0.06666666667 | E69: 0.1166666667 | F69: 0.1666666667 | G69: 0.25 | H69: 0.2666666667 | I69: 0.06666666667 | J69: 0.03333333333 | K69: 0.03333333333 | L69: 0
A70: MOBS Site | C70: 40000000 | D70: 0 | E70: 0 | F70: 0.0025 | G70: 0.025 | H70: 0.05 | I70: 0.375 | J70: 0.375 | K70: 0.15 | L70: 0.0225
A71: North Central Regional Park | C71: 31000000 | D71: 0 | E71: 0.01612903226 | F71: 0.01612903226 | G71: 0.2580645161 | H71: 0.3870967742 | I71: 0.2258064516 | J71: 0.08064516129 | K71: 0.01612903226 | L71: 0
A72: Nose Creek Regional Park | C72: 40000000 | D72: 0.0375 | E72: 0.0375 | F72: 0.05 | G72: 0.25 | H72: 0.25 | I72: 0.25 | J72: 0.05 | K72: 0.05 | L72: 0.025
A73: Open Space Acquisition | C73: 67500000 | D73: 0.1111111111 | E73: 0.1111111111 | F73: 0.1111111111 | G73: 0.1111111111 | H73: 0.1111111111 | I73: 0.1111111111 | J73: 0.1111111111 | K73: 0.1111111111 | L73: 0.1111111111
A74: Priddis Slough | C74: 25000000 | D74: 0 | E74: 0 | F74: 0 | G74: 0 | H74: 0.1 | I74: 0.1 | J74: 0.2 | K74: 0.2 | L74: 0.4
A75: Seton Regional | C75: 19500000 | D75: 0.6923076923 | E75: 0.2564102564 | F75: 0.02564102564 | G75: 0.02564102564 | H75: 0 | I75: 0 | J75: 0 | K75: 0 | L75: 0
A76: Urban Forestry - MDP Target | B76: M | C76: 99327409 | D76: 0.184656795 | E76: 0.1326873532 | F76: 0.09986660379 | G76: 0.09986660379 | H76: 0.09986660379 | I76: 0.09986660379 | J76: 0.09986660379 | K76: 0.09166141644 | L76: 0.09166141644
A77: Cemeteries Land Fund | B77: L | C77: 30000000 | D77: 0.3333333333 | E77: 0 | F77: 0 | G77: 0 | H77: 0 | I77: 0 | J77: 0 | K77: 0 | L77: 0.6666666667
A78: North Cemetery | B78: L | C78: 60000000 | D78: 0 | E78: 0.008333333333 | F78: 0.008333333333 | G78: 0.01666666667 | H78: 0 | I78: 0.08333333333 | J78: 0.3333333333 | K78: 0.55 | L78: 0
A80: Total Capital Infrastructure Needs - Parks & Urban Forestry | C80: 1516629185
A84: ICS: Unrestricted

Sheet Roads & Pathways
A1: Appendix B: Capital Infrastructure Needs - Roads & Pathways
A2: The values presented reflect identified capital needs and have been rounded to the nearest million for presentation purposes. These capital needs have not received approved budget and will be considered for future business cycles. The majority of the 10-year capital investments are foundational in nature and have been prioritized as High, reflecting the essential funding required to sustain current service levels, meet regulatory and safety obligations, and manage core operational risks. These investments establish the baseline level of service and define the essential capital required to maintain system reliability over time. A smaller number of investments are prioritized as Medium, representing instances where opportunities existed to scale back, defer, or modify scope while still maintaining acceptable service and risk outcomes. All values are presented in 2025 dollars, with estimates prepared as of January 2026. Further refinements and adjustments are expected through the development of the 2027–2030 Budget and the 10-Year Capital Infrastructure Plan.
B3: Legend (% of capital $ per opportunity item) | G3: Critical Assets in Poor / Very Poor Condition
B4: 1% ~ 10% | H4: Severe Consequence of Failure
B5: 11% ~ 25% | H5: High Consequence of Failure
B6: 25% +
A8: Appendix B: Capital Infrastructure Needs | B8: Priority (H / M / L) | C8: Total
A9: ($millions) | C9: 2027-2035+ | D9: 2027 | E9: 2028 | F9: 2029 | G9: 2030 | H9: 2031 | I9: 2032 | J9: 2033 | K9: 2034 | L9: 2035+
A11: Maintenance - Primary Driver
A13: Brentwood Station and Crowchild Trail Interchange Improvements | B13: H | C13: 10 | D13: 0 | E13: 0 | F13: 0 | G13: 0 | H13: 1 | I13: 0 | J13: 0 | K13: 0 | L13: 0
A14: Bridge Lifecycle | B14: H | C14: 440 | D14: 0.1477272727 | E14: 0.1295454545 | F14: 0.2772727273 | G14: 0.08409090909 | H14: 0.05 | I14: 0.05 | J14: 0.05 | K14: 0.05 | L14: 0.1613636364
A15: 15 Street NE / Nose Creek Bridge Rehabilitation and Renewal | C15: 25 | D15: 1 | E15: 0 | F15: 0 | G15: 0 | H15: 0 | I15: 0 | J15: 0 | K15: 0 | L15: 0
A16: Cushing Bridge Replacement | C16: 70 | D16: 0 | E16: 0.2142857143 | F16: 0.7857142857 | G16: 0 | H16: 0 | I16: 0 | J16: 0 | K16: 0 | L16: 0
A17: MacDonald Bridge Replacement | C17: 35 | D17: 0 | E17: 0.1428571429 | F17: 0.8571428571 | G17: 0 | H17: 0 | I17: 0 | J17: 0 | K17: 0 | L17: 0
A18: Mountain View Road Creek Crossing / Symons Valley Road Realignment and Bridge Replacement | C18: 42 | D18: 0.3571428571 | E18: 0.3571428571 | F18: 0.3571428571 | G18: 0.3571428571 | H18: 0 | I18: 0 | J18: 0 | K18: 0 | L18: 0
A19: Other Capital Investments | C19: 268 | D19: 0.09328358209 | E19: 0.08208955224 | F19: 0.08208955224 | G19: 0.08208955224 | H19: 0.08208955224 | I19: 0.08208955224 | J19: 0.08208955224 | K19: 0.08208955224 | L19: 0.2649253731
A20: Build Back Better - Pathways & Repaving | B20: H | C20: 80 | D20: 0.1 | E20: 0.1 | F20: 0.1 | G20: 0.1 | H20: 0.1 | I20: 0.1 | J20: 0.1 | K20: 0.1 | L20: 0.2
A21: 20 Ave N (6 St E - 4 St W) | C21: 10 | D21: 0.1 | E21: 0.3 | F21: 0.5 | G21: 0.08 | H21: 0.02 | I21: 0 | J21: 0 | K21: 0 | L21: 0
A22: 28 St NE (or similar) | C22: 10 | D22: 0 | E22: 0 | F22: 0.02 | G22: 0.05 | H22: 0.5 | I22: 0.4 | J22: 0.03 | K22: 0 | L22: 0
A23: 80 Ave NE (or similar) | C23: 5 | D23: 0 | E23: 0.1 | F23: 0.8 | G23: 0.08 | H23: 0.02 | I23: 0 | J23: 0 | K23: 0 | L23: 0
A24: 90 Acadia Drive SE (Macleod - Anderson) | C24: 18 | D24: 0.3888888889 | E24: 0.4444444444 | F24: 0.1388888889 | G24: 0.01388888889 | H24: 0.01388888889 | I24: 0 | J24: 0 | K24: 0 | L24: 0
A25: Country Hills Blvd (segments) | C25: 10 | D25: 0 | E25: 0.01 | F25: 0.1 | G25: 0.3 | H25: 0.5 | I25: 0.07 | J25: 0.02 | K25: 0 | L25: 0
A26: Other Capital Investments | C26: 27 | D26: 0.03703703704 | E26: 0.07407407407 | F26: 0.1666666667 | G26: 0.2222222222 | H26: 0.137037037 | I26: 0.1851851852 | J26: 0.09259259259 | K26: 0.08518518519 | L26: 0
A27: Citywide Growth – Established Area Public Realm Enhancements | B27: H | C27: 75 | D27: 0 | E27: 0.2 | F27: 0 | G27: 0.2 | H27: 0 | I27: 0.2 | J27: 0 | K27: 0.2 | L27: 0.2
A28: Concrete Rehabilitation | B28: H | C28: 278 | D28: 0.1 | E28: 0.1 | F28: 0.1 | G28: 0.1 | H28: 0.1 | I28: 0.1 | J28: 0.1 | K28: 0.1 | L28: 0.2
A29: Encampment Fire Protection – Bridge Infrastructure | B29: H | C29: 3 | D29: 0.5 | E29: 0.5 | F29: 0 | G29: 0 | H29: 0 | I29: 0 | J29: 0 | K29: 0 | L29: 0
A30: Functional Planning Studies Program | B30: H | C30: 25 | D30: 0.1 | E30: 0.1 | F30: 0.1 | G30: 0.1 | H30: 0.1 | I30: 0.1 | J30: 0.1 | K30: 0.1 | L30: 0.2
A31: Glenmore Trail SW Multi-Modal Corridor Improvements | B31: H | C31: 302 | D31: 0.004975124378 | E31: 0 | F31: 0 | G31: 0 | H31: 0.9950248756 | I31: 0 | J31: 0 | K31: 0 | L31: 0
A32: Greyhound Pedestrian Overpass Replacement | B32: H | C32: 10 | D32: 0.1052631579 | E32: 0.6842105263 | F32: 0.2105263158 | G32: 0 | H32: 0 | I32: 0 | J32: 0 | K32: 0 | L32: 0
A33: Hillsides Program – Slope Remediation | B33: H | C33: 120 | D33: 0.1 | E33: 0.1 | F33: 0.1 | G33: 0.1 | H33: 0.1 | I33: 0.1 | J33: 0.1 | K33: 0.1 | L33: 0.2
A34: Center Street and 7th Avenue Slope Stability Project | C34: 2 | D34: 0.5 | E34: 0.5 | F34: 0 | G34: 0 | H34: 0 | I34: 0 | J34: 0 | K34: 0 | L34: 0
A35: Douglas Fir Trail #3 Slope Project | C35: 16 | D35: 0.3125 | E35: 0.03125 | F35: 0.625 | G35: 0.0125 | H35: 0.0125 | I35: 0.00625 | J35: 0 | K35: 0 | L35: 0
A36: Douglas Fir Trail #4/Douglas Fir Trail West Slope Project | C36: 30 | D36: 0.33 | E36: 0.43 | F36: 0.06 | G36: 0.03 | H36: 0.03 | I36: 0.03 | J36: 0.03 | K36: 0.03 | L36: 0.03
A37: Edworthy Park Access Road Slope Project | C37: 10 | D37: 0.33 | E37: 0.43 | F37: 0.06 | G37: 0.03 | H37: 0.03 | I37: 0.03 | J37: 0.03 | K37: 0.03 | L37: 0.03
A38: Klippert/Home Road Escarpment Slope Stability Project | C38: 22 | D38: 0.009090909091 | E38: 0.009090909091 | F38: 0.4545454545 | G38: 0.4545454545 | H38: 0.03636363636 | I38: 0.009090909091 | J38: 0.009090909091 | K38: 0.009090909091 | L38: 0.009090909091
A39: Mount Alberta View Slope Project | C39: 10 | D39: 0.3 | E39: 0.4 | F39: 0.1 | G39: 0.1 | H39: 0.1 | I39: 0 | J39: 0 | K39: 0 | L39: 0
A40: Other Capital Investments | C40: 30 | D40: 0.1 | E40: 0.1 | F40: 0.1 | G40: 0.1 | H40: 0.2 | I40: 0.1 | J40: 0.1 | K40: 0.1 | L40: 0.1
A41: Macleod Trail At-Grade Crossing & Bridge Lifecycle Decommissioning | B41: H | C41: 1 | D41: 1 | E41: 0 | F41: 0 | G41: 0 | H41: 0 | I41: 0 | J41: 0 | K41: 0 | L41: 0
A42: Major Road Reconstruction | B42: H | C42: 90 | D42: 0.1 | E42: 0.1 | F42: 0.1 | G42: 0.1 | H42: 0.1 | I42: 0.1 | J42: 0.1 | K42: 0.1 | L42: 0.1
A43: Mobility Facilities and Depots | B43: H | C43: 78 | D43: 0 | E43: 0.0641025641 | F43: 0.1169871795 | G43: 0.1169871795 | H43: 0.1169871795 | I43: 0.1169871795 | J43: 0.1169871795 | K43: 0.1169871795 | L43: 0.233974359
A44: Mobility Infrastructure Lifecycle | B44: H | C44: 32 | D44: 0.15625 | E44: 0.15625 | F44: 0.15625 | G44: 0.15625 | H44: 0.0625 | I44: 0.0625 | J44: 0.0625 | K44: 0.0625 | L44: 0.125
A45: Pathways and Trails Lifecycle | B45: H | C45: 40 | D45: 0.1 | E45: 0.1 | F45: 0.1 | G45: 0.1 | H45: 0.1 | I45: 0.1 | J45: 0.1 | K45: 0.1 | L45: 0.2
A46: Pavement Rehabilitation Program | B46: H | C46: 1408 | D46: 0.1 | E46: 0.1 | F46: 0.1 | G46: 0.1 | H46: 0.1 | I46: 0.1 | J46: 0.1 | K46: 0.1 | L46: 0.2
A47: Pedestrian Bridge Lifecycle Program | B47: H | C47: 140.75 | D47: 0.0568383659 | E47: 0.09946714032 | F47: 0.1207815275 | G47: 0.1207815275 | H47: 0.2202486679 | I47: 0.3907637655 | J47: 0 | K47: 0 | L47: 0
A48: 14 Avenue Northwest Pedestrian Bridge Stairway Rehabilitation over Crowchild Trail | C48: 0.75 | D48: 1.333333333 | E48: 0 | F48: 0 | G48: 0 | H48: 0 | I48: 0 | J48: 0 | K48: 0 | L48: 0
A49: Bridgeland Pedestrian Bridge | C49: 25 | D49: 0 | E49: 0 | F49: 0 | G49: 0.2 | H49: 0.8 | I49: 0 | J49: 0 | K49: 0 | L49: 0
A50: Bridlewood Wetlands Bridge and Boardwalk Replacement | C50: 8 | D50: 0.125 | E50: 0.125 | F50: 0.75 | G50: 0.125 | H50: 0 | I50: 0 | J50: 0 | K50: 0 | L50: 0
A51: Weaselhead Pathway South Bridge Replacement | C51: 7 | D51: 0.1428571429 | E51: 0.8571428571 | F51: 0 | G51: 0 | H51: 0 | I51: 0 | J51: 0 | K51: 0 | L51: 0
A52: Other Capital Investments | C52: 100 | D52: 0.05 | E52: 0.07 | F52: 0.11 | G52: 0.11 | H52: 0.11 | I52: 0.55 | J52: 0 | K52: 0 | L52: 0
A53: Plants Capital | B53: H | C53: 126 | D53: 0.01587301587 | E53: 0.03174603175 | F53: 0.2857142857 | G53: 0.01587301587 | H53: 0.5714285714 | I53: 0.01587301587 | J53: 0.01587301587 | K53: 0.01587301587 | L53: 0.03174603175
A54: Railway Crossings | B54: H | C54: 10 | D54: 0.1 | E54: 0.1 | F54: 0.1 | G54: 0.1 | H54: 0.1 | I54: 0.1 | J54: 0.1 | K54: 0.1 | L54: 0.2
A55: Retaining Wall Replacement Program | B55: H | C55: 58 | D55: 0.1 | E55: 0.1 | F55: 0.1 | G55: 0.1 | H55: 0.1 | I55: 0.1 | J55: 0.1 | K55: 0.1 | L55: 0.2
A56: Safety Barriers and Fencing Lifecycle | B56: H | C56: 30 | D56: 0.1 | E56: 0.1 | F56: 0.1 | G56: 0.1 | H56: 0.1 | I56: 0.1 | J56: 0.1 | K56: 0.1 | L56: 0.2
A57: Shepard Snow Storage Site | B57: H | C57: 25 | D57: 0.8 | E57: 0.2 | F57: 0 | G57: 0 | H57: 0 | I57: 0 | J57: 0 | K57: 0 | L57: 0
A58: Sound Wall Lifecycle | B58: H | C58: 100 | D58: 0.1 | E58: 0.1 | F58: 0.1 | G58: 0.1 | H58: 0.1 | I58: 0.1 | J58: 0.1 | K58: 0.1 | L58: 0.2
A59: Street Light Lifecycle and System Upgrades | B59: H | C59: 165 | D59: 0.1 | E59: 0.1 | F59: 0.1 | G59: 0.1 | H59: 0.1 | I59: 0.1 | J59: 0.1 | K59: 0.1 | L59: 0.2
A60: Traffic and Pedestrian Signal Lifecycle Program | B60: H | C60: 125 | D60: 0.1 | E60: 0.1 | F60: 0.1 | G60: 0.1 | H60: 0.1 | I60: 0.1 | J60: 0.1 | K60: 0.1 | L60: 0.2
A61: Transformer Relay Safety Replacement - High Risk Task Program | B61: H | C61: 25 | D61: 0.1 | E61: 0.1 | F61: 0.1 | G61: 0.1 | H61: 0.1 | I61: 0.1 | J61: 0.1 | K61: 0.1 | L61: 0.2
A62: 8 Street SW Underpass – Railing Replacement | B62: M | C62: 1 | D62: 1 | E62: 0 | F62: 0 | G62: 0 | H62: 0 | I62: 0 | J62: 0 | K62: 0 | L62: 0
A63: Signal Communications | B63: M | C63: 15 | D63: 0.1 | E63: 0.1 | F63: 0.1 | G63: 0.1 | H63: 0.1 | I63: 0.1 | J63: 0.1 | K63: 0.1 | L63: 0.2
A64: Timber Stair Replacement | B64: M | C64: 30 | D64: 0.1 | E64: 0.1 | F64: 0.1 | G64: 0.1 | H64: 0.1 | I64: 0.1 | J64: 0.1 | K64: 0.1 | L64: 0.2
A65: Ditch Reconstruction | B65: L | C65: 3 | D65: 0.1 | E65: 0.1 | F65: 0.1 | G65: 0.1 | H65: 0.1 | I65: 0.1 | J65: 0.1 | K65: 0.1 | L65: 0.2
A66: Gravel Road and Alley Renewal | B66: L | C66: 4 | D66: 0.1 | E66: 0.1 | F66: 0.1 | G66: 0.1 | H66: 0.1 | I66: 0.1 | J66: 0.1 | K66: 0.1 | L66: 0.2
A67: Road Upgrade Program | B67: L | C67: 70 | D67: 0.1 | E67: 0.1 | F67: 0.1 | G67: 0.1 | H67: 0.1 | I67: 0.1 | J67: 0.1 | K67: 0.1 | L67: 0.2
A69: Service Enhancement - Primary Driver
A71: 12 Ave SE Redevelopment Plan supporting the Event Centre | B71: H | C71: 20 | D71: 0.25 | E71: 0.75 | F71: 0 | G71: 0 | H71: 0 | I71: 0 | J71: 0 | K71: 0 | L71: 0
A72: 17 Avenue and Sirocco Drive SW Pedestrian Overpass | B72: H | C72: 20 | D72: 0 | E72: 0 | F72: 0 | G72: 0 | H72: 1 | I72: 0 | J72: 0 | K72: 0 | L72: 0
A73: Bow Trail to Spruce Drive / Edworthy Park Connection | B73: H | C73: 2 | D73: 0 | E73: 1 | F73: 0 | G73: 0 | H73: 0 | I73: 0 | J73: 0 | K73: 0 | L73: 0
A74: Calgary Pathway Program | B74: H | C74: 120 | D74: 0.1 | E74: 0.1 | F74: 0.1 | G74: 0.1 | H74: 0.1 | I74: 0.1 | J74: 0.1 | K74: 0.1 | L74: 0.2
A75: Pipeline development for 2031 - 2034 | C75: 3 | D75: 0.1 | E75: 0.1 | F75: 0.1 | G75: 0.1 | H75: 0.1 | I75: 0.1 | J75: 0.1 | K75: 0.1 | L75: 0.2
A76: SW Neighbourhood Bikeway - Phase 1 | C76: 12 | D76: 0.1666666667 | E76: 0.1666666667 | F76: 0.1666666667 | G76: 0.1666666667 | H76: 0.1666666667 | I76: 0.1666666667 | J76: 0 | K76: 0 | L76: 0
A77: Ward 10 Connections - Phase 1 | C77: 12 | D77: 0.0625 | E77: 0.25 | F77: 0.25 | G77: 0.25 | H77: 0.125 | I77: 0.03333333333 | J77: 0.02916666667 | K77: 0 | L77: 0
A78: Ward 5 Connections - Phase 2 | C78: 12 | D78: 0.0625 | E78: 0.25 | F78: 0.25 | G78: 0.25 | H78: 0.125 | I78: 0.03333333333 | J78: 0.02916666667 | K78: 0 | L78: 0
A79: Ward 9 Street Enhancement - Phase 1 | C79: 12 | D79: 0.25 | E79: 0.25 | F79: 0.25 | G79: 0.125 | H79: 0.08333333333 | I79: 0.04166666667 | J79: 0 | K79: 0 | L79: 0
A80: Other Capital Investments | C80: 69 | D80: 0.0625 | E80: 0.25 | F80: 0.25 | G80: 0.25 | H80: 0.125 | I80: 0.03333333333 | J80: 0.02916666667 | K80: 0 | L80: 0
A81: Calgary Pathway Program Design Development | B81: H | C81: 8 | D81: 0.1 | E81: 0.1 | F81: 0.1 | G81: 0.1 | H81: 0.1 | I81: 0.1 | J81: 0.1 | K81: 0.1 | L81: 0.2
A82: Centre Street North Streetscape | B82: H | C82: 50 | D82: 0 | E82: 0 | F82: 0.5 | G82: 0.5 | H82: 0 | I82: 0 | J82: 0 | K82: 0 | L82: 0
A83: Coordinated Deerfoot Crossing Improvements at 32 Ave N | B83: H | C83: 20 | D83: 0.025 | E83: 0.025 | F83: 0.1 | G83: 0.25 | H83: 0.35 | I83: 0.2 | J83: 0.025 | K83: 0.025 | L83: 0
A84: Glenmore Trail and Richard Road SW Interchange | B84: H | C84: 50 | D84: 0 | E84: 0 | F84: 0 | G84: 0 | H84: 1 | I84: 0 | J84: 0 | K84: 0 | L84: 0
A85: John Laurie Boulevard Corridor Study (Shaganappi Trail to McKnight Boulevard) | B85: H | C85: 3 | D85: 0 | E85: 0 | F85: 0 | G85: 0 | H85: 0 | I85: 0 | J85: 0 | K85: 0 | L85: 1
A86: Metis Trail Widening (North of 64 Avenue NE to Stoney Trail) | B86: H | C86: 5 | D86: 0 | E86: 0 | F86: 0 | G86: 0 | H86: 0 | I86: 0 | J86: 0 | K86: 1 | L86: 0
A87: Mobility Network Gaps – Program 204 (Growth Timing) | B87: H | C87: 50 | D87: 0 | E87: 0.1 | F87: 0.1 | G87: 0.1 | H87: 0.1 | I87: 0.1 | J87: 0.1 | K87: 0.1 | L87: 0.3
A88: Mobility Safety Improvements Program | B88: H | C88: 100 | D88: 0.1 | E88: 0.1 | F88: 0.1 | G88: 0.1 | H88: 0.1 | I88: 0.1 | J88: 0.1 | K88: 0.1 | L88: 0.2
A89: New Traffic Signals and Pedestrian Signals | B89: H | C89: 35 | D89: 0.1 | E89: 0.1 | F89: 0.1 | G89: 0.1 | H89: 0.1 | I89: 0.1 | J89: 0.1 | K89: 0.1 | L89: 0.2
A90: Operational Improvements and Congestion Management | B90: H | C90: 60 | D90: 0.1 | E90: 0.1 | F90: 0.1 | G90: 0.1 | H90: 0.1 | I90: 0.1 | J90: 0.1 | K90: 0.1 | L90: 0.2
A91: Rocky Ridge Boardwalk Decking Replacement | B91: H | C91: 2 | D91: 1 | E91: 0 | F91: 0 | G91: 0 | H91: 0 | I91: 0 | J91: 0 | K91: 0 | L91: 0
A92: Technology Improvements | B92: H | C92: 10 | D92: 0.1 | E92: 0.1 | F92: 0.1 | G92: 0.1 | H92: 0.1 | I92: 0.1 | J92: 0.1 | K92: 0.1 | L92: 0.2
A93: Transportation Infrastructure Investment Plan – Local Area Plan (LAP) Mobility Implementation | B93: H | C93: 20 | D93: 0 | E93: 0.1 | F93: 0.1 | G93: 0.1 | H93: 0.1 | I93: 0.1 | J93: 0.1 | K93: 0.1 | L93: 0.3
A94: Various Street Improvements | B94: H | C94: 5 | D94: 0.1 | E94: 0.1 | F94: 0.1 | G94: 0.1 | H94: 0.1 | I94: 0.1 | J94: 0.1 | K94: 0.1 | L94: 0.2
A95: 128 Avenue NE (Deerfoot Trail to Stoney Trail) (Segment B - 128 Ave NE to west of Deerfoot Trail) | B95: M | C95: 18 | D95: 0 | E95: 0.3333333333 | F95: 0.6666666667 | G95: 0 | H95: 0 | I95: 0 | J95: 0 | K95: 0 | L95: 0
A96: 128 Avenue NE Interchange (Deerfoot Trail to Stoney Trail) (Segment C - Stoney Drive NE to Barlow Trail NE) | B96: M | C96: 131 | D96: 0 | E96: 0 | F96: 0 | G96: 0 | H96: 0 | I96: 0 | J96: 0 | K96: 0 | L96: 1
A97: Airport Trail Pedestrian Overpass (East of Metis Trail) | B97: M | C97: 11 | D97: 0 | E97: 0 | F97: 0 | G97: 0 | H97: 0 | I97: 1 | J97: 0 | K97: 0 | L97: 0
A98: Discovery Ridge Emergency Access Improvements (Placeholder) | B98: M | C98: 0 | D98: 0 | E98: 0 | F98: 0 | G98: 0 | H98: 0 | I98: 0 | J98: 0 | K98: 0 | L98: 0
A99: East Riverside and 12 Street NE Transportation Upgrades | B99: M | C99: 6 | D99: 0 | E99: 0.09090909091 | F99: 0.9090909091 | G99: 0 | H99: 0 | I99: 0 | J99: 0 | K99: 0 | L99: 0
A100: Missing Sidewalks Program | B100: M | C100: 30 | D100: 0.1 | E100: 0.1 | F100: 0.1 | G100: 0.1 | H100: 0.1 | I100: 0.5 | J100: 0 | K100: 0 | L100: 0
A101: Mobility Accessibility Improvements | B101: M | C101: 25 | D101: 0.1 | E101: 0.1 | F101: 0.1 | G101: 0.1 | H101: 0.1 | I101: 0.1 | J101: 0.1 | K101: 0.1 | L101: 0.2
A102: Next Generation Mobility / Intelligent Transportation Systems (ITS) | B102: M | C102: 35 | D102: 0.1 | E102: 0.1 | F102: 0.1 | G102: 0.1 | H102: 0.1 | I102: 0.1 | J102: 0.1 | K102: 0.1 | L102: 0.2
A103: Noise Barrier Retrofit Program | B103: M | C103: 40 | D103: 0.227 | E103: 0.077 | F103: 0.077 | G103: 0.077 | H103: 0.077 | I103: 0.095 | J103: 0.095 | K103: 0.095 | L103: 0.18
A104: Pre-engineering Studies | B104: M | C104: 20 | D104: 0.1 | E104: 0.1 | F104: 0.1 | G104: 0.1 | H104: 0.1 | I104: 0.1 | J104: 0.1 | K104: 0.1 | L104: 0.2
A105: Richmond Road and Sarcee Trail SW Interchange | B105: M | C105: 106 | D105: 0.25 | E105: 0.25 | F105: 0.25 | G105: 0.25 | H105: 0 | I105: 0 | J105: 0 | K105: 0 | L105: 0
A106: Safer Collectors - Speed Management | B106: M | C106: 90 | D106: 0.1111111111 | E106: 0.1111111111 | F106: 0.1111111111 | G106: 0.1111111111 | H106: 0.1111111111 | I106: 0.1111111111 | J106: 0.1111111111 | K106: 0.1111111111 | L106: 0.1111111111
A107: Sarcee Trail Corridor Widening | B107: M | C107: 10 | D107: 0 | E107: 0 | F107: 0 | G107: 0 | H107: 0 | I107: 1 | J107: 0 | K107: 0 | L107: 0
A108: 16 Avenue NW Corridor Improvements: Shaganappi Trail to Crowchild Trail | B108: L | C108: 4 | D108: 0 | E108: 0 | F108: 0 | G108: 0 | H108: 0 | I108: 1 | J108: 0 | K108: 0 | L108: 0
A109: 52 Street SE Widening: Peigan Trail to 17 Avenue SE | B109: L | C109: 6 | D109: 0 | E109: 0 | F109: 0 | G109: 0 | H109: 0 | I109: 0 | J109: 0 | K109: 0 | L109: 1
A110: Airport Trail and 60 Street Northeast Interchange Improvements | B110: L | C110: 154 | G110: 0 | H110: 0.3333333333 | I110: 0.3333333333 | J110: 0.3333333333 | K110: 0 | L110: 0
A111: Bow Trail Widening: Sarcee Trail to 37 Street SW | B111: L | C111: 25 | D111: 0 | E111: 0 | F111: 0 | G111: 0 | H111: 0 | I111: 0.48 | J111: 0.52 | K111: 0 | L111: 0
A112: Future Land Acquisition Program | B112: L | C112: 50 | D112: 0.1 | E112: 0.1 | F112: 0.1 | G112: 0.1 | H112: 0.1 | I112: 0.1 | J112: 0.1 | K112: 0.1 | L112: 0.2
A113: Glenmore Trail and 68 Street SE Interchange | B113: L | C113: 120 | D113: 0 | E113: 0 | F113: 0 | G113: 0 | H113: 0.25 | I113: 0.25 | J113: 0.25 | K113: 0.25 | L113: 0
A114: Missing Pathways and Trail Conversions Program | B114: L | C114: 20 | D114: 0.1 | E114: 0.1 | F114: 0.1 | G114: 0.1 | H114: 0.1 | I114: 0.5 | J114: 0 | K114: 0 | L114: 0
A115: Pathway Lighting and Safety Improvements | B115: L | C115: 9 | D115: 0.1 | E115: 0.1 | F115: 0.1 | G115: 0.1 | H115: 0.1 | I115: 0.5 | J115: 0 | K115: 0 | L115: 0
A117: Growth - Primary Driver
A119: 16 Avenue and 68 Street NE Interchange | B119: H | C119: 90 | D119: 0 | E119: 0 | F119: 0 | G119: 0 | H119: 0 | I119: 0 | K119: 0 | L119: 1
A120: 16 Avenue NE Interchanges at Barlow Trail and 19 Street NE | B120: H | C120: 72 | D120: 0.25 | E120: 0.25 | F120: 0.25 | G120: 0.25 | H120: 0 | I120: 0 | J120: 0 | K120: 0 | L120: 0
A121: 194 Avenue S and Macleod Trail Interchange | B121: H | C121: 129 | D121: 0.25 | E121: 0.25 | F121: 0.25 | G121: 0.25 | H121: 0 | I121: 0 | J121: 0 | K121: 0 | L121: 0
A122: 50 Avenue SE Extension: Blackfoot Connector to 11 Street SE | B122: H | C122: 20 | D122: 0 | E122: 0 | F122: 1 | G122: 0 | H122: 0 | I122: 0 | J122: 0 | K122: 0 | L122: 0
A123: Airport Trail Widening (60 St to 68 St NE) | B123: H | C123: 25 | D123: 0.25 | E123: 0.25 | F123: 0.25 | G123: 0.25 | H123: 0 | I123: 0 | J123: 0 | K123: 0 | L123: 0
A124: Country Hills Boulevard Widening (Coventry Blvd to Barlow Trail) | B124: H | C124: 135 | D124: 0.25 | E124: 0.25 | F124: 0.25 | G124: 0.25 | H124: 0 | I124: 0 | J124: 0 | K124: 0 | L124: 0
A125: Crowchild Trail Medium Term Improvements Phase 1 (5 Ave NW, 16 Ave NW, 24 Ave NW Interchanges) | B125: H | C125: 112 | D125: 0.25 | E125: 0.25 | F125: 0.25 | G125: 0.25 | H125: 0 | I125: 0 | J125: 0 | K125: 0 | L125: 0
A126: Deerfoot Trail Downstream Impacts Program | B126: H | C126: 25 | D126: 0.25 | E126: 0.25 | F126: 0.25 | G126: 0.25 | H126: 0 | I126: 0 | J126: 0 | K126: 0 | L126: 0
A127: Glenmore Trail and 52 Street SE Interchange | B127: H | C127: 109 | D127: 0.25 | E127: 0.25 | F127: 0.25 | G127: 0.25 | H127: 0 | I127: 0 | J127: 0 | K127: 0 | L127: 0
A128: Glenmore Trail and Barlow Trail SE Interchange | B128: H | C128: 44 | D128: 0.25 | E128: 0.25 | F128: 0.25 | G128: 0.25 | H128: 0 | I128: 0 | J128: 0 | K128: 0 | L128: 0
A129: Highway 1 and 133 Street NW Half Interchange | B129: H | C129: 74 | D129: 0.09999435135 | E129: 0.3472222162 | F129: 0.4861111081 | G129: 0.06667232432 | H129: 0 | I129: 0 | J129: 0 | K129: 0 | L129: 0
A130: Local Area Investment Fund | B130: H | C130: 75 | D130: 0.1 | E130: 0.1 | F130: 0.1 | G130: 0.1 | H130: 0.1 | I130: 0.1 | J130: 0.1 | K130: 0.1 | L130: 0.2
A131: Riley - Park - TBD | C131: 5 | D131: 0 | E131: 0 | F131: 0 | G131: 0 | H131: 0.2 | I131: 0.6 | J131: 0.2 | K131: 0 | L131: 0
A132: Chinook - 58 Ave SW Design | C132: 2 | D132: 0 | E132: 0 | F132: 0 | G132: 0 | H132: 1 | I132: 0 | J132: 0 | K132: 0 | L132: 0
A133: Chinook - Park - TBD | C133: 3 | D133: 0 | E133: 0 | F133: 0 | G133: 0 | H133: 0.3333333333 | I133: 0.6666666667 | J133: 0.3333333333 | K133: 0 | L133: 0
A134: South Shaganappi - Park & Pathway - TBD | C134: 5 | D134: 0 | E134: 0 | F134: 0 | G134: 0 | H134: 0.2 | I134: 0.5 | J134: 0.2 | K134: 0 | L134: 0
A135: West Elbow - 5 St SW | C135: 1 | D135: 0 | E135: 0 | F135: 0 | G135: 0 | H135: 1 | I135: 0 | J135: 0 | K135: 0 | L135: 0
A136: Other Capital Investments | C136: 59 | D136: 0.1271186441 | E136: 0.1271186441 | F136: 0.1271186441 | G136: 0.1271186441 | H136: 0.02542372881 | I136: 0 | J136: 0.07627118644 | K136: 0.1271186441 | L136: 0.2542372881
A137: Main Streets Program Enhancements | B137: H | C137: 400 | D137: 0.1 | E137: 0.1 | F137: 0.1 | G137: 0.1 | H137: 0.1 | I137: 0.1 | J137: 0.1 | K137: 0.1 | L137: 0.2
A138: McKnight Boulevard and 12 Street NE Improvements | B138: H | C138: 4 | D138: 0 | E138: 0.5 | F138: 0.5 | G138: 0 | H138: 0 | I138: 0 | J138: 0 | K138: 0 | L138: 0
A139: Mobility Network Planning Studies | B139: H | C139: 10 | D139: 0 | E139: 0.1 | F139: 0.1 | G139: 0.1 | H139: 0.1 | I139: 0.1 | J139: 0.1 | K139: 0.1 | L139: 0.3
A140: New Pedestrian Bridge Program | B140: H | C140: 160.5 | D140: 0.05607476636 | E140: 0.09968847352 | F140: 0.1744548287 | G140: 0.1433021807 | H140: 0.1869158879 | I140: 0.2118380062 | J140: 0.1121495327 | K140: 0.01869158879 | L140: 0
A141: 16 Ave NE & 28 St NE | C141: 12 | D141: 0 | E141: 0.08333333333 | F141: 0.08333333333 | G141: 0.3333333333 | H141: 0.3333333333 | I141: 0.1666666667 | J141: 0 | K141: 0 | L141: 0
A142: Bow River & 19 St NW | C142: 32 | D142: 0 | E142: 0 | F142: 0 | G142: 0.03125 | H142: 0.0625 | I142: 0.40625 | J142: 0.40625 | K142: 0.09375 | L142: 0
A143: Bow River / Bow Cr & 66 St NW | C143: 30 | D143: 0 | E143: 0 | F143: 0.03333333333 | G143: 0.06666666667 | H143: 0.4 | I143: 0.4 | J143: 0.1 | K143: 0 | L143: 0
A144: Country Hills Boulevard NE Pedestrian Bridge (West of Stoney Trail) | C144: 10.5 | D144: 0 | E144: 0 | F144: 1.047619048 | G144: 0 | H144: 0 | I144: 0 | J144: 0 | K144: 0 | L144: 0
A145: Deerfoot Trail & Anderson Drive SE | C145: 15 | D145: 0 | E145: 0.06666666667 | F145: 0.1333333333 | G145: 0.4 | H145: 0.2666666667 | I145: 0.1333333333 | J145: 0 | K145: 0 | L145: 0
A146: Deerfoot Trail & Beddington Trail NE | C146: 22 | D146: 0.04545454545 | E146: 0.09090909091 | F146: 0.3636363636 | G146: 0.3636363636 | H146: 0.1363636364 | I146: 0 | J146: 0 | K146: 0 | L146: 0
A147: Deerfoot Trail and Nose Creek / 32 Ave NE | C147: 6 | D147: 0.5 | E147: 0.3333333333 | F147: 0.1666666667 | G147: 0 | H147: 0 | I147: 0 | J147: 0 | K147: 0 | L147: 0
A148: Macleod Trail SE & Erlton LRT / MNP | C148: 15 | D148: 0 | E148: 0 | F148: 0.06666666667 | G148: 0.1333333333 | H148: 0.3333333333 | I148: 0.3333333333 | J148: 0.1333333333 | K148: 0 | L148: 0
A149: Medicine Hill Pedestrian Bridge | C149: 18 | D149: 0.2777777778 | E149: 0.5555555556 | F149: 0.1666666667 | G149: 0 | H149: 0 | I149: 0 | J149: 0 | K149: 0 | L149: 0
A150: Peigan Trail Widening (Barlow Trail to Stoney Trail SE) | B150: H | C150: 69 | D150: 0 | E150: 0 | F150: 0 | G150: 0.03125 | H150: 0.0625 | I150: 0.40625 | J150: 0.40625 | K150: 0.09375 | L150: 0
A151: Private Subdivision Construction – City Obligations | B151: H | C151: 4 | D151: 0 | E151: 0 | F151: 0 | G151: 0.1428571429 | H151: 0.1428571429 | I151: 0.1428571429 | J151: 0.1428571429 | K151: 0.1428571429 | L151: 0.2857142857
A152: 11 Street SW Canadian Pacific Rail Underpass | B152: M | C152: 50 | D152: 0 | E152: 0.1 | F152: 0.55 | G152: 0.35 | H152: 0 | I152: 0 | J152: 0 | K152: 0 | L152: 0
A153: 128 Avenue NE Extension (Deerfoot Trail to Stoney Trail) (Segment A - Stoney Trail to 15 Street NE) | B153: M | C153: 116 | D153: 0 | E153: 0 | F153: 0 | G153: 0 | H153: 0.25 | I153: 0.25 | J153: 0.25 | K153: 0.25 | L153: 0
A154: 52 Street SE Widening (61 Avenue SE to Peigan Trail SE) | B154: M | C154: 32 | D154: 0.25 | E154: 0.25 | F154: 0.25 | G154: 0.25 | H154: 0 | I154: 0 | J154: 0 | K154: 0 | L154: 0
A155: Beddington Trail Widening (Stoney Tr to Country Hills Blvd) | B155: M | C155: 24 | D155: 0 | E155: 0 | F155: 0 | G155: 0 | H155: 0.25 | I155: 0.25 | J155: 0.25 | K155: 0.25 | L155: 0
A156: Glenmore Trail SE and Stoney Trail Interchange Improvements | B156: M | C156: 260 | D156: 0 | E156: 0 | F156: 0 | G156: 0 | H156: 0.25 | I156: 0.25 | J156: 0.25 | K156: 0.25 | L156: 0
A157: Growth Triggered Pathways (Established Areas) | B157: M | C157: 66 | D157: 0 | E157: 0.1 | F157: 0.1 | G157: 0.1 | H157: 0.1 | I157: 0.1 | J157: 0.1 | K157: 0.1 | L157: 0.3
A158: 162 Avenue SW Pathway | C158: 5 | D158: 0.003787878788 | E158: 0.007575757576 | F158: 0.01287878788 | G158: 0.06287878788 | H158: 0.06515151515 | I158: 0.03106060606 | J158: 0.01515151515 | K158: 0.01212121212 | L158: 0.7968181818
A159: 52 Street East Regional Pathway | C159: 5 | D159: 0.05 | E159: 0.05 | F159: 0.1 | G159: 0.7 | H159: 0.1 | I159: 0 | J159: 0 | K159: 0 | L159: 0
A160: Beddington Boulevard NW-Symons Valley Pathway Connector | C160: 1 | D160: 0 | E160: 0.05 | F160: 0.05 | G160: 0.1 | H160: 0.7 | I160: 0.1 | J160: 0 | K160: 0 | L160: 0
A161: Richmond Road SW-MRU Connector | C161: 1 | D161: 0 | E161: 0 | F161: 0 | G161: 0.05 | H161: 0.05 | I161: 0.1 | J161: 0.7 | K161: 0.1 | L161: 0
A162: Springbank Hill-Foothills Medical Centre-University Calgary Connector | C162: 2 | D162: 0 | E162: 0 | F162: 0 | G162: 0 | H162: 0.05 | I162: 0.05 | J162: 0.1 | K162: 0.7 | L162: 0.1
A163: Other Capital Investments | C163: 52.49 | D163: 0 | E163: 0 | F163: 0.05 | G163: 0.05 | H163: 0.1 | I163: 0.7 | J163: 0.1 | K163: 0 | L163: 0
A164: Growth Triggered Pathways (Greenfields) | B164: M | C164: 58 | D164: 0 | E164: 0.1 | F164: 0.1 | G164: 0.1 | H164: 0.1 | I164: 0.1 | J164: 0.1 | K164: 0.1 | L164: 0.3
A165: 84 Street East Regional Pathway | C165: 6.35 | D165: 0.03937007874 | E165: 0.03937007874 | F165: 0.07874015748 | G165: 0.3149606299 | H165: 0.4724409449 | I165: 0.05511811024 | J165: 0 | K165: 0 | L165: 0
A166: Bow River Pathway-Crowfoot Station Connector | C166: 3.25 | D166: 0 | E166: 0 | F166: 0.04615384615 | G166: 0.03076923077 | H166: 0.06153846154 | I166: 0.3692307692 | J166: 0.4923076923 | K166: 0 | L166: 0
A167: Country Hills Boulevard Regional Pathway | C167: 8.13 | D167: 0 | E167: 0.0307503075 | F167: 0.0307503075 | G167: 0.06150061501 | H167: 0.36900369 | I167: 0.49200492 | J167: 0.0159901599 | K167: 0 | L167: 0
A168: Haskayne-Tuscany Connector | C168: 1.88 | D168: 0 | E168: 0 | F168: 0 | G168: 0 | H168: 0.05319148936 | I168: 0.05319148936 | J168: 0.1489361702 | K168: 0.6382978723 | L168: 0.1063829787
A169: West Bow River Pathway Extension | C169: 2.69 | D169: 0 | E169: 0 | F169: 0 | G169: 0.3717472119 | H169: 0.01486988848 | I169: 0.02973977695 | J169: 0.1784386617 | K169: 0.2379182156 | L169: 0.1672862454
A170: Other Capital Investments | C170: 36 | D170: 0 | E170: 0 | F170: 0 | G170: 0 | H170: 0 | I170: 0 | J170: 0 | K170: 0 | L170: 1
A171: Heritage Drive and Macleod Trail Infrastructure Improvements | B171: M | C171: 95 | D171: 0 | E171: 0 | F171: 0 | G171: 0 | H171: 0.25 | I171: 0.25 | J171: 0.25 | K171: 0.25 | L171: 0
A172: Highway 22X and 53 Street SW Interchange | B172: M | C172: 145 | D172: 0 | E172: 0.0281817808 | F172: 0.06340899989 | G172: 0 | H172: 0.2271023048 | I172: 0.2271023048 | J172: 0.2271023048 | K172: 0.2271023048 | L172: 0
A173: McKnight Boulevard and 68 Street NE Interchange | B173: M | C173: 50 | D173: 0 | E173: 0 | F173: 0 | G173: 0 | H173: 0 | I173: 0 | J173: 1 | K173: 0 | L173: 0
A174: McKnight Boulevard Corridor Improvements (John Laurie Blvd to Deerfoot Trail) | B174: M | C174: 89 | D174: 0 | E174: 0 | F174: 0 | G174: 0 | H174: 0.25 | I174: 0.25 | J174: 0.25 | K174: 0.25 | L174: 0
A175: Sarcee Trail and Bow Trail Interchange | B175: M | C175: 300 | D175: 0 | E175: 0 | F175: 0 | G175: 0 | H175: 0.25 | I175: 0.25 | J175: 0.25 | K175: 0.25 | L175: 0
A176: Stoney Trail / 130 Avenue SE Half Interchange | B176: M | C176: 85 | D176: 0 | F176: 0 | G176: 0 | H176: 0.0033 | I176: 0.0033 | J176: 0.0033 | K176: 0 | L176: 0
A177: Valley Ridge - Greenwich Flyover | B177: M | C177: 28 | D177: 0 | E177: 0 | F177: 0 | G177: 0 | H177: 0.25 | I177: 0.25 | J177: 0.25 | K177: 0.25 | L177: 0
A178: 16 Avenue NW Corridor Improvements: Sarcee Trail to Shaganappi Trail | B178: L | C178: 38 | D178: 0 | E178: 0 | F178: 0 | G178: 0 | H178: 0 | I178: 0.4210526316 | J178: 0.5789473684 | K178: 0 | L178: 0
A179: 210 Avenue S / Macleod Trail Interchange | B179: L | C179: 110 | D179: 0.003013899973 | E179: 0 | F179: 0 | G179: 0 | H179: 0.249246525 | I179: 0.249246525 | J179: 0.249246525 | K179: 0.249246525 | L179: 0
A180: East Riverside Promenade Upgrades | B180: L | C180: 2 | D180: 0 | E180: 0 | F180: 0 | G180: 1 | H180: 0 | I180: 0 | J180: 0 | K180: 0 | L180: 0
A181: North East Stoney Crossing at 64 Ave NE | B181: L | C181: 72 | D181: 0 | E181: 0 | F181: 0 | G181: 0 | H181: 0.25 | I181: 0.25 | J181: 0.25 | K181: 0.25 | L181: 0
A182: Pre-construction Activities | B182: L | C182: 20 | D182: 0.1 | E182: 0.1 | F182: 0.1 | G182: 0.1 | H182: 0.1 | I182: 0.1 | J182: 0.1 | K182: 0.1 | L182: 0.2
A184: Transformative - Primary Driver
A186: 114 Avenue SE Grade Separation at CPKC | B186: H | C186: 52 | D186: 0.424515634 | E186: 0.1438710915 | F186: 0.1438710915 | G186: 0.1438710915 | H186: 0.1438710915 | I186: 0 | J186: 0 | K186: 0 | L186: 0
A187: Missing Link between 114 Avenue and Stoney Trail | B187: H | C187: 19 | D187: 0 | E187: 1 | F187: 0 | G187: 0 | H187: 0 | I187: 0 | J187: 0 | K187: 0 | L187: 0
A188: Primary East-West Link via 114 Avenue | B188: H | C188: 8 | D188: 1 | E188: 0 | F188: 0 | G188: 0 | H188: 0 | I188: 0 | J188: 0 | K188: 0 | L188: 0
A189: Glenmore Trail East – Widening from 84 Street SE to 116 Street (Stoney Trail to Rainbow Road) | B189: L | C189: 94 | D189: 0 | E189: 0 | F189: 0 | G189: 0 | H189: 0 | I189: 0 | J189: 0 | K189: 0 | L189: 1
A191: Total Capital Infrastructure Needs - Roads & Pathways | C191: 8775
A197: ICS: Unrestricted

Sheet Recreation
A1: Appendix B: Capital Infrastructure Needs - Recreation
A2: The values presented reflect identified capital needs and have been rounded to the nearest million for presentation purposes. These capital needs have not received approved budget and will be considered for future business cycles.
B3: Legend (% of capital $ per opportunity item)
B4: 1% ~ 10%
B5: 11% ~ 25%
B6: 25% +
A8: Appendix B: Capital Infrastructure Needs | B8: Priority | C8: Total
A9: ($millions) | B9: (H / M / L) | C9: 2027-2035+ | D9: 2027 | E9: 2028 | F9: 2029 | G9: 2030 | H9: 2031 | I9: 2032 | J9: 2033 | K9: 2034 | L9: 2035+
A11: Maintenance - Primary Driver
A13: Recreation Capital Annual Investment Program | B13: H | C13: 68.922 | D13: 26.60979078 | E13: 39.8987261 | F13: 14.44241316 | G13: 8.13963611 | H13: 5.395954848 | I13: 1.378369751 | J13: 1.378369751 | K13: 1.378369751 | L13: 1.378369751
A14: Recreation Machinery and Equipment | B14: H | C14: 6.75 | D14: 11.11111111 | E14: 11.11111111 | F14: 11.11111111 | G14: 11.11111111 | H14: 11.11111111 | I14: 11.11111111 | J14: 11.11111111 | K14: 11.11111111 | L14: 11.11111111
A15: GamePlan - Wave 1 Projects | B15: H | C15: 1682.016 | D15: 3.273070828 | E15: 7.142742698 | F15: 11.75627342 | G15: 18.88765178 | H15: 15.3712316 | I15: 17.9902272 | J15: 17.56759745 | K15: 8.005182471 | L15: 0
A16: Forest Lawn Aquatic & Fitness Centre | C16: 166.32 | D16: 4.81962482 | E16: 6.689273689 | F16: 16.80759981 | G16: 40.96200096 | H16: 30.72150072 | I16: 0 | J16: 0 | K16: 0 | L16: 0
A17: Northeast Athletic Complex | C17: 0.82500008 | D17: 18.00000068 | E17: 41.99999835 | F17: 31.99999932 | G17: 0 | H17: 0 | I17: 0 | J17: 0 | K17: 0 | L17: 0
A18: New Brighton Athletic Park Upgrade | C18: 15.695 | D18: 16.21599235 | E18: 83.78400765 | F18: 0 | G18: 0 | H18: 0 | I18: 0 | J18: 0 | K18: 0 | L18: 0
A19: Calgary West Soccer Centre Dome Land improvement reserve | C19: 10.1 | D19: 25 | E19: 75 | F19: 0 | G19: 0 | H19: 0 | I19: 0 | J19: 0 | K19: 0 | L19: 0
A20: Rocky Ridge Fieldhouse | C20: 71.38250002 | D20: 11.37495184 | E20: 24.61639757 | F20: 32.52162644 | G20: 31.43757223 | H20: 0 | I20: 0 | J20: 0 | K20: 0 | L20: 0
A21: Southland Fieldhouse | C21: 77.3825 | D21: 4 | E21: 13 | F21: 24 | G21: 30 | H21: 29 | I21: 0 | J21: 0 | K21: 0 | L21: 0
A22: Woodbine Athletic Park Upgrade | C22: 28.6335 | D22: 0 | E22: 18.0952381 | F22: 40.95238095 | G22: 40.95238095 | H22: 0 | I22: 0 | J22: 0 | K22: 0 | L22: 0
A23: Southland Leisure Centre - Aquatics | C23: 64.845 | D23: 17.84578611 | E23: 25.53257769 | F23: 27.53974863 | G23: 29.08188758 | H23: 0 | I23: 0 | J23: 0 | K23: 0 | L23: 0
A24: Southland Leisure Centre - Arenas | C24: 16.665 | D24: 18 | E24: 28 | F24: 27 | G24: 27 | H24: 0 | I24: 0 | J24: 0 | K24: 0 | L24: 0
A25: Kingsland Athletic Park | C25: 10.14 | D25: 21.56410256 | E25: 35.30769231 | F25: 43.12820513 | G25: 0 | H25: 0 | I25: 0 | J25: 0 | K25: 0 | L25: 0
A26: Foothills Aquatic Centre | C26: 180.37 | D26: 0 | E26: 0 | F26: 5 | G26: 8 | H26: 17 | I26: 40 | J26: 30 | K26: 0 | L26: 0
A27: Shouldice Arena | C27: 169.3 | D27: 0 | E27: 0 | F27: 5 | G27: 8 | H27: 17 | I27: 40 | J27: 30 | K27: 0 | L27: 0
A28: Shouldice Athletic Park Upgrade | C28: 53.0675 | D28: 0 | E28: 0 | F28: 17.46483252 | G28: 82.53516748 | H28: 0 | I28: 0 | J28: 0 | K28: 0 | L28: 0
A29: Foothills Fieldhouse | C29: 382.4 | D29: 0 | E29: 0 | F29: 0 | G29: 4 | H29: 13 | I29: 24 | J29: 30 | K29: 29 | L29: 0
A30: Foothills Athletic Park Upgrade | C30: 14.645 | D30: 0 | E30: 0 | F30: 0 | G30: 18 | H30: 82 | I30: 0 | J30: 0 | K30: 0 | L30: 0
A31: South (Belmont) Athletic Park | C31: 20.705 | D31: 19 | E31: 43 | F31: 38 | G31: 0 | H31: 0 | I31: 0 | J31: 0 | K31: 0 | L31: 0
A32: South (Belmont) Aquatics | C32: 127.645 | D32: 7.764973168 | E32: 16.7856947 | F32: 42.82259391 | G32: 32.62673822 | H32: 0 | I32: 0 | J32: 0 | K32: 0 | L32: 0
A33: Great Plains Recreation Facility | C33: 89.945 | D33: 0 | E33: 0 | F33: 0 | G33: 18 | H33: 28 | I33: 27 | J33: 27 | K33: 0 | L33: 0
A34: Westside Rec Centre Aquatics | C34: 89.945 | D34: 0 | E34: 0 | F34: 0 | G34: 18 | H34: 28 | I34: 27 | J34: 27 | K34: 0 | L34: 0
A35: Westside Rec Centre Arenas | C35: 10.1 | D35: 0 | E35: 0 | F35: 0 | G35: 18 | H35: 28 | I35: 27 | J35: 27 | K35: 0 | L35: 0
A36: Westside Fieldhouse | C36: 81.905 | D36: 0 | E36: 0 | F36: 0 | G36: 4 | H36: 13 | I36: 24 | J36: 30 | K36: 29 | L36: 0
A37: GamePlan Wave 2+ - Aquatic Facilities | B37: M | C37: 409.435 | D37: 0 | E37: 0 | F37: 0 | G37: 0 | H37: 0 | I37: 0 | J37: 1.650384066 | K37: 4.290998574 | L37: 94.05861736
A38: GamePlan Wave 2+ - Arena Facilities | B38: M | C38: 306.97 | D38: 0 | E38: 0 | F38: 0 | G38: 0 | H38: 3.257647327e-09 | I38: 3.853585041 | J38: 11.43641072 | K38: 23.57295501 | L38: 61.13704922
A39: GamePlan Wave 2+ - Athletic Parks | B39: M | C39: 37.875 | D39: 0 | E39: 0 | F39: 0 | G39: 0 | H39: 0 | I39: 0 | J39: 15.6 | K39: 71.06666667 | L39: 13.33333333
A40: Partner Project Fund | B40: M | C40: 22.5 | D40: 11.11111111 | E40: 11.11111111 | F40: 11.11111111 | G40: 11.11111111 | H40: 11.11111111 | I40: 11.11111111 | J40: 11.11111111 | K40: 11.11111111 | L40: 11.11111111
A42: Growth - Primary Driver
A44: GamePlan Wave 2+ - Fieldhouses | B44: M | C44: 86.3825 | D44: 0 | E44: 0 | F44: 0 | G44: 0 | H44: 0 | I44: 4 | J44: 13 | K44: 24 | L44: 59
A45: Recreation Land Program | B45: H | C45: 213 | D45: 29.57746479 | E45: 0 | F45: 8.450704225 | G45: 0 | H45: 16.90140845 | I45: 0 | J45: 19.71830986 | K45: 0 | L45: 25.35211268
A47: Total Capital Infrastructure Needs - Recreation | C47: 2833.8505
A51: ICS: Unrestricted

Sheet Transit
A1: Appendix B: Capital Infrastructure Needs - Transit
A2: The values presented reflect identified capital needs and have been rounded to the nearest million for presentation purposes. These capital needs have not received approved budget and will be considered for future business cycles. The majority of the 10-year capital investments are foundational in nature reflecting the essential funding required to sustain current service levels, meet regulatory and safety obligations, and manage core operational risks. These investments establish the baseline level of service and define the essential capital required to maintain system reliability over time. All values are presented in 2025 dollars, with estimates prepared as of January 2026. Further refinements and adjustments are expected through the development of the 2027–2030 Budget and the 10-Year Capital Infrastructure Plan.
B3: Legend (% of capital $ per opportunity item) | G3: 0
A4: 0 | B4: 1% ~ 10% | D4: 0 | E4: 0 | F4: Critical Assets in Poor / Very Poor Condition | K4: 0 | L4: 0
A5: 0 | B5: 11% ~ 25% | D5: 0 | E5: 0 | G5: Severe Consequence of Failure | K5: 0 | L5: 0
B6: 25% + | D6: 0 | E6: 0 | G6: High Consequence of Failure | K6: 0 | L6: 0
A8: Appendix B: Capital Infrastructure Needs | B8: Priority | C8: Total
A9: ($millions) | B9: (H / M / L) | C9: 2027-2035+ | D9: 2027 | E9: 2028 | F9: 2029 | G9: 2030 | H9: 2031 | I9: 2032 | J9: 2033 | K9: 2034 | L9: 2035+
A10: Maintenance - Primary Driver
A12: 40-Foot Bus Replacement and Growth Program | B12: H | C12: 324456552 | D12: 0 | E12: 0.02362204724 | F12: 0.02624671916 | G12: 0.07086614173 | H12: 0.157480315 | I12: 0.09186351706 | J12: 0.02624671916 | K12: 0.4199475066 | L12: 0.02624671916
A13: Access Calgary System Lifecycle Upgrades | B13: H | C13: 16000000 | D13: 0.1875 | E13: 0.25 | F13: 0 | G13: 0 | H13: 0 | I13: 0 | J13: 0 | K13: 0 | L13: 0.5625
A14: Calgary Transit Access Vehicle Renewal | B14: H | C14: 20385438 | D14: 0.1666666667 | E14: 0.009803910026 | F14: 0.009803910026 | G14: 0.009803910026 | H14: 0.2058823558 | I14: 0.4019608016 | J14: 0.009803910026 | K14: 0.1764705767 | L14: 0.009803910026
A15: Compressed Natural Gas (CNG) Bus Mid-Life Powertrain Replacement | B15: H | C15: 44370000 | D15: 0.01307189542 | E15: 0.02614379085 | F15: 0.2352941176 | G15: 0.09803921569 | H15: 0 | I15: 0.1862745098 | J15: 0.2450980392 | K15: 0 | L15: 0.1960784314
A16: Diesel Bus Powertrain Refurbishment Program | B16: H | C16: 26620000 | D16: 0.2066115702 | E16: 0.1033057851 | F16: 0 | G16: 0.6198347107 | H16: 0 | I16: 0 | J16: 0 | K16: 0 | L16: 0
A17: Light Rail Transit (LRT) Infrastructure Lifecycle Upgrades | B17: H | C17: 229604780 | D17: 0.07983028054 | E17: 0.1026169708 | F17: 0.07774693541 | G17: 0.08001300321 | H17: 0.08305163333 | I17: 0.08558610147 | J17: 0.08825794045 | K17: 0.09107711085 | L17: 0.311820024
A18: Light Rail Vehicle Refurbishment & Bogie Overhaul | B18: H | C18: 124733612 | D18: 0.04926498881 | E18: 0.05106883299 | F18: 0.03122654702 | G18: 0.4891513284 | H18: 0.04421422511 | I18: 0.03663807956 | J18: 0.0279796275 | K18: 0.02870116517 | L18: 0.2255206079
A19: Light Rail Vehicle Replacement – Series 5, 6, and 7 | B19: H | C19: 504000000 | D19: 0 | E19: 0.125 | F19: 0.125 | G19: 0.125 | H19: 0.125 | I19: 0.125 | J19: 0.125 | K19: 0.125 | L19: 0.125
A20: Light Rail Vehicles Equipment & Tools | B20: H | C20: 18855000 | D20: 0.07955449483 | E20: 0.07955449483 | F20: 0.04653937947 | G20: 0.04653937947 | H20: 0 | I20: 0 | J20: 0 | K20: 0 | L20: 0
A21: Rail Systems Lifecycle Upgrades | B21: H | C21: 328940661 | D21: 0.09129607422 | E21: 0.113204132 | F21: 0.103762955 | G21: 0.09256575307 | H21: 0.08142443965 | I21: 0.08263354526 | J21: 0.08679187581 | K21: 0.09219562248 | L21: 0.2500454786
A22: Spring Gardens Cash Processing Facility | B22: H | C22: 9054170 | D22: 0 | E22: 0.2750000276 | F22: 0.2750000276 | G22: 0.4499999448 | H22: 0 | I22: 0 | J22: 0 | K22: 0 | L22: 0
A23: Transit Building Lifecycle Maintenance | B23: H | C23: 459666160 | D23: 0.113748939 | E23: 0.09819202484 | F23: 0.09918409265 | G23: 0.08610467867 | H23: 0.08012409049 | I23: 0.08812751411 | J23: 0.09737703772 | K23: 0.1080407398 | L23: 0.2291008827
A24: Transit Driver Seat Replacement Program | B24: H | C24: 3400000 | D24: 0.1 | E24: 0.1 | F24: 0.1 | G24: 0.1 | H24: 0.1 | I24: 0.1 | J24: 0.1 | K24: 0.1 | L24: 0.1
A25: Victoria Park Bus Garage Relocation / South Central Facility | B25: H | C25: 765000000 | D25: 0.0375 | E25: 0.0375 | F25: 0.1375 | G25: 0.1375 | H25: 0.1375 | I25: 0.1375 | J25: 0.3375 | K25: 0.0375 | L25: 0
A26: Articiculated Bus Growth and Replacement Program | B26: M | C26: 131300000 | D26: 0.05940594059 | E26: 0.1584158416 | F26: 0.2079207921 | G26: 0.2277227723 | H26: 0.009900990099 | I26: 0.009900990099 | J26: 0.1089108911 | K26: 0.2079207921 | L26: 0.009900990099
A27: Articulated Bus Refurbishment Program | B27: M | C27: 5695000 | D27: 0.2809482002 | E27: 0.09657594381 | F27: 0.04389815628 | G27: 0.08779631255 | H27: 0 | I27: 0 | J27: 0 | K27: 0 | L27: 0
A28: Bus Maintenance Tools and Equipment | B28: M | C28: 17500000 | D28: 0.1685714286 | E28: 0.08285714286 | F28: 0.08285714286 | G28: 0.08285714286 | H28: 0.08285714286 | I28: 0.08285714286 | J28: 0.08285714286 | K28: 0.08285714286 | L28: 0.08285714286
A29: Fare Technology and Payment Systems Upgrade | B29: M | C29: 90458950 | D29: 0.2512741967 | E29: 0.2749976647 | F29: 0.09879066693 | G29: 0.00771012708 | H29: 0 | I29: 0 | J29: 0 | K29: 0 | L29: 0.3316421427
A30: Fixed Route Bus Service Expansion | B30: M | C30: 97280976 | D30: 0 | E30: 0.005319148936 | F30: 0.0585106383 | G30: 0.4308510638 | H30: 0.005319148936 | I30: 0.005319148936 | J30: 0.005319148936 | K30: 0.0585106383 | L30: 0.4308510638
A31: Light Rail Vehicle (LRV) Customer Technology Lifecycle Upgrades | B31: M | C31: 101463200 | D31: 0.05184145582 | E31: 0.2313646721 | F31: 0.2219031136 | G31: 0.1833965418 | H31: 0.1734619054 | I31: 0.118269481 | J31: 0 | K31: 0 | L31: 0
A32: Heritage Terminal Reconstruction | B32: L | C32: 18000000 | D32: 0 | E32: 0.5 | F32: 0.5 | G32: 0 | H32: 0 | I32: 0 | J32: 0 | K32: 0 | L32: 0
A33: Marlborough Terminal Reconstruction | B33: L | C33: 18000000 | D33: 0 | E33: 0.5 | F33: 0.5 | G33: 0 | H33: 0 | I33: 0 | J33: 0 | K33: 0 | L33: 0
A34: Rail Worker Safety Protection Equipment | B34: L | C34: 3000000 | D34: 0 | E34: 0 | F34: 0 | G34: 0 | H34: 0 | I34: 0 | J34: 0 | K34: 0 | L34: 1
A35: Saddletowne Terminal Expansion | B35: L | C35: 2000000 | D35: 0 | E35: 1 | F35: 0 | G35: 0 | H35: 0 | I35: 0 | J35: 0 | K35: 0 | L35: 0
A36: Transit Safety & Reliability Enhancements | B36: L | C36: 20000000 | D36: 0.1 | E36: 0.1 | F36: 0.1 | G36: 0.1 | H36: 0.1 | I36: 0.1 | J36: 0.1 | K36: 0.1 | L36: 0.1
A37: Transit Station Safety & Crime Prevention Through Environmental Design (CPTED) Improvements | B37: L | C37: 12500000 | D37: 0.1 | E37: 0.1 | F37: 0.1 | G37: 0.1 | H37: 0.1 | I37: 0.1 | J37: 0.1 | K37: 0.1 | L37: 0.1
A38: Transit System Accessibility Enhancements | B38: L | C38: 12500000 | D38: 0.1 | E38: 0.1 | F38: 0.1 | G38: 0.1 | H38: 0.1 | I38: 0.1 | J38: 0.1 | K38: 0.1 | L38: 0.1
A39: Transit Tech Lifecycle: Bus Systems | B39: L | C39: 131410000 | D39: 0.07761966365 | E39: 0.0989270223 | F39: 0.04565862568 | G39: 0.03804885473 | H39: 0.03272201507 | I39: 0.02739517541 | J39: 0.02739517541 | K39: 0.07495624382 | L39: 0.5670040332
A40: Westbrook Terminal Reconstruction | B40: L | C40: 18000000 | D40: 0 | E40: 0 | F40: 0 | G40: 0.5 | H40: 0.5 | I40: 0 | J40: 0 | K40: 0 | L40: 0
A42: Service Enhancement - Primary Driver
A44: 52 Street East Bus Rapid Transit (BRT): Design & Construction (MAX 302) | B44: H | C44: 167000000 | D44: 0 | E44: 0.02062463473 | F44: 0.0386301976 | G44: 0.0386301976 | H44: 0.0386301976 | I44: 0.07195705988 | J44: 0.07195705988 | K44: 0.07195705988 | L44: 0.6476135868
A45: MAX Green Bus Rapid Transit (BRT) / North Central BRT / Max 301 North Improvements | B45: H | C45: 500000000 | D45: 0.125 | E45: 0.125 | F45: 0.125 | G45: 0.125 | H45: 0.125 | I45: 0.125 | J45: 0.125 | K45: 0.125 | L45: 0
A46: Operator Safety Shields Installation | B46: H | C46: 15000000 | D46: 0.3333333333 | E46: 0.3333333333 | F46: 0 | G46: 0 | H46: 0 | I46: 0 | J46: 0 | K46: 0 | L46: 0
A47: Functional Planning Studies Fund | B47: M | C47: 80000000 | D47: 0.1 | E47: 0.1 | F47: 0.1 | G47: 0.1 | H47: 0.1 | I47: 0.1 | J47: 0.1 | K47: 0.1 | L47: 0.1
A48: 144 Ave North Bus Rapid Transit (BRT) (RouteAhead) | B48: L | C48: 89000000 | D48: 0 | E48: 0 | F48: 0 | G48: 0 | H48: 0.03370786517 | I48: 0.03370786517 | J48: 0.3033707865 | K48: 0.3033707865 | L48: 0.3258426966
A49: 162 Avenue SW Transitway | B49: L | C49: 130000000 | D49: 0 | E49: 0 | F49: 0 | G49: 0 | H49: 0.02307692308 | I49: 0.02307692308 | J49: 0.3153846154 | K49: 0.3153846154 | L49: 0.3230769231
A50: Brentwood Bus Terminal Upgrades | B50: L | C50: 7000000 | D50: 0 | E50: 0 | F50: 0 | G50: 0 | H50: 0 | I50: 0 | J50: 0.1428571429 | K50: 0.8571428571 | L50: 0
A51: MAX Bus Rapid Transit (BRT) Infill Station Investments | B51: L | C51: 40000000 | D51: 0.125 | E51: 0.125 | F51: 0.125 | G51: 0.125 | H51: 0.125 | I51: 0.125 | J51: 0.125 | K51: 0.125 | L51: 0
A52: MAX Orange Line Station Enhancements | B52: L | C52: 40000000 | D52: 0 | E52: 0 | F52: 0.2 | G52: 0.2 | H52: 0.2 | I52: 0.2 | J52: 0.2 | K52: 0 | L52: 0
A53: MAX Purple Extension – Downtown to Bow River | B53: L | C53: 110000000 | D53: 0 | E53: 0 | F53: 0 | G53: 0 | H53: 0 | I53: 0 | J53: 0.02727272727 | K53: 0.02727272727 | L53: 0.9454545455
A54: NW HUB: UCalgary & Foothills Hospital | B54: L | C54: 49278289 | D54: 0.04285714952 | E54: 0.04285714952 | F54: 0.1828571402 | G54: 0.1828571402 | H54: 0.1828571402 | I54: 0.1828571402 | J54: 0.1828571402 | K54: 0 | L54: 0
A55: Shaganappi Bus Rapid Transit (BRT) | B55: L | C55: 60000000 | D55: 0 | E55: 0 | F55: 0 | G55: 0 | H55: 0.05 | I55: 0.05 | J55: 0.3 | K55: 0.3 | L55: 0.3
A57: Growth - Primary Driver
A59: Blue Line Light Rail Transit (LRT) Extension: Saddletowne to 88 Ave NE | B59: H | C59: 214083189 | D59: 0 | E59: 0.1916666656 | F59: 0.1916666656 | G59: 0.1916666656 | H59: 0.4250000032 | I59: 0 | J59: 0 | K59: 0 | L59: 0
A60: Green Line Bus Fleet & Bus Bridge Service | B60: H | C60: 69600000 | D60: 0.09482758621 | E60: 0.09482758621 | F60: 0.09482758621 | G60: 0.2385057471 | H60: 0.2385057471 | I60: 0.2385057471 | J60: 0 | K60: 0 | L60: 0
A61: Haysboro Garage Expansion | B61: H | C61: 10000000 | D61: 0.5 | E61: 0.5 | F61: 0 | G61: 0 | H61: 0 | I61: 0 | J61: 0 | K61: 0 | L61: 0
A62: MAX Purple Transitway Extension Bus Rapid Transit (BRT): 52 St E to 84 St E | B62: H | C62: 114404160 | D62: 0 | E62: 0.075 | F62: 0.3083333333 | G62: 0.3083333333 | H62: 0.3083333333 | I62: 0 | J62: 0 | K62: 0 | L62: 0
A63: RouteAhead Implementation Plan Bus Fleet Procurement | B63: H | C63: 438750000 | D63: 0.1794871795 | E63: 0.1025641026 | F63: 0.1025641026 | G63: 0.1025641026 | H63: 0.1025641026 | I63: 0.1025641026 | J63: 0.1025641026 | K63: 0.1025641026 | L63: 0.1025641026
A64: Seton Transit Centre Construction | B64: H | C64: 5000000 | D64: 0 | E64: 0.5 | F64: 0.5 | G64: 0 | H64: 0 | I64: 0 | J64: 0 | K64: 0 | L64: 0
A65: Stoney Transit Facility – Public-Private Partnership (P3) Annual Payment | B65: H | C65: 38532298 | D65: 0.1000000052 | E65: 0.1000000052 | F65: 0.1000000052 | G65: 0.1000000052 | H65: 0.1000000052 | I65: 0.1000000052 | J65: 0.1000000052 | K65: 0.1000000052 | L65: 0.1000000052
A66: Symons Valley Transit Centre Construction | B66: H | C66: 10000000 | D66: 0 | E66: 0.5 | F66: 0.5 | G66: 0 | H66: 0 | I66: 0 | J66: 0 | K66: 0 | L66: 0
A67: Blue Line Light Rail Transit (LRT) Extension (88 Ave to Country Hills Boulevard) | B67: M | C67: 410174800 | D67: 0 | E67: 0 | F67: 0.0375 | G67: 0.0375 | H67: 0.1011363643 | I67: 0.1011363643 | J67: 0.1011363643 | K67: 0.1647727286 | L67: 0.4568181785
A68: Light Rail Vehicle Procurement - Growth | B68: M | C68: 560000000 | D68: 0 | E68: 0 | F68: 0.03125 | G68: 0.03125 | H68: 0.03125 | I68: 0.03125 | J68: 0 | K68: 0 | L68: 0.875
A69: MAX Teal Bus Rapid Transit (BRT) Extension (In-Street) to 68 St SE | B69: M | C69: 15000000 | D69: 0 | E69: 0 | F69: 0 | G69: 0 | H69: 0.075 | I69: 0.075 | J69: 0.425 | K69: 0.425 | L69: 0
A70: Red Line South Extension and Maintenance Storage Facility | B70: M | C70: 1420472589 | D70: 0 | E70: 0 | F70: 0 | G70: 0 | H70: 0 | I70: 0 | J70: 0 | K70: 0.02727272691 | L70: 0.9727272731
A71: 194 Avenue Bus Maintenance Storage Facility | B71: L | C71: 600000000 | D71: 0 | E71: 0 | F71: 0 | G71: 0 | H71: 0 | I71: 0 | J71: 0 | K71: 0.3333333333 | L71: 0.6666666667
A72: Hydrogen Bus Procurement Placeholder | B72: L | C72: 0
A73: West Bow Bus Rapid Transit (BRT) / Route 305 West | B73: L | C73: 82107480 | D73: 0.02999999513 | E73: 0.1077777688 | F73: 0.1077777688 | G73: 0.1077777688 | H73: 0.1077777688 | I73: 0.1077777688 | J73: 0.1077777688 | K73: 0.1077777688 | L73: 0.2155555621
A74: Transformative - Primary Driver
A76: Airport Transit Connector: East Leg (Blue Line to Airport) | B76: H | C76: 1561370601 | D76: 0 | E76: 0 | F76: 0 | G76: 0.03270609295 | H76: 0.03270609295 | I76: 0.03270609295 | J76: 0.09685565355 | K76: 0.09685565355 | L76: 0.7081704141
A77: Green Line Light Rail Transit (LRT) Downtown Extension | B77: H | C77: 0
A78: Green Line Light Rail Transit (LRT) South and North Extensions | B78: H | C78: 0
A79: Franklin Terminal Reconstruction | B79: L | C79: 18000000 | D79: 0 | E79: 0 | F79: 0 | G79: 0.5 | H79: 0.5 | I79: 0 | J79: 0 | K79: 0 | L79: 0
A81: Total Capital Infrastructure Needs - Transit | C81: 10408967905
A85: ICS: Unrestricted

Sheet Stormwater Management
A1: Appendix B: Capital Infrastructure Needs - Stormwater Management
A2: The values presented reflect identified capital needs and have been rounded to the nearest million for presentation purposes. These capital needs have not received approved budget and will be considered for future business cycles. The majority of the 10-year capital investments are foundational in nature reflecting the essential funding required to sustain current service levels, meet regulatory and safety obligations, and manage core operational risks. These investments establish the baseline level of service and define the essential capital required to maintain system reliability over time. All values are presented in 2025 dollars, with estimates prepared as of January 2026. Further refinements and adjustments are expected through the development of the 2027–2030 Budget and the 10-Year Capital Infrastructure Plan.
B3: Legend (% of capital $ per opportunity item)
B4: 1% ~ 10% | G4: Critical Assets in Poor / Very Poor Condition
B5: 11% ~ 25% | H5: Severe Consequence of Failure
B6: 25% + | H6: High Consequence of Failure
A8: Appendix B: Capital Infrastructure Needs | C8: Total
A9: ($millions) | C9: 2027-2035+ | D9: 2027 | E9: 2028 | F9: 2029 | G9: 2030 | H9: 2031 | I9: 2032 | J9: 2033 | K9: 2034 | L9: 2035+
A11: Maintenance - Primary Driver
A13: Community Drainage Improvement Program | C13: =SUM(C14:C15) -> 16.85 | D13: 9.792284866 | E13: 9.792284866 | F13: 9.792284866 | G13: 9.792284866 | H13: 11.27596439 | I13: 11.27596439 | J13: 12.75964392 | K13: 12.75964392 | L13: 12.75964392
A14: Local Drainage Improvements | C14: 15.5 | D14: 9.677419355 | E14: 9.677419355 | F14: 9.677419355 | G14: 9.677419355 | H14: 11.29032258 | I14: 11.29032258 | J14: 12.90322581 | K14: 12.90322581 | L14: 12.90322581
A15: Low Impact Development Rehabilitation | C15: 1.35 | D15: 11.11111111 | E15: 11.11111111 | F15: 11.11111111 | G15: 11.11111111 | H15: 11.11111111 | I15: 11.11111111 | J15: 11.11111111 | K15: 11.11111111 | L15: 11.11111111
A16: Dam Safety Management | C16: =SUM(C17:C18) -> 33.5 | D16: 7.462686567 | E16: 13.43283582 | F16: 13.43283582 | G16: 5.970149254 | H16: 11.94029851 | I16: 11.94029851 | J16: 11.94029851 | K16: 11.94029851 | L16: 11.94029851
A17: Discovery Ridge Dam Safety (Dam Removal and Landscape Design) | C17: 5.5 | D17: 9.090909091 | E17: 45.45454545 | F17: 45.45454545 | G17: 0 | H17: 0 | I17: 0 | J17: 0 | K17: 0 | L17: 0
A18: New Pond Dam Safety Project | C18: 28 | D18: 7.142857143 | E18: 7.142857143 | F18: 7.142857143 | G18: 7.142857143 | H18: 14.28571429 | I18: 14.28571429 | J18: 14.28571429 | K18: 14.28571429 | L18: 14.28571429
A19: Green Stormwater Infrastructure Program | C19: 30 | D19: 3.333333333 | E19: 6.666666667 | F19: 10 | G19: 13.33333333 | H19: 13.33333333 | I19: 13.33333333 | J19: 13.33333333 | K19: 13.33333333 | L19: 13.33333333
A20: Outfall Upgrades | C20: 2.25 | D20: 11.11111111 | E20: 11.11111111 | F20: 11.11111111 | G20: 11.11111111 | H20: 11.11111111 | I20: 11.11111111 | J20: 11.11111111 | K20: 11.11111111 | L20: 11.11111111
A21: Pipe Condition Assessments for Community Drainage Improvement Phase 4 | C21: 0.5 | D21: 0 | E21: 0 | F21: 0 | G21: 0 | H21: 20 | I21: 20 | J21: 20 | K21: 20 | L21: 20
A22: Process Control System Stormwater Collection | C22: 5.014 | D22: 10.331073 | E22: 10.45073793 | F22: 10.6501795 | G22: 10.86956522 | H22: 11.08895094 | I22: 11.30833666 | J22: 11.52772238 | K22: 11.76705225 | L22: 12.00638213
A23: Stormwater Collection Road Upgrade | C23: 3.6 | D23: 9.722222222 | E23: 9.722222222 | F23: 9.722222222 | G23: 11.11111111 | H23: 11.11111111 | I23: 11.11111111 | J23: 12.5 | K23: 12.5 | L23: 12.5
A24: Stormwater Lift Stations | C24: =SUM(C25:C27) -> 17.437 | D24: 23.78849573 | E24: 17.9331307 | F24: 27.98073063 | G24: 14.32012387 | H24: 3.36066984 | I24: 3.154212307 | J24: 3.154212307 | K24: 3.154212307 | L24: 3.154212307
A25: Drainage Lift Station Control System | C25: 4.5 | D25: 11.11111111 | E25: 11.11111111 | F25: 11.11111111 | G25: 11.11111111 | H25: 11.11111111 | I25: 11.11111111 | J25: 11.11111111 | K25: 11.11111111 | L25: 11.11111111
A26: Lift Station Annual Investment Program | C26: 12.487 | D26: 28.81396653 | E26: 20.63746296 | F26: 34.66805478 | G26: 15.5922159 | H26: 0.2882998318 | I26: 0 | J26: 0 | K26: 0 | L26: 0
A27: Storm Lift Station Condition Assessments | C27: 0.45 | D27: 11.11111111 | E27: 11.11111111 | F27: 11.11111111 | G27: 11.11111111 | H27: 11.11111111 | I27: 11.11111111 | J27: 11.11111111 | K27: 11.11111111 | L27: 11.11111111
A28: Storm Main Rehabilation Program | C28: 11.25 | D28: 11.11111111 | E28: 11.11111111 | F28: 11.11111111 | G28: 11.11111111 | H28: 11.11111111 | I28: 11.11111111 | J28: 11.11111111 | K28: 11.11111111 | L28: 11.11111111
A29: Storm Pipe Assessments | C29: 1.35 | D29: 11.11111111 | E29: 11.11111111 | F29: 11.11111111 | G29: 11.11111111 | H29: 11.11111111 | I29: 11.11111111 | J29: 11.11111111 | K29: 11.11111111 | L29: 11.11111111
A30: Storm Pond Repairs and Upgrades | C30: =SUM(C31:C33) -> 21.15 | D30: 26.00472813 | E30: 16.87943262 | F30: 16.87943262 | G30: 16.59574468 | H30: 4.728132388 | I30: 4.728132388 | J30: 4.728132388 | K30: 4.728132388 | L30: 4.728132388
A31: Duck Pond Restoration | C31: 2.15 | D31: 93.02325581 | E31: 3.255813953 | F31: 3.255813953 | G31: 0.4651162791 | H31: 0 | I31: 0 | J31: 0 | K31: 0 | L31: 0
A32: Pond Sediment Management | C32: 10 | D32: 25 | E32: 25 | F32: 25 | G32: 25 | H32: 0 | I32: 0 | J32: 0 | K32: 0 | L32: 0
A33: Storm Pond Repairs (Annual Investment Program) | C33: 9 | D33: 11.11111111 | E33: 11.11111111 | F33: 11.11111111 | G33: 11.11111111 | H33: 11.11111111 | I33: 11.11111111 | J33: 11.11111111 | K33: 11.11111111 | L33: 11.11111111
A34: Stormwater Monitoring/Systems | C34: =SUM(C35:C37) -> 4.356 | D34: 11.11111111 | E34: 11.11111111 | F34: 11.11111111 | G34: 11.11111111 | H34: 11.11111111 | I34: 11.11111111 | J34: 11.11111111 | K34: 11.11111111 | L34: 11.11111111
A35: Flow Monitoring | C35: 1.08 | D35: 11.11111111 | E35: 11.11111111 | F35: 11.11111111 | G35: 11.11111111 | H35: 11.11111111 | I35: 11.11111111 | J35: 11.11111111 | K35: 11.11111111 | L35: 11.11111111
A36: Quality Monitoring | C36: 3.15 | D36: 11.11111111 | E36: 11.11111111 | F36: 11.11111111 | G36: 11.11111111 | H36: 11.11111111 | I36: 11.11111111 | J36: 11.11111111 | K36: 11.11111111 | L36: 11.11111111
A37: Rain Gauges | C37: 0.126 | D37: 11.11111111 | E37: 11.11111111 | F37: 11.11111111 | G37: 11.11111111 | H37: 11.11111111 | I37: 11.11111111 | J37: 11.11111111 | K37: 11.11111111 | L37: 11.11111111
A38: Stormwater System Capital Maintenance | C38: 7.2 | D38: 11.11111111 | E38: 11.11111111 | F38: 11.11111111 | G38: 11.11111111 | H38: 11.11111111 | I38: 11.11111111 | J38: 11.11111111 | K38: 11.11111111 | L38: 11.11111111
A39: Western Headworks Canal Outfall Assessment | C39: 4.5 | D39: 11.11111111 | E39: 11.11111111 | F39: 11.11111111 | G39: 11.11111111 | H39: 11.11111111 | I39: 11.11111111 | J39: 11.11111111 | K39: 11.11111111 | L39: 11.11111111
A41: Service Enhancement - Primary Driver
A43: Bank Protection and Stream Health Program | C43: =9.45+9.45 -> 18.9 | D43: 11.11111111 | E43: 11.11111111 | F43: 11.11111111 | G43: 11.11111111 | H43: 11.11111111 | I43: 11.11111111 | J43: 11.11111111 | K43: 11.11111111 | L43: 11.11111111
A44: Community Drainage Improvement Program | C44: =SUM(C45:C60) -> 374.156371 | D44: 18.50900409 | E44: 9.565720852 | F44: 9.496831206 | G44: 9.643027033 | H44: 12.69522683 | I44: 10.69071733 | J44: 10.69071733 | K44: 9.354377665 | L44: 9.354377665
A45: Albert Park Drainage Improvement (New Major Local Drainage Improvement) | C45: =3.7875+1.2625 -> 5.05 | D45: 0.9900990099 | E45: 9.900990099 | F45: 39.6039604 | G45: 49.5049505 | H45: 0 | I45: 0 | J45: 0 | K45: 0 | L45: 0
A46: Bow Bottom Trail Storage | C46: =4.48863225+1.49621075 -> 5.984843 | D46: 99.14734605 | E46: 0.852653946 | F46: 0 | G46: 0 | H46: 0 | I46: 0 | J46: 0 | K46: 0 | L46: 0
A47: Community Drainage Improvement Phase 4 | C47: =132.75+44.25 -> 177 | D47: 0.2824858757 | E47: 0.2824858757 | F47: 0.2824858757 | G47: 0.2824858757 | H47: 19.7740113 | I47: 19.7740113 | J47: 19.7740113 | K47: 19.7740113 | L47: 19.7740113
A48: Confederation Park (New Drainage Improvement Project) | C48: =36+12 -> 48 | D48: 2.083333333 | E48: 4.166666667 | F48: 41.66666667 | G48: 52.08333333 | H48: 0 | I48: 0 | J48: 0 | K48: 0 | L48: 0
A49: Deerfoot 32 Avenue Drainage Improvement (New Major Local Drainage Improvement) | C49: =11.25+3.75 -> 15 | D49: 0 | E49: 0 | F49: 0 | G49: 0 | H49: 33.33333333 | I49: 33.33333333 | J49: 33.33333333 | K49: 0 | L49: 0
A50: Deer Ridge Storm Trunk Diversion | C50: =4.427433+1.475811 -> 5.903244 | D50: 70.88675311 | E50: 28.1493362 | F50: 0.9639106905 | G50: 0 | H50: 0 | I50: 0 | J50: 0 | K50: 0 | L50: 0
A51: Drainage Sunnyside Pumpstation 1 | C51: 1 | D51: 90 | E51: 5 | F51: 5 | G51: 0 | H51: 0 | I51: 0 | J51: 0 | K51: 0 | L51: 0
A52: Macleod Trail Meadowview Park | C52: =3.56264025+1.18754675 -> 4.750187 | D52: 98.94740986 | E52: 1.05259014 | F52: 0 | G52: 0 | H52: 0 | I52: 0 | J52: 0 | K52: 0 | L52: 0
A53: New Drainage Improvement Project | C53: =16.875+5.625 -> 22.5 | D53: 2.222222222 | E53: 8.888888889 | F53: 22.22222222 | G53: 33.33333333 | H53: 33.33333333 | I53: 0 | J53: 0 | K53: 0 | L53: 0
A54: Northwest Inner City Capital Hill D Pond | C54: =4.84425+1.61475 -> 6.459 | D54: 99.11751045 | E54: 0.3560922743 | F54: 0.2631986376 | G54: 0.2631986376 | H54: 0 | I54: 0 | J54: 0 | K54: 0 | L54: 0
A55: Northwest Inner City Kensington | C55: =0.0285+0.0095 -> 0.038 | D55: 100 | E55: 0 | F55: 0 | G55: 0 | H55: 0 | I55: 0 | J55: 0 | K55: 0 | L55: 0
A56: Northwest Inner City 14 St NorthWest | C56: =10.5375+3.5125 -> 14.05 | D56: 98.93238434 | E56: 0 | F56: 0.8896797153 | G56: 0.1779359431 | H56: 0 | I56: 0 | J56: 0 | K56: 0 | L56: 0
A57: Northwest Inner City Hillhurst Storm Lift Station | C57: =18.75+6.25 -> 25 | D57: 40 | E57: 56 | F57: 2 | G57: 2 | H57: 0 | I57: 0 | J57: 0 | K57: 0 | L57: 0
A58: Palliser Oakridge | C58: =13.05+4.35 -> 17.4 | D58: 50 | E58: 50 | F58: 0 | G58: 0 | H58: 0 | I58: 0 | J58: 0 | K58: 0 | L58: 0
A59: Pineridge | C59: =13.67625+4.55875 -> 18.235 | D59: 29.85467508 | E59: 30.46339457 | F59: 39.58321908 | G59: 0.09871126954 | H59: 0 | I59: 0 | J59: 0 | K59: 0 | L59: 0
A60: R T Alderman Dry Pond | C60: 7.786097 | D60: 89.90383757 | E60: 8.990383757 | F60: 0.8489105646 | G60: 0.2568681073 | H60: 0 | I60: 0 | J60: 0 | K60: 0 | L60: 0
A61: Dam Safety Management | C61: 10 | D61: 10.92269799 | E61: 11.0458507 | F61: 11.16900341 | G61: 11.30162941 | H61: 11.1121637 | I61: 11.1121637 | J61: 11.1121637 | K61: 11.1121637 | L61: 11.1121637
A62: Dam Safety Management (Annual Investment Program) | C62: 2.456 | D62: 10.30130293 | E62: 10.83061889 | F62: 11.35993485 | G62: 11.92996743 | H62: 11.11563518 | I62: 11.11563518 | J62: 11.11563518 | K62: 11.11563518 | L62: 11.11563518
A63: Facility Dam Safety Program | C63: 8.1 | D63: 11.11111111 | E63: 11.11111111 | F63: 11.11111111 | G63: 11.11111111 | H63: 11.11111111 | I63: 11.11111111 | J63: 11.11111111 | K63: 11.11111111 | L63: 11.11111111
A64: Flood Mitigation Program | C64: 0.45 | D64: 11.11111111 | E64: 11.11111111 | F64: 11.11111111 | G64: 11.11111111 | H64: 11.11111111 | I64: 11.11111111 | J64: 11.11111111 | K64: 11.11111111 | L64: 11.11111111
A65: Hanson Ranch Wetland | C65: 8.712 | D65: 91.76997245 | E65: 2.02020202 | F65: 1.882460973 | G65: 1.848025712 | H65: 1.767676768 | I65: 0.7116620753 | J65: 0 | K65: 0 | L65: 0
A66: Pond Renewal Program (Annual Investment Program) | C66: 25.75 | D66: 6.796116505 | E66: 6.796116505 | F66: 6.796116505 | G66: 6.796116505 | H66: 14.5631068 | I66: 14.5631068 | J66: 14.5631068 | K66: 14.5631068 | L66: 14.5631068
A67: Remove/Rehabilitation South West Outfall G19 | C67: 0.065 | D67: 30.76923077 | E67: 30.76923077 | F67: 38.46153846 | G67: 0 | H67: 0 | I67: 0 | J67: 0 | K67: 0 | L67: 0
A68: Riparian Restore Plant Program | C68: 12.6 | D68: 11.11111111 | E68: 11.11111111 | F68: 11.11111111 | G68: 11.11111111 | H68: 11.11111111 | I68: 11.11111111 | J68: 11.11111111 | K68: 11.11111111 | L68: 11.11111111
A69: River Infrastructure Management (Annual Investment Program) | C69: 2.25 | D69: 11.11111111 | E69: 11.11111111 | F69: 11.11111111 | G69: 11.11111111 | H69: 11.11111111 | I69: 11.11111111 | J69: 11.11111111 | K69: 11.11111111 | L69: 11.11111111
A70: Storm Main Extension Replacements | C70: 8.775 | D70: 11.11111111 | E70: 11.11111111 | F70: 11.11111111 | G70: 11.11111111 | H70: 11.11111111 | I70: 11.11111111 | J70: 11.11111111 | K70: 11.11111111 | L70: 11.11111111
A71: Storm Outfall B5 Oil and Grit Separator | C71: 0.015 | D71: 100 | E71: 0 | F71: 0 | G71: 0 | H71: 0 | I71: 0 | J71: 0 | K71: 0 | L71: 0
A72: Stormwater Lift Stations | C72: =SUM(C73:C75) -> 121.17 | D72: 2.613683255 | E72: 12.37930181 | F72: 12.57737064 | G72: 14.26178097 | H72: 14.24775109 | I72: 14.2097879 | J72: 14.85516217 | K72: 14.85516217 | L72: 0
A73: 9th Ave Downtown Underpass Stormwater Lift Station + Drainage Study | C73: 50 | D73: 6 | E73: 30 | F73: 30 | G73: 34 | H73: 0 | I73: 0 | J73: 0 | K73: 0 | L73: 0
A74: Stormwater Lift Station Fibre Roll-Out | C74: 1.17 | D74: 14.27350427 | E74: 0 | F74: 20.51282051 | G74: 24.01709402 | H74: 22.56410256 | I74: 18.63247863 | J74: 0 | K74: 0 | L74: 0
A75: Stormwater Lift Stations (Annual Investment Program) | C75: 70 | D75: 0 | E75: 0 | F75: 0 | G75: 0 | H75: 24.28571429 | I75: 24.28571429 | J75: 25.71428571 | K75: 25.71428571 | L75: 0
A77: Growth - Primary Driver
A79: Belvedere Cell C East-West Storm Trunk | C79: 35 | D79: 0 | E79: 0 | F79: 42.85714286 | G79: 57.14285714 | H79: 0 | I79: 0 | J79: 0 | K79: 0 | L79: 0
A80: Cooperative Stormwater Management Initiative (Stage 1) | C80: 10 | D80: 0 | E80: 0 | F80: 0 | G80: 0 | H80: 0 | I80: 0 | J80: 100 | K80: 0 | L80: 0
A81: Master Drainage Plans Program | C81: 0.6 | D81: 50 | E81: 50 | F81: 0 | G81: 0 | H81: 0 | I81: 0 | J81: 0 | K81: 0 | L81: 0
A82: New Community Growth Storm Linear Extensions | C82: 50 | D82: 0 | E82: 0 | F82: 0 | G82: 0 | H82: 20 | I82: 20 | J82: 20 | K82: 20 | L82: 20
A83: Providence Storm Trunk Stages 3 & 4 | C83: 20 | D83: 0 | E83: 0 | F83: 50 | G83: 50 | H83: 0 | I83: 0 | J83: 0 | K83: 0 | L83: 0
A84: Stormwater Main Extensions(Stormwater & Housing Impacts Program) | C84: 18 | D84: 11.11111111 | E84: 11.11111111 | F84: 11.11111111 | G84: 11.11111111 | H84: 11.11111111 | I84: 11.11111111 | J84: 11.11111111 | K84: 11.11111111 | L84: 11.11111111
A85: Stormwater Onsite Storage (Stormwater & Housing Impacts Program) | C85: 9 | D85: 11.11111111 | E85: 11.11111111 | F85: 11.11111111 | G85: 11.11111111 | H85: 11.11111111 | I85: 11.11111111 | J85: 11.11111111 | K85: 11.11111111 | L85: 11.11111111
A86: Stormwater Redevelopment Program | C86: 27 | D86: 11.11111111 | E86: 11.11111111 | F86: 11.11111111 | G86: 11.11111111 | H86: 11.11111111 | I86: 11.11111111 | J86: 11.11111111 | K86: 11.11111111 | L86: 11.11111111
A87: Transformative - Primary Driver
A89: Praire Economic Gateway Storm Trunk to Shepard Ditch | C89: 35.3 | D89: 0 | E89: 0 | F89: 48.15864023 | G89: 51.84135977 | H89: 0 | I89: 0 | J89: 0 | K89: 0 | L89: 0
A91: Total Capital Infrastructure Needs - Stormwater Management | C91: =SUM(C13:C89)-C13-C16-C24-C30-C34-C44-C61-C72 -> 947.256371
A95: ICS: Unrestricted

Sheet Waste & Recycling Services
A1: Appendix B: Capital Infrastructure Needs - Waste & Recycling Services
A2: The values presented reflect identified capital needs and have been rounded to the nearest million for presentation purposes. These capital needs have not received approved budget and will be considered for future business cycles. In some cases, an investment may appear more than once, as high-priority and medium-priority components and have been presented separately. The majority of the 10-year capital investments are foundational in nature and have been prioritized as High, reflecting the essential funding required to sustain current service levels, meet regulatory and safety obligations, and manage core operational risks. These investments establish the baseline level of service and define the essential capital required to maintain system reliability over time. A smaller number of investments are prioritized as Medium, representing instances where opportunities existed to scale back, defer, or modify scope while still maintaining acceptable service and risk outcomes. All values are presented in 2025 dollars, with estimates prepared as of January 2026. Further refinements and adjustments are expected through the development of the 2027–2030 Budget and the 10-Year Capital Infrastructure Plan.
B3: Legend (% of capital $ per opportunity item)
B4: 1% ~ 10%
B5: 11% ~ 25%
B6: 25% +
A8: Appendix B: Capital Infrastructure Needs | B8: Priority | C8: Total
A9: ($millions) | B9: (H / M / L) | C9: 2027-2035+ | D9: 2027 | E9: 2028 | F9: 2029 | G9: 2030 | H9: 2031 | I9: 2032 | J9: 2033 | K9: 2034 | L9: 2035+
A11: Maintenance - Primary Driver
A13: Buildings, Roads and Related Assets | B13: H | C13: 11.781 | D13: 8.305746541 | E13: 8.912655971 | F13: 8.810797046 | G13: 10.51693405 | H13: 10.08403361 | I13: 10.44478397 | J13: 15.95365419 | K13: 13.94194041 | L13: 13.02945421
A14: Waste & Recycling Building Condition Assessments | C14: 1.35 | D14: 11.11111111 | E14: 11.11111111 | F14: 11.11111111 | G14: 11.11111111 | H14: 11.11111111 | I14: 11.11111111 | J14: 11.11111111 | K14: 11.11111111 | L14: 11.11111111
A15: Waste & Recycling Building Maintenance | C15: 3.605 | D15: 7.004160888 | E15: 7.21220527 | F15: 7.420249653 | G15: 9.361997226 | H15: 9.986130374 | I15: 12.69070735 | J15: 16.64355062 | K15: 14.21636616 | L15: 15.46463245
A16: Waste & Recycling Fencing Upgrade & Maintenance | C16: 2.07 | D16: 7.971014493 | E16: 8.45410628 | F16: 9.178743961 | G16: 9.661835749 | H16: 10.86956522 | I16: 11.83574879 | J16: 13.04347826 | K16: 14.00966184 | L16: 14.97584541
A17: Waste Management Facilities - Road & Pad Maintenance | C17: 4.756 | D17: 8.641715728 | E17: 9.777123633 | F17: 9.051724138 | G17: 11.59587889 | H17: 9.524810765 | I17: 7.947855341 | J17: 18.07190917 | K17: 14.50798991 | L17: 10.88099243
A18: Compost Facility Maintenance | B18: H | C18: 21.35 | D18: 18.50117096 | E18: 15.92505855 | F18: 9.367681499 | G18: 9.367681499 | H18: 9.367681499 | I18: 9.367681499 | J18: 9.367681499 | K18: 9.367681499 | L18: 9.367681499
A19: Landfill Maintenance | B19: H | C19: 17.87 | D19: 8.6345831 | E19: 8.998321209 | F19: 10.27979855 | G19: 10.03357583 | H19: 10.37213206 | I19: 14.43480694 | J19: 11.95299384 | K19: 12.12087297 | L19: 13.1729155
A20: Caps & Drainage System Maintenance | C20: 5.16 | D20: 9.205426357 | E20: 9.399224806 | F20: 11.3372093 | G20: 10.75581395 | H20: 10.31976744 | I20: 10.31976744 | J20: 12.30620155 | K20: 12.79069767 | L20: 13.56589147
A21: Landfill Gas System Maintenance | C21: 6.56 | D21: 7.896341463 | E21: 8.734756098 | F21: 9.557926829 | G21: 9.344512195 | H21: 9.466463415 | I21: 20.53353659 | J21: 11.06707317 | K21: 11.14329268 | L21: 12.25609756
A22: Landfill Infrastructure Maintenance | C22: 6.15 | D22: 8.943089431 | E22: 8.943089431 | F22: 10.16260163 | G22: 10.16260163 | H22: 11.38211382 | I22: 11.38211382 | J22: 12.60162602 | K22: 12.60162602 | L22: 13.82113821
A23: Shepard - Cell 10-12 Vertical Landfill Gas Expansion | B23: H | C23: 4.5 | D23: 4.444444444 | E23: 22.22222222 | F23: 4.444444444 | G23: 28.88888889 | H23: 40 | I23: 0 | J23: 0 | K23: 0 | L23: 0
A24: Soil Management Program | B24: H | C24: 0.9 | D24: 11.11111111 | E24: 11.11111111 | F24: 11.11111111 | G24: 11.11111111 | H24: 11.11111111 | I24: 11.11111111 | J24: 11.11111111 | K24: 11.11111111 | L24: 11.11111111
A25: Spyhill - Stormwater Master Drainage Plan | B25: H | C25: 0.125 | D25: 0 | E25: 100 | F25: 0 | G25: 0 | H25: 0 | I25: 0 | J25: 0 | K25: 0 | L25: 0
A26: Stormwater Improvements | B26: H | C26: 10.5 | D26: 7.619047619 | E26: 21.9047619 | F26: 21.9047619 | G26: 20 | H26: 5.714285714 | I26: 5.714285714 | J26: 5.714285714 | K26: 5.714285714 | L26: 5.714285714
A27: East Calgary - Stormwater Improvements | C27: 1.7 | D27: 11.76470588 | E27: 88.23529412 | F27: 0 | G27: 0 | H27: 0 | I27: 0 | J27: 0 | K27: 0 | L27: 0
A28: Shepard - Stormwater Improvements | C28: 1.7 | D28: 0 | E28: 11.76470588 | F28: 88.23529412 | G28: 0 | H28: 0 | I28: 0 | J28: 0 | K28: 0 | L28: 0
A29: Spyhill - Stormwater Improvements | C29: 1.7 | D29: 0 | E29: 0 | F29: 11.76470588 | G29: 88.23529412 | H29: 0 | I29: 0 | J29: 0 | K29: 0 | L29: 0
A30: Waste & Recycling - Stormwater Pond Sediment Maintenance | C30: 5.4 | D30: 11.11111111 | E30: 11.11111111 | F30: 11.11111111 | G30: 11.11111111 | H30: 11.11111111 | I30: 11.11111111 | J30: 11.11111111 | K30: 11.11111111 | L30: 11.11111111
A31: Medium Priority Investments | B31: M | C31: 31.266 | D31: 8.007100365 | E31: 7.867971599 | F31: 13.50668458 | G31: 8.616388409 | H31: 14.61811552 | I31: 11.71560161 | J31: 10.92080855 | K31: 15.67997185 | L31: 9.067357513
A32: Blackfoot - Stormwater Improvements | C32: 2.2 | D32: 0 | E32: 9.090909091 | F32: 90.90909091 | G32: 0 | H32: 0 | I32: 0 | J32: 0 | K32: 0 | L32: 0
A33: Blackfoot - Stormwater Master Drainage Plan | C33: 0.2 | D33: 100 | E33: 0 | F33: 0 | G33: 0 | H33: 0 | I33: 0 | J33: 0 | K33: 0 | L33: 0
A34: Caps & Drainage System Maintenance | C34: 5.16 | D34: 9.205426357 | E34: 9.399224806 | F34: 11.3372093 | G34: 10.75581395 | H34: 10.31976744 | I34: 10.31976744 | J34: 12.30620155 | K34: 12.79069767 | L34: 13.56589147
A35: East Calgary - Multi Service Facility Regional Pathway | C35: 1.55 | D35: 0 | E35: 0 | F35: 0 | G35: 0 | H35: 16.12903226 | I35: 83.87096774 | J35: 0 | K35: 0 | L35: 0
A36: East Calgary - Vertical Well Remediation | C36: 2.3 | D36: 0 | E36: 0 | F36: 0 | G36: 13.04347826 | H36: 86.95652174 | I36: 0 | J36: 0 | K36: 0 | L36: 0
A37: Shepard - Stormwater Master Drainage Plan | C37: 0.25 | D37: 100 | E37: 0 | F37: 0 | G37: 0 | H37: 0 | I37: 0 | J37: 0 | K37: 0 | L37: 0
A38: Shepard - Vertical Well Remediation | C38: 2.3 | D38: 0 | E38: 0 | F38: 0 | G38: 0 | H38: 0 | I38: 0 | J38: 13.04347826 | K38: 86.95652174 | L38: 0
A39: Spyhill - Stormwater Master Drainage Plan | C39: 0.125 | D39: 0 | E39: 100 | F39: 0 | G39: 0 | H39: 0 | I39: 0 | J39: 0 | K39: 0 | L39: 0
A40: Waste & Recycling Building Condition Assessments | C40: 1.35 | D40: 11.11111111 | E40: 11.11111111 | F40: 11.11111111 | G40: 11.11111111 | H40: 11.11111111 | I40: 11.11111111 | J40: 11.11111111 | K40: 11.11111111 | L40: 11.11111111
A41: Waste & Recycling Building Maintenance | C41: 3.605 | D41: 7.004160888 | E41: 7.21220527 | F41: 7.420249653 | G41: 9.361997226 | H41: 9.986130374 | I41: 12.69070735 | J41: 16.64355062 | K41: 14.21636616 | L41: 15.46463245
A42: Waste & Recycling Fencing Upgrade & Maintenance | C42: 2.07 | D42: 7.971014493 | E42: 8.45410628 | F42: 9.178743961 | G42: 9.661835749 | H42: 10.86956522 | I42: 11.83574879 | J42: 13.04347826 | K42: 14.00966184 | L42: 14.97584541
A43: Waste & Recycling - Stormwater Pond Sediment Maintenance | C43: 5.4 | D43: 11.11111111 | E43: 11.11111111 | F43: 11.11111111 | G43: 11.11111111 | H43: 11.11111111 | I43: 11.11111111 | J43: 11.11111111 | K43: 11.11111111 | L43: 11.11111111
A44: Waste Management Facilities - Road & Pad Maintenance | C44: 4.756 | D44: 8.641715728 | E44: 9.777123633 | F44: 9.051724138 | G44: 11.59587889 | H44: 9.524810765 | I44: 7.947855341 | J44: 18.07190917 | K44: 14.50798991 | L44: 10.88099243
A46: Service Enhancement - Primary Driver
A48: Buildings, Roads and Related Assets | B48: H | C48: 17.368 | D48: 26.96913865 | E48: 34.25264855 | F48: 3.641754952 | G48: 3.670543528 | H48: 3.8288807 | I48: 9.615384615 | J48: 4.016006449 | K48: 4.908452326 | L48: 9.097190235
A49: East Calgary - Perimeter Road Paving | C49: 3.6205 | D49: 1.657229664 | E49: 98.34277034 | F49: 0 | G49: 0 | H49: 0 | I49: 0 | J49: 0 | K49: 0 | L49: 0
A50: Shepard - Surface Water/Compost Pad | C50: 3.3 | D50: 100 | E50: 0 | F50: 0 | G50: 0 | H50: 0 | I50: 0 | J50: 0 | K50: 0 | L50: 0
A51: Southwest Eco Centre - Building Upgrades | C51: 2 | D51: 0 | E51: 0 | F51: 0 | G51: 0 | H51: 0 | I51: 50 | J51: 0 | K51: 7.5 | L51: 42.5
A52: Spyhill - West Access Road to Active Lift | C52: 0.674 | D52: 100 | E52: 0 | F52: 0 | G52: 0 | H52: 0 | I52: 0 | J52: 0 | K52: 0 | L52: 0
A53: Spyhill- Perimeter Road Paving | C53: 1.8285 | D53: 2.734481816 | E53: 97.26551818 | F53: 0 | G53: 0 | H53: 0 | I53: 0 | J53: 0 | K53: 0 | L53: 0
A54: Waste & Recycling - Roads Alterations & Signage | C54: 1.445 | D54: 6.920415225 | E54: 7.612456747 | F54: 9.169550173 | G54: 9.515570934 | H54: 11.41868512 | I54: 11.76470588 | J54: 13.66782007 | K54: 14.01384083 | L54: 15.91695502
A55: Waste Management Facilities- Road Upgrades | C55: 4.5 | D55: 11.11111111 | E55: 11.11111111 | F55: 11.11111111 | G55: 11.11111111 | H55: 11.11111111 | I55: 11.11111111 | J55: 11.11111111 | K55: 11.11111111 | L55: 11.11111111
A56: Capping, Remediation and Cell Construction | B56: H | C56: 67.595 | D56: 17.22760559 | E56: 21.82114062 | F56: 3.402618537 | G56: 0.369849841 | H56: 0.07396996819 | I56: 0.369849841 | J56: 1.6273393 | K56: 49.92972853 | L56: 5.177897774
A57: Cell Capping - Landfill Gas Control | C57: 1.2 | D57: 4.166666667 | E57: 20.83333333 | F57: 4.166666667 | G57: 20.83333333 | H57: 4.166666667 | I57: 20.83333333 | J57: 4.166666667 | K57: 20.83333333 | L57: 0
A58: East Calgary - Cap Remediation (Phase 3-5) | C58: 7.4 | D58: 0 | E58: 0 | F58: 0 | G58: 0 | H58: 0 | I58: 0 | J58: 2.027027027 | K58: 97.97297297 | L58: 0
A59: East Calgary - Capping (Cells 8-9, 10-12S) | C59: 7.9 | D59: 100 | E59: 0 | F59: 0 | G59: 0 | H59: 0 | I59: 0 | J59: 0 | K59: 0 | L59: 0
A60: East Calgary - Phase 7 Cell 10-11NS Capping | C60: 6.85 | D60: 0 | E60: 0 | F60: 0 | G60: 0 | H60: 0 | I60: 0 | J60: 5.109489051 | K60: 94.89051095 | L60: 0
A61: Shepard - Cap Restoration (Phase 4-5) | C61: 2.875 | D61: 4.347826087 | E61: 95.65217391 | F61: 0 | G61: 0 | H61: 0 | I61: 0 | J61: 0 | K61: 0 | L61: 0
A62: Shepard - Capping Cell 9 | C62: 1.5 | D62: 100 | E62: 0 | F62: 0 | G62: 0 | H62: 0 | I62: 0 | J62: 0 | K62: 0 | L62: 0
A63: Shepard - Cell 13-14W Closure | C63: 3.75 | D63: 0 | E63: 0 | F63: 0 | G63: 0 | H63: 0 | I63: 0 | J63: 0 | K63: 6.666666667 | L63: 93.33333333
A64: Shepard - Cell 14W Slope Closure | C64: 3.75 | D64: 0 | E64: 0 | F64: 0 | G64: 0 | H64: 0 | I64: 0 | J64: 6.666666667 | K64: 93.33333333 | L64: 0
A65: Shepard - Cell 25 | C65: 16.3 | D65: 0 | E65: 0 | F65: 0 | G65: 0 | H65: 0 | I65: 0 | J65: 1.840490798 | K65: 98.1595092 | L65: 0
A66: Shepard - Cells 10-14E Slope Closure | C66: 5.8 | D66: 5.172413793 | E66: 94.82758621 | F66: 0 | G66: 0 | H66: 0 | I66: 0 | J66: 0 | K66: 0 | L66: 0
A67: Spyhill - Cell 4 Closure | C67: 1.5 | D67: 100 | E67: 0 | F67: 0 | G67: 0 | H67: 0 | I67: 0 | J67: 0 | K67: 0 | L67: 0
A68: Spyhill - Cells 5-7 N Slope Closure | C68: 6.27 | D68: 4.306220096 | E68: 95.6937799 | F68: 0 | G68: 0 | H68: 0 | I68: 0 | J68: 0 | K68: 0 | L68: 0
A69: Spyhill - Temporary Capping | C69: 2.5 | D69: 0 | E69: 10 | F69: 90 | G69: 0 | H69: 0 | I69: 0 | J69: 0 | K69: 0 | L69: 0
A70: Composting Facility - Environmental Upgrades | B70: H | C70: 17 | D70: 64.70588235 | E70: 0 | F70: 35.29411765 | G70: 0 | H70: 0 | I70: 0 | J70: 0 | K70: 0 | L70: 0
A71: Composting Facility - Operational Improvements | B71: H | C71: 29.8 | D71: 46.30872483 | E71: 26.84563758 | F71: 26.84563758 | G71: 0 | H71: 0 | I71: 0 | J71: 0 | K71: 0 | L71: 0
A72: Composting Facility - Storage upgrades | B72: H | C72: 25 | D72: 100 | E72: 0 | F72: 0 | G72: 0 | H72: 0 | I72: 0 | J72: 0 | K72: 0 | L72: 0
A73: IT Project Implentation | B73: H | C73: 3.68 | D73: 30.02717391 | E73: 25.13586957 | F73: 5.434782609 | G73: 8.831521739 | H73: 8.831521739 | I73: 0.6793478261 | J73: 10.19021739 | K73: 10.19021739 | L73: 0.6793478261
A74: Landfill Gas Management | B74: H | C74: 26.472 | D74: 19.75672409 | E74: 19.83605319 | F74: 17.01042611 | G74: 5.469930493 | H74: 10.60365669 | I74: 5.24705349 | J74: 7.101843457 | K74: 11.00785736 | L74: 3.966455122
A75: East Calgary - Landfill Gas Expansion Phase 6-Cells 7/8 | C75: 1.586 | D75: 100 | E75: 0 | F75: 0 | G75: 0 | H75: 0 | I75: 0 | J75: 0 | K75: 0 | L75: 0
A76: East Calgary - Landfill Gas Flare Replacement | C76: 1.1 | D76: 0 | E76: 0 | F76: 0 | G76: 0 | H76: 0 | I76: 0 | J76: 9.090909091 | K76: 90.90909091 | L76: 0
A77: East Calgary - Vertical Landfill Gas | C77: 6.05 | D77: 4.132231405 | E77: 24.79338843 | F77: 33.05785124 | G77: 4.958677686 | H77: 33.05785124 | I77: 0 | J77: 0 | K77: 0 | L77: 0
A78: Shepard - Landfill Gas Expansion Phase 5 (Cells 10-12) | C78: 2.2 | D78: 9.090909091 | E78: 90.90909091 | F78: 0 | G78: 0 | H78: 0 | I78: 0 | J78: 0 | K78: 0 | L78: 0
A79: Shepard - Landfill Gas Flare | C79: 1.1 | D79: 0 | E79: 9.090909091 | F79: 90.90909091 | G79: 0 | H79: 0 | I79: 0 | J79: 0 | K79: 0 | L79: 0
A80: Spyhill - Landfill Gas Phase 1 to Soil Vapour Extraction Facility | C80: 1.575 | D80: 100 | E80: 0 | F80: 0 | G80: 0 | H80: 0 | I80: 0 | J80: 0 | K80: 0 | L80: 0
A81: Waste & Recycling - Horizontal Landfill Gas Collection | C81: 12.861 | D81: 12.58844569 | E81: 12.83725993 | F81: 11.68649405 | G81: 8.926211026 | H81: 6.274784231 | I81: 10.80009331 | J81: 13.84029236 | K81: 14.88220201 | L81: 8.164217401
A82: Leachate Treatment - Annual Investment Program | B82: H | C82: 8 | D82: 6.25 | E82: 6.25 | F82: 12.5 | G82: 12.5 | H82: 12.5 | I82: 12.5 | J82: 12.5 | K82: 12.5 | L82: 12.5
A83: Leachate Treatment Upgrades | B83: H | C83: 3.2 | D83: 0 | E83: 50 | F83: 25 | G83: 25 | H83: 0 | I83: 0 | J83: 0 | K83: 0 | L83: 0
A84: Master Plan Updates | B84: H | C84: 1.8 | D84: 0 | E84: 0 | F84: 0 | G84: 0 | H84: 0 | I84: 0 | J84: 33.33333333 | K84: 33.33333333 | L84: 33.33333333
A85: East Calgary - Waste Management Facility Master Plan | C85: 0.6 | D85: 0 | E85: 0 | F85: 0 | G85: 0 | H85: 0 | I85: 0 | J85: 0 | K85: 100 | L85: 0
A86: Shepard - Waste Management Facility Master Plan | C86: 0.6 | D86: 0 | E86: 0 | F86: 0 | G86: 0 | H86: 0 | I86: 0 | J86: 0 | K86: 0 | L86: 100
A87: Spyhill - Waste Management Facility Master Plan | C87: 0.6 | D87: 0 | E87: 0 | F87: 0 | G87: 0 | H87: 0 | I87: 0 | J87: 100 | K87: 0 | L87: 0
A88: Stormwater Improvements | B88: H | C88: 0.79 | D88: 17.72151899 | E88: 82.27848101 | F88: 0 | G88: 0 | H88: 0 | I88: 0 | J88: 0 | K88: 0 | L88: 0
A89: Spyhill - Pond C Catch Basin Improvement | C89: 0.07 | D89: 28.57142857 | E89: 71.42857143 | F89: 0 | G89: 0 | H89: 0 | I89: 0 | J89: 0 | K89: 0 | L89: 0
A90: Spyhill - Pond D Inlet Oil, Grit, Sepearator Installation | C90: 0.12 | D90: 16.66666667 | E90: 83.33333333 | F90: 0 | G90: 0 | H90: 0 | I90: 0 | J90: 0 | K90: 0 | L90: 0
A91: Waste & Recycling - Culvert & Ditches | C91: 0.6 | D91: 16.66666667 | E91: 83.33333333 | F91: 0 | G91: 0 | H91: 0 | I91: 0 | J91: 0 | K91: 0 | L91: 0
A92: Waste & Recycling Records Maintenance | B92: H | C92: 0.7875 | D92: 11.11111111 | E92: 11.11111111 | F92: 11.11111111 | G92: 11.11111111 | H92: 11.11111111 | I92: 11.11111111 | J92: 11.11111111 | K92: 11.11111111 | L92: 11.11111111
A93: Waste & Recycling - Technology Planning | B93: H | C93: 1.8 | D93: 11.11111111 | E93: 11.11111111 | F93: 11.11111111 | G93: 11.11111111 | H93: 11.11111111 | I93: 11.11111111 | J93: 11.11111111 | K93: 11.11111111 | L93: 11.11111111
A94: Medium Priority Investments | B94: M | C94: 62.1005 | D94: 16.03932335 | E94: 35.97797119 | F94: 8.164185474 | G94: 8.494295537 | H94: 4.432331463 | I94: 9.029717957 | J94: 1.586138598 | K94: 13.59087286 | L94: 2.685163566
A95: Cell Capping - Landfill Gas Control | C95: 1.2 | D95: 4.166666667 | E95: 20.83333333 | F95: 4.166666667 | G95: 20.83333333 | H95: 4.166666667 | I95: 20.83333333 | J95: 4.166666667 | K95: 20.83333333 | L95: 0
A96: East Calgary - Solar | C96: 2.6 | D96: 0 | E96: 15.38461538 | F96: 42.30769231 | G96: 42.30769231 | H96: 0 | I96: 0 | J96: 0 | K96: 0 | L96: 0
A97: East Calgary Cap Remediation (Phase 3-5) | C97: 7.4 | D97: 0 | E97: 0 | F97: 0 | G97: 0 | H97: 0 | I97: 0 | J97: 2.027027027 | K97: 97.97297297 | L97: 0
A98: East Calgary - Perimeter Road Paving | C98: 3.6205 | D98: 1.657229664 | E98: 98.34277034 | F98: 0 | G98: 0 | H98: 0 | I98: 0 | J98: 0 | K98: 0 | L98: 0
A99: East Calgary - Phase 1 Landfill Gas System | C99: 1.7 | D99: 0 | E99: 0 | F99: 0 | G99: 11.76470588 | H99: 88.23529412 | I99: 0 | J99: 0 | K99: 0 | L99: 0
A100: Eco Centre - Feasibility Study T&G upgrade | C100: 0.3 | D100: 100 | E100: 0 | F100: 0 | G100: 0 | H100: 0 | I100: 0 | J100: 0 | K100: 0 | L100: 0
A101: Landfill Gas Line (BF-SB) | C101: 2.2 | D101: 0 | E101: 0 | F101: 0 | G101: 0 | H101: 9.090909091 | I101: 90.90909091 | J101: 0 | K101: 0 | L101: 0
A102: Leachate Collection SCADA Monitoring | C102: 1.003 | D102: 0.2991026919 | E102: 9.970089731 | F102: 89.73080758 | G102: 0 | H102: 0 | I102: 0 | J102: 0 | K102: 0 | L102: 0
A103: Nose Creek Vapour Management System Expansion | C103: 4.5 | D103: 6.666666667 | E103: 93.33333333 | F103: 0 | G103: 0 | H103: 0 | I103: 0 | J103: 0 | K103: 0 | L103: 0
A104: Shepard - Solar | C104: 2.6 | D104: 57.69230769 | E104: 42.30769231 | F104: 0 | G104: 0 | H104: 0 | I104: 0 | J104: 0 | K104: 0 | L104: 0
A105: Shepard - Cap Restoration Phase 4-5 | C105: 2.875 | D105: 4.347826087 | E105: 95.65217391 | F105: 0 | G105: 0 | H105: 0 | I105: 0 | J105: 0 | K105: 0 | L105: 0
A106: Shepard - Header Connection (LF to Comp) | C106: 1.85 | D106: 0 | E106: 0 | F106: 0 | G106: 0 | H106: 13.51351351 | I106: 86.48648649 | J106: 0 | K106: 0 | L106: 0
A107: Shepard - Solid Waste Management Plan | C107: 0.5 | D107: 50 | E107: 50 | F107: 0 | G107: 0 | H107: 0 | I107: 0 | J107: 0 | K107: 0 | L107: 0
A108: Shepard - Perimeter Road Paving | C108: 3.828 | D108: 2.612330199 | E108: 97.3876698 | F108: 0 | G108: 0 | H108: 0 | I108: 0 | J108: 0 | K108: 0 | L108: 0
A109: Southwest Eco Centre - Building Upgrades | C109: 2 | D109: 0 | E109: 0 | F109: 0 | G109: 0 | H109: 0 | I109: 50 | J109: 0 | K109: 7.5 | L109: 42.5
A110: Spyhill - Solar | C110: 2.6 | D110: 15.38461538 | E110: 42.30769231 | F110: 42.30769231 | G110: 0 | H110: 0 | I110: 0 | J110: 0 | K110: 0 | L110: 0
A111: Spyhill - Vertical Landfill Gas | C111: 3.5 | D111: 0 | E111: 0 | F111: 14.28571429 | G111: 85.71428571 | H111: 0 | I111: 0 | J111: 0 | K111: 0 | L111: 0
A112: Spyhill - Landfill Gas Expansion - Phase 3 - Cells 4&5 | C112: 0.2 | D112: 100 | E112: 0 | F112: 0 | G112: 0 | H112: 0 | I112: 0 | J112: 0 | K112: 0 | L112: 0
A113: Spyhill - Landfill Gas to Electricity Facility | C113: 7.263 | D113: 78.96186149 | E113: 21.03813851 | F113: 0 | G113: 0 | H113: 0 | I113: 0 | J113: 0 | K113: 0 | L113: 0
A114: Spyhill - New Power Poles | C114: 0.9 | D114: 0 | E114: 22.22222222 | F114: 77.77777778 | G114: 0 | H114: 0 | I114: 0 | J114: 0 | K114: 0 | L114: 0
A115: Spyhill - Perimeter Road Paving | C115: 1.8285 | D115: 2.734481816 | E115: 97.26551818 | F115: 0 | G115: 0 | H115: 0 | I115: 0 | J115: 0 | K115: 0 | L115: 0
A116: Spyhill Permanent Power Installation | C116: 0.9 | D116: 22.22222222 | E116: 77.77777778 | F116: 0 | G116: 0 | H116: 0 | I116: 0 | J116: 0 | K116: 0 | L116: 0
A117: Waste & Recycling Records Maintenance | C117: 0.7875 | D117: 11.11111111 | E117: 11.11111111 | F117: 11.11111111 | G117: 11.11111111 | H117: 11.11111111 | I117: 11.11111111 | J117: 11.11111111 | K117: 11.11111111 | L117: 11.11111111
A118: Waste & Recycling Roads Alterations & Signage | C118: 1.445 | D118: 6.920415225 | E118: 7.612456747 | F118: 9.169550173 | G118: 9.515570934 | H118: 11.41868512 | I118: 11.76470588 | J118: 13.66782007 | K118: 14.01384083 | L118: 15.91695502
A119: Waste Management Facilities - Road Upgrades | C119: 4.5 | D119: 11.11111111 | E119: 11.11111111 | F119: 11.11111111 | G119: 11.11111111 | H119: 11.11111111 | I119: 11.11111111 | J119: 11.11111111 | K119: 11.11111111 | L119: 11.11111111
A121: Growth - Primary Driver
A123: Buildings, Roads and Related Assets | B123: H | C123: 204.855 | D123: 0.2977715945 | E123: 5.882209368 | F123: 8.100851822 | G123: 34.90273608 | H123: 34.90273608 | I123: 15.91369505 | J123: 0 | K123: 0 | L123: 0
A124: East Calgary - Multi Service Facility Office and Site Service | C124: 24.22 | D124: 0.4954582989 | E124: 49.75227085 | F124: 49.75227085 | G124: 0 | H124: 0 | I124: 0 | J124: 0 | K124: 0 | L124: 0
A125: East Calgary - Multi Service Facility Vehicle Storage | C125: 40.525 | D125: 0 | E125: 0 | F125: 0.5552128316 | G125: 49.72239358 | H125: 49.72239358 | I125: 0 | J125: 0 | K125: 0 | L125: 0
A126: Spring Gardens - OWC (Building Upgrades) | C126: 1.75 | D126: 0 | E126: 0 | F126: 2.857142857 | G126: 48.57142857 | H126: 48.57142857 | I126: 0 | J126: 0 | K126: 0 | L126: 0
A127: Spring Gardens - New Warehouse | C127: 11.6 | D127: 0 | E127: 0 | F127: 15.51724138 | G127: 42.24137931 | H127: 42.24137931 | I127: 0 | J127: 0 | K127: 0 | L127: 0
A128: Spring Gardens - Site Improvements & Upgrades | C128: 2.64 | D128: 18.56060606 | E128: 0 | F128: 1.893939394 | G128: 39.77272727 | H128: 39.77272727 | I128: 0 | J128: 0 | K128: 0 | L128: 0
A129: Spring Gardens - Building B Renovations | C129: 5.3 | D129: 0 | E129: 0 | F129: 15.09433962 | G129: 42.45283019 | H129: 42.45283019 | I129: 0 | J129: 0 | K129: 0 | L129: 0
A130: Spyhill New Depot - Office | C130: 19.64 | D130: 0 | E130: 0 | F130: 1.221995927 | G130: 49.38900204 | H130: 49.38900204 | I130: 0 | J130: 0 | K130: 0 | L130: 0
A131: Spyhill New Depot - Site Work | C131: 21.642 | D131: 0 | E131: 0 | F131: 1.10895481 | G131: 32.96368173 | H131: 32.96368173 | I131: 32.96368173 | J131: 0 | K131: 0 | L131: 0
A132: Spyhill New Depot - Vehicle Storage | C132: 61.296 | D132: 0 | E132: 0 | F132: 1.468285043 | G132: 32.84390499 | H132: 32.84390499 | I132: 32.84390499 | J132: 0 | K132: 0 | L132: 0
A133: Spyhill New Depot - Washbay | C133: 16.242 | D133: 0 | E133: 0 | F133: 1.477650536 | G133: 32.84078315 | H133: 32.84078315 | I133: 32.84078315 | J133: 0 | K133: 0 | L133: 0
A134: Capping, Remediation and Cell Construction | B134: H | C134: 98.49 | D134: 24.71316885 | E134: 20.30663011 | F134: 0.2842928216 | G134: 9.615189359 | H134: 15.38227231 | I134: 8.173418621 | J134: 1.776830135 | K134: 14.51924053 | L134: 5.228957255
A135: East Calgary - Phase 7 Cell 10 North | C135: 11.5 | D135: 100 | E135: 0 | F135: 0 | G135: 0 | H135: 0 | I135: 0 | J135: 0 | K135: 0 | L135: 0
A136: East Calgary - Phase 7 Cell 11 North | C136: 12.27 | D136: 0 | E136: 0 | F136: 0 | G136: 2.200488998 | H136: 97.799511 | I136: 0 | J136: 0 | K136: 0 | L136: 0
A137: East Calgary - Phase 7 Cell 12 North | C137: 14.25 | D137: 0 | E137: 0 | F137: 0 | G137: 0 | H137: 0 | I137: 0 | J137: 1.754385965 | K137: 98.24561404 | L137: 0
A138: Overburden Excavation | C138: 6.45 | D138: 0.7751937984 | E138: 15.50387597 | F138: 0.7751937984 | G138: 23.25581395 | H138: 0 | I138: 0.7751937984 | J138: 23.25581395 | K138: 0.7751937984 | L138: 34.88372093
A139: Shepard - Cell 13/14 West | C139: 14.3 | D139: 2.097902098 | E139: 97.9020979 | F139: 0 | G139: 0 | H139: 0 | I139: 0 | J139: 0 | K139: 0 | L139: 0
A140: Shepard - Asbestos Cell | C140: 9.45 | D140: 33.33333333 | E140: 0 | F140: 0 | G140: 2.645502646 | H140: 30.68783069 | I140: 0 | J140: 0 | K140: 2.645502646 | L140: 30.68783069
A141: Shepard - Cell 11/12 Berm | C141: 0.43 | D141: 100 | E141: 0 | F141: 0 | G141: 0 | H141: 0 | I141: 0 | J141: 0 | K141: 0 | L141: 0
A142: Shepard - Cell 12/13 Berm | C142: 0.45 | D142: 0 | E142: 0 | F142: 0 | G142: 100 | H142: 0 | I142: 0 | J142: 0 | K142: 0 | L142: 0
A143: Spyhill - Phase 3 Cell 4 Berm | C143: 0.35 | D143: 100 | E143: 0 | F143: 0 | G143: 0 | H143: 0 | I143: 0 | J143: 0 | K143: 0 | L143: 0
A144: Spyhill - Phase 3 Cell 8 East Phase 1 | C144: 8.34 | D144: 100 | E144: 0 | F144: 0 | G144: 0 | H144: 0 | I144: 0 | J144: 0 | K144: 0 | L144: 0
A145: Spyhill - Phase 3 Cell 8 East Phase 2 | C145: 5.22 | D145: 4.214559387 | E145: 95.78544061 | F145: 0 | G145: 0 | H145: 0 | I145: 0 | J145: 0 | K145: 0 | L145: 0
A146: Spyhill - Phase 3 Cell 8 West | C146: 8.25 | D146: 0 | E146: 0 | F146: 0 | G146: 0 | H146: 3.03030303 | I146: 96.96969697 | J146: 0 | K146: 0 | L146: 0
A147: Spyhill - Phase 3 Cell 9 East | C147: 7.23 | D147: 0 | E147: 0 | F147: 3.181189488 | G147: 96.81881051 | H147: 0 | I147: 0 | J147: 0 | K147: 0 | L147: 0
A148: Landfill Gas Management | B148: H | C148: 2.05 | D148: 2.43902439 | E148: 19.51219512 | F148: 48.7804878 | G148: 0 | H148: 4.87804878 | I148: 24.3902439 | J148: 0 | K148: 0 | L148: 0
A149: East Calgary - Landfill Ring Header | C149: 1.2 | D149: 0 | E149: 16.66666667 | F149: 83.33333333 | G149: 0 | H149: 0 | I149: 0 | J149: 0 | K149: 0 | L149: 0
A150: Shepard - Landfill Gas Ring Header | C150: 0.6 | D150: 0 | E150: 0 | F150: 0 | G150: 0 | H150: 16.66666667 | I150: 83.33333333 | J150: 0 | K150: 0 | L150: 0
A151: Shepard - Cell 10-12 Vertical Landfill Gas Expansion | C151: 0.25 | D151: 20 | E151: 80 | F151: 0 | G151: 0 | H151: 0 | I151: 0 | J151: 0 | K151: 0 | L151: 0
A152: Waste & Recycling - Collections Growth Management | B152: H | C152: 7 | D152: 14.28571429 | E152: 14.28571429 | F152: 14.28571429 | G152: 14.28571429 | H152: 14.28571429 | I152: 7.142857143 | J152: 7.142857143 | K152: 7.142857143 | L152: 7.142857143
A153: Waste & Recycling - Existing Building CRD Expansions/Leases | B153: H | C153: 2.25 | D153: 11.11111111 | E153: 11.11111111 | F153: 11.11111111 | G153: 11.11111111 | H153: 11.11111111 | I153: 11.11111111 | J153: 11.11111111 | K153: 11.11111111 | L153: 11.11111111
A154: Medium Priority Investments | B154: M | C154: 148.85 | D154: 1.343634531 | E154: 0.3359086329 | F154: 10.14444071 | G154: 10.34598589 | H154: 0 | I154: 0 | J154: 0.3023177696 | K154: 38.76385623 | L154: 38.76385623
A155: Compost Facility Expansion | C155: 115.85 | D155: 0 | E155: 0 | F155: 0 | G155: 0 | H155: 0 | I155: 0 | J155: 0.3884333189 | K155: 49.80578334 | L155: 49.80578334
A156: Eco Centres (SW, W, NE) | C156: 30.5 | D156: 0 | E156: 1.639344262 | F156: 49.18032787 | G156: 49.18032787 | H156: 0 | I156: 0 | J156: 0 | K156: 0 | L156: 0
A157: Spyhill - Cell 4&5 Vertical Landfill Gas Expansion | C157: 2 | D157: 100 | E157: 0 | F157: 0 | G157: 0 | H157: 0 | I157: 0 | J157: 0 | K157: 0 | L157: 0
A158: Spyhill - Landfill Gas Ring Header | C158: 0.5 | D158: 0 | E158: 0 | F158: 20 | G158: 80 | H158: 0 | I158: 0 | J158: 0 | K158: 0 | L158: 0
A160: Total Capital Infrastructure Needs - Waste & Recycling Services | C160: =SUM(C13:C158)-C13-C19-C26-C31-C48-C56-C74-C84-C88-C94-C123-C134-C148-C154 -> 827.18
A164: ICS: Unrestricted

Sheet WU (Wastewater Treatment)
A1: Appendix B: Capital Infrastructure Needs - Water Utility (Wastewater Treatment & Collection)
A2: The values presented reflect planned investments in the last year of the approved 4-year business cycle, as well as pre-approved budget for the 2027-2030 business cycle. These values have been rounded to the nearest million for presentation purposes. Variations between the planned investments and approved budget in a given year will be reconciled as part of the annual budget adjustment process to align budget needs and updated cash flows and timing. The majority of the 10-year capital investments are foundational in nature and have been prioritized as High, reflecting the minimum funding required to sustain current service levels, meet regulatory and safety obligations, and manage core operational risks. These investments establish the baseline level of service and define the essential capital required to maintain system reliability over time. A smaller number of investments are prioritized as Medium, representing instances where opportunities existed to scale back, defer, or modify scope while still maintaining acceptable service and risk outcomes. In these cases, Annual Investment Programs (AIPs) have been reduced to scaled program values and/or project scopes have been adjusted to balance affordability with long-term service continuity.
B3: Legend (% of capital $ per opportunity item) | F3: Critical Assets in Poor / Very Poor Condition
B4: 1% ~ 10% | F4: Severe Consequence of Failure
B5: 11% ~ 25% | F5: High Consequence of Failure
B6: 25% +
A8: Appendix B: Capital Infrastructure Needs | C8: Total | D8: 0 | E8: 0 | F8: 0 | G8: 0 | H8: 0 | I8: 0 | J8: 0 | K8: 0 | L8: 0
A9: ($millions) | C9: 2027-2035+ | D9: 2027 | E9: 2028 | F9: 2029 | G9: 2030 | H9: 2031 | I9: 2032 | J9: 2033 | K9: 2034 | L9: 2035+
A10: 0 | C10: 0 | D10: 0 | E10: 0 | F10: 0 | G10: 0 | H10: 0 | I10: 0 | J10: 0 | K10: 0 | L10: 0
A11: Maintenance - Primary Driver | C11: 0 | D11: 0 | E11: 0 | F11: 0 | G11: 0 | H11: 0 | I11: 0 | J11: 0 | K11: 0 | L11: 0
A12: 0 | C12: 0 | D12: 0 | E12: 0 | F12: 0 | G12: 0 | H12: 0 | I12: 0 | J12: 0 | K12: 0 | L12: 0
A13: Advancing Canadian Water Assets Capital Maintenance (ACWA) | B13: 0 | C13: 0.18 | D13: 11.11111111 | E13: 11.11111111 | F13: 11.11111111 | G13: 11.11111111 | H13: 11.11111111 | I13: 11.11111111 | J13: 11.11111111 | K13: 11.11111111 | L13: 11.11111111
A14: Control Systems & Electrical Upgrades | B14: 0 | C14: 40 | D14: 11.65903487 | E14: 24.23891712 | F14: 9.19337795 | G14: 9.19337795 | H14: 9.143058421 | I14: 9.143058421 | J14: 9.143058421 | K14: 9.143058421 | L14: 9.143058421
A15: Fish Creek Wastewater Treatment Plant Upgrade | B15: 0 | C15: 6.02 | D15: 0 | E15: 99.66777409 | F15: 0 | G15: 0.3322259136 | H15: 0 | I15: 0 | J15: 0 | K15: 0 | L15: 0
A16: Process Control Systems Wastewater Collection | B16: 0 | C16: 6.132 | D16: 11.11111111 | E16: 11.11111111 | F16: 11.11111111 | G16: 11.11111111 | H16: 11.11111111 | I16: 11.11111111 | J16: 11.11111111 | K16: 11.11111111 | L16: 11.11111111
A17: Wastewater Treatment Distributed Control Systems Modernization | B17: 0 | C17: 27 | D17: 11.11111111 | E17: 11.11111111 | F17: 11.11111111 | G17: 11.11111111 | H17: 11.11111111 | I17: 11.11111111 | J17: 11.11111111 | K17: 11.11111111 | L17: 11.11111111
A18: Wastewater Treatment Plant- Bonnybrook Electrical Upgrades | B18: 0 | C18: 1 | D18: 98.03921569 | E18: 0 | F18: 1.960784314 | G18: 0 | H18: 0 | I18: 0 | J18: 0 | K18: 0 | L18: 0
A19: Fish Creek to Bonnybrook Transfer Forcemain | B19: 0 | C19: 13 | D19: 100 | E19: 0 | F19: 0 | G19: 0 | H19: 0 | I19: 0 | J19: 0 | K19: 0 | L19: 0
A20: Lift Stations | B20: 0 | C20: 24.472 | D20: 16.83965348 | E20: 12.46322328 | F20: 19.14841451 | G20: 17.83262504 | H20: 3.093331154 | I20: 2.284243217 | J20: 5.569630598 | K20: 10.82052958 | L20: 11.94834913
A21: Lift Station Capital Maintenance | B21: 0 | C21: 23.472 | D21: 17.5570893 | E21: 12.99420586 | F21: 19.96421268 | G21: 18.16632584 | H21: 2.799079755 | I21: 1.529481936 | J21: 4.954839809 | K21: 10.42944785 | L21: 11.60531697
A22: Sanitary Lift Station Condition Assessment | B22: 0 | C22: 1 | D22: 0 | E22: 0 | F22: 0 | G22: 10 | H22: 10 | I22: 20 | J22: 20 | K22: 20 | L22: 20
A23: Replacement Contracts | B23: 0 | C23: 218.559 | D23: 7.282701696 | E23: 7.587882448 | F23: 8.354723439 | G23: 10.04030948 | H23: 10.81538623 | I23: 12.28180949 | J23: 13.98203689 | K23: 14.5438989 | L23: 15.11125142
A24: Replacements Extension Extend Contracts | B24: 0 | C24: 184.934 | D24: 6.906788368 | E24: 7.197702964 | F24: 8.030432479 | G24: 9.944628895 | H24: 10.77843988 | I24: 12.42389177 | J24: 14.34025112 | K24: 14.90585831 | L24: 15.47200623
A25: Service Replacements City & Outside Contractors | B25: 0 | C25: 33.625 | D25: 9.350185874 | E25: 9.733828996 | F25: 10.13828996 | G25: 10.56654275 | H25: 11.01858736 | I25: 11.50037175 | J25: 12.01189591 | K25: 12.55315985 | L25: 13.12713755
A26: Wastewater Cathodic Protection | B26: 0 | C26: 0.2 | D26: 0 | E26: 0 | F26: 0 | G26: 50 | H26: 0 | I26: 0 | J26: 0 | K26: 50 | L26: 0
A27: Wastewater Collection Network Condition Assessment | B27: 0 | C27: 22 | D27: 9.090909091 | E27: 11.36363636 | F27: 11.36363636 | G27: 11.36363636 | H27: 11.36363636 | I27: 11.36363636 | J27: 11.36363636 | K27: 11.36363636 | L27: 11.36363636
A28: Wastewater Critical Infrastructure Replacement/Repairs | B28: 0 | C28: 16 | D28: 9.677419355 | E28: 9.677419355 | F28: 9.677419355 | G28: 9.677419355 | H28: 9.677419355 | I28: 12.90322581 | J28: 12.90322581 | K28: 12.90322581 | L28: 12.90322581
A29: Wastewater Infrastructure Access Road Construction | B29: 0 | C29: 0.9 | D29: 11.11111111 | E29: 11.11111111 | F29: 11.11111111 | G29: 11.11111111 | H29: 11.11111111 | I29: 11.11111111 | J29: 11.11111111 | K29: 11.11111111 | L29: 11.11111111
A30: Wastewater Treatment Plants | B30: 0 | C30: 230.55 | D30: 11.08219475 | E30: 11.08219475 | F30: 11.08219475 | G30: 11.12556929 | H30: 11.29906745 | I30: 11.08219475 | J30: 11.08219475 | K30: 11.08219475 | L30: 11.08219475
A31: Fish Creek Wastewater Treatment Plant -Power Utility Plan | B31: 0 | C31: 0.6 | D31: 0 | E31: 0 | F31: 0 | G31: 16.66666667 | H31: 83.33333333 | I31: 0 | J31: 0 | K31: 0 | L31: 0
A32: Wastewater Treatment Plant Condition Assessment | B32: 0 | C32: 2.25 | D32: 11.11111111 | E32: 11.11111111 | F32: 11.11111111 | G32: 11.11111111 | H32: 11.11111111 | I32: 11.11111111 | J32: 11.11111111 | K32: 11.11111111 | L32: 11.11111111
A33: Wastewater Treatment Plant Equipment | B33: 0 | C33: 225 | D33: 11.11111111 | E33: 11.11111111 | F33: 11.11111111 | G33: 11.11111111 | H33: 11.11111111 | I33: 11.11111111 | J33: 11.11111111 | K33: 11.11111111 | L33: 11.11111111
A34: Wastewater Treatment Plant Forcemain Condition Assessment and Research | B34: 0 | C34: 2.7 | D34: 11.11111111 | E34: 11.11111111 | F34: 11.11111111 | G34: 11.11111111 | H34: 11.11111111 | I34: 11.11111111 | J34: 11.11111111 | K34: 11.11111111 | L34: 11.11111111
A35: Wastewater Trenchless Rehabilitation | B35: 0 | C35: 130 | D35: 5.769230769 | E35: 6.153846154 | F35: 7.307692308 | G35: 8.461538462 | H35: 11.15384615 | I35: 13.46153846 | J35: 15.76923077 | K35: 15.76923077 | L35: 16.15384615
A36: 0 | B36: 0 | C36: 0
A37: Service Enhancement - Primary Driver | B37: 0 | C37: 0
A38: 0 | B38: 0 | C38: 0
A39: Bonnybrook Center & Control Building Upgrade | B39: 0 | C39: 74.929 | D39: 7.373647053 | E39: 31.86349744 | F39: 60.7628555 | G39: 0 | H39: 0 | I39: 0 | J39: 0 | K39: 0 | L39: 0
A40: Bonnybrook Dewatering Facility | B40: 0 | C40: 0.6 | D40: 100 | E40: 0 | F40: 0 | G40: 0 | H40: 0 | I40: 0 | J40: 0 | K40: 0 | L40: 0
A41: Bonnybrook Fermenter/Thickener | B41: 0 | C41: 76 | D41: 7.894736842 | E41: 13.15789474 | F41: 32.89473684 | G41: 32.89473684 | H41: 13.15789474 | I41: 0 | J41: 0 | K41: 0 | L41: 0
A42: Control Systems & Electrical Upgrades | B42: 0 | C42: 49.12 | D42: 6.51465798 | E42: 6.758957655 | F42: 23.41205212 | G42: 25.44788274 | H42: 17.50814332 | I42: 5.089576547 | J42: 5.089576547 | K42: 5.089576547 | L42: 5.089576547
A43: Pine Creek Power Management and Control Systems | B43: 0 | C43: 0.1 | D43: 100 | E43: 0 | F43: 0 | G43: 0 | H43: 0 | I43: 0 | J43: 0 | K43: 0 | L43: 0
A44: Pine Creek Power Utility Plan - Standby Generators | B44: 0 | C44: 5 | D44: 0 | E44: 0 | F44: 10 | G44: 30 | H44: 60 | I44: 0 | J44: 0 | K44: 0 | L44: 0
A45: Pine Creek Power Utility Plan - Upgrades | B45: 0 | C45: 5.1 | D45: 0 | E45: 0 | F45: 9.803921569 | G45: 29.41176471 | H45: 60.78431373 | I45: 0 | J45: 0 | K45: 0 | L45: 0
A46: Pine Creek Standby Power Upgrades | B46: 0 | C46: 0.3 | D46: 100 | E46: 0 | F46: 0 | G46: 0 | H46: 0 | I46: 0 | J46: 0 | K46: 0 | L46: 0
A47: Pine Creek Wastewater Treatment Plant Lighting Upgrade | B47: 0 | C47: 0.02 | D47: 0 | E47: 100 | F47: 0 | G47: 0 | H47: 0 | I47: 0 | J47: 0 | K47: 0 | L47: 0
A48: Wastewater Treatment Plant Control Systems | B48: 0 | C48: 22.5 | D48: 11.11111111 | E48: 11.11111111 | F48: 11.11111111 | G48: 11.11111111 | H48: 11.11111111 | I48: 11.11111111 | J48: 11.11111111 | K48: 11.11111111 | L48: 11.11111111
A49: Wastewater Treatment Plant- Pine Creek Electrical Upgrades | B49: 0 | C49: 16.1 | D49: 1.863354037 | E49: 4.968944099 | F49: 49.68944099 | G49: 43.47826087 | H49: 0 | I49: 0 | J49: 0 | K49: 0 | L49: 0
A50: Wastewater Treatment Plants | B50: 0 | C50: 237 | D50: 63.4371308 | E50: 17.47974684 | F50: 1.808016878 | G50: 14.08396624 | H50: 0.8438818565 | I50: 0.611814346 | J50: 0.611814346 | K50: 0.611814346 | L50: 0.611814346
A51: Emission Reduction Projects | B51: 0 | C51: 6 | D51: 0 | E51: 0 | F51: 0 | G51: 0 | H51: 16.66666667 | I51: 20.83333333 | J51: 20.83333333 | K51: 20.83333333 | L51: 20.83333333
A52: Emission Reduction Programs | B52: 0 | C52: 1.6 | D52: 0 | E52: 12.5 | F52: 12.5 | G52: 12.5 | H52: 12.5 | I52: 12.5 | J52: 12.5 | K52: 12.5 | L52: 12.5
A53: Fish Creek Wastewater Treatment Plant Heating System Upgrade | B53: 0 | C53: 4.95 | D53: 70.70707071 | E53: 29.29292929 | F53: 0 | G53: 0 | H53: 0 | I53: 0 | J53: 0 | K53: 0 | L53: 0
A54: Fish Creek Wastewater Treatment Plant Upgrade | B54: 0 | C54: 167.54 | D54: 55.03103736 | E54: 22.84648442 | F54: 2.438223708 | G54: 19.68425451 | H54: 0 | I54: 0 | J54: 0 | K54: 0 | L54: 0
A55: Fish Creek Wastewater Treatment Plant- UV Replacement | B55: 0 | C55: 24.147 | D55: 100 | E55: 0 | F55: 0 | G55: 0 | H55: 0 | I55: 0 | J55: 0 | K55: 0 | L55: 0
A56: New Wastewater Treatment Plant- Land Acquisition | B56: 0 | C56: 30 | D56: 100 | E56: 0 | F56: 0 | G56: 0 | H56: 0 | I56: 0 | J56: 0 | K56: 0 | L56: 0
A57: Solar & Wind Energy Generation | B57: 0 | C57: 3 | D57: 16.66666667 | E57: 50 | F57: 0 | G57: 6.666666667 | H57: 26.66666667 | I57: 0 | J57: 0 | K57: 0 | L57: 0
A58: Lift Stations | B58: 0 | C58: 122 | D58: 10.22071446 | E58: 14.942369 | F58: 10.58448459 | G58: 10.59511158 | H58: 10.6449767 | I58: 10.80356413 | J58: 11.15915965 | K58: 10.8313578 | L58: 10.21826208
A59: East Calgary Sanitary Lift Station Improvements | B59: 0 | C59: 15 | D59: 66.66666667 | E59: 33.33333333 | F59: 0 | G59: 0 | H59: 0 | I59: 0 | J59: 0 | K59: 0 | L59: 0
A60: Sanitary Lift Station Fibre Roll Out | B60: 0 | C60: 4.38 | D60: 11.48401826 | E60: 17.78538813 | F60: 10.2283105 | G60: 10.52511416 | H60: 11.91780822 | I60: 14.06392694 | J60: 23.99543379 | K60: 0 | L60: 0
A61: Sanitary Lift Station Replacement | B61: 0 | C61: 102 | D61: 1.960784314 | E61: 12.25490196 | F61: 12.25490196 | G61: 12.25490196 | H61: 12.25490196 | I61: 12.25490196 | J61: 12.25490196 | K61: 12.25490196 | L61: 12.25490196
A62: Symons Valley Lift Station | B62: 0 | C62: 0.95 | D62: 0 | E62: 0 | F62: 0 | G62: 0 | H62: 0 | I62: 10.52631579 | J62: 10.52631579 | K62: 78.94736842 | L62: 0
A63: Shepard Energy Centre Reclaimed Effluent Water | B63: 0 | C63: 3.1 | D63: 100 | E63: 0 | F63: 0 | G63: 0 | H63: 0 | I63: 0 | J63: 0 | K63: 0 | L63: 0
A64: Sanitary Siphon Replacement/Upgrade | B64: 0 | C64: 345 | D64: 13.04347826 | E64: 17.39130435 | F64: 17.39130435 | G64: 17.39130435 | H64: 17.39130435 | I64: 4.347826087 | J64: 4.347826087 | K64: 4.347826087 | L64: 4.347826087
A65: Sanitary Trunk Upgrades | B65: 0 | C65: 74.767 | D65: 15.59912796 | E65: 8.320515736 | F65: 18.13233111 | G65: 14.06636618 | H65: 6.251421081 | I65: 15.42659195 | J65: 13.94465473 | K65: 8.258991266 | L65: 0
A66: 5 ST SW/71-75 Ave Sanitary Upgrade | B66: 0 | C66: 0.2 | D66: 0 | E66: 0 | F66: 0 | G66: 0 | H66: 0 | I66: 0 | J66: 50 | K66: 50 | L66: 0
A67: Bowness Sanitary Trunk Flow Diversion | B67: 0 | C67: 0.425 | D67: 0 | E67: 0 | F67: 0 | G67: 47.05882353 | H67: 52.94117647 | I67: 0 | J67: 0 | K67: 0 | L67: 0
A68: Nose Creek Trunk Upgrade - Beddington | B68: 0 | C68: 1.948 | D68: 0 | E68: 0 | F68: 10.26694045 | G68: 8.983572895 | H68: 80.74948665 | I68: 0 | J68: 0 | K68: 0 | L68: 0
A69: Sanitary Trunk Upgrade - 9 Ave SW | B69: 0 | C69: 2.648 | D69: 0 | E69: 7.552870091 | F69: 9.252265861 | G69: 83.19486405 | H69: 0 | I69: 0 | J69: 0 | K69: 0 | L69: 0
A70: Sanitary Trunk Upgrade - Altadore | B70: 0 | C70: 1.34 | D70: 100 | E70: 0 | F70: 0 | G70: 0 | H70: 0 | I70: 0 | J70: 0 | K70: 0 | L70: 0
A71: Sanitary Trunk Upgrade - Arbour Estates | B71: 0 | C71: 0.201 | D71: 0 | E71: 0 | F71: 0 | G71: 0 | H71: 0 | I71: 49.75124378 | J71: 50.24875622 | K71: 0 | L71: 0
A72: Sanitary Trunk Upgrade - Blackfoot Trail | B72: 0 | C72: 6.06 | D72: 10 | E72: 49.5049505 | F72: 40.4950495 | G72: 0 | H72: 0 | I72: 0 | J72: 0 | K72: 0 | L72: 0
A73: Sanitary Trunk Upgrade - Bow Bottom | B73: 0 | C73: 6.29 | D73: 4.769475358 | E73: 9.523052464 | F73: 85.70747218 | G73: 0 | H73: 0 | I73: 0 | J73: 0 | K73: 0 | L73: 0
A74: Sanitary Trunk Upgrade - Colleen Crescent | B74: 0 | C74: 0.425 | D74: 0 | E74: 23.52941176 | F74: 23.52941176 | G74: 52.94117647 | H74: 0 | I74: 0 | J74: 0 | K74: 0 | L74: 0
A75: Sanitary Trunk Upgrade - Elbow Drive | B75: 0 | C75: 3.893 | D75: 0 | E75: 0 | F75: 0 | G75: 7.706139224 | H75: 9.221679938 | I75: 83.07218084 | J75: 0 | K75: 0 | L75: 0
A76: Sanitary Trunk Upgrade - Glamorgan | B76: 0 | C76: 0.2 | D76: 0 | E76: 0 | F76: 0 | G76: 0 | H76: 0 | I76: 0 | J76: 50 | K76: 50 | L76: 0
A77: Sanitary Trunk Upgrade - Heritage Drive | B77: 0 | C77: 1.06 | D77: 10 | E77: 90 | F77: 0 | G77: 0 | H77: 0 | I77: 0 | J77: 0 | K77: 0 | L77: 0
A78: Sanitary Trunk Upgrade - Killarney | B78: 0 | C78: 1.45 | D78: 0 | E78: 0 | F78: 0 | G78: 0 | H78: 0 | I78: 13.79310345 | J78: 8.620689655 | K78: 77.5862069 | L78: 0
A79: Sanitary Trunk Upgrade - Lakeview | B79: 0 | C79: 1.869 | D79: 0 | E79: 10.70090958 | F79: 8.935259497 | G79: 80.36383093 | H79: 0 | I79: 0 | J79: 0 | K79: 0 | L79: 0
A80: Sanitary Trunk Upgrade - Macleod Trail | B80: 0 | C80: 4 | D80: 100 | E80: 0 | F80: 0 | G80: 0 | H80: 0 | I80: 0 | J80: 0 | K80: 0 | L80: 0
A81: Sanitary Trunk Upgrade - Richmond | B81: 0 | C81: 11.98 | D81: 2.504173623 | E81: 9.749582638 | F81: 41.73622705 | G81: 46.01001669 | H81: 0 | I81: 0 | J81: 0 | K81: 0 | L81: 0
A82: Sanitary Trunk Upgrade - Rosscarrock | B82: 0 | C82: 2.41 | D82: 100 | E82: 0 | F82: 0 | G82: 0 | H82: 0 | I82: 0 | J82: 0 | K82: 0 | L82: 0
A83: Sanitary Trunk Upgrade - Roxboro Erlton Mission | B83: 0 | C83: 2.601 | D83: 100 | E83: 0 | F83: 0 | G83: 0 | H83: 0 | I83: 0 | J83: 0 | K83: 0 | L83: 0
A84: Sanitary Trunk Upgrade - Shouldice | B84: 0 | C84: 25.567 | D84: 0 | E84: 0 | F84: 0 | G84: 1.56451676 | H84: 9.844721712 | I84: 31.2903352 | J84: 39.112919 | K84: 18.18750733 | L84: 0
A85: Sanitary Trunk Upgrade - Varsity | B85: 0 | C85: 0.2 | D85: 0 | E85: 0 | F85: 0 | G85: 0 | H85: 0 | I85: 0 | J85: 0 | K85: 100 | L85: 0
A86: 0 | B86: 0 | C86: 0
A87: Growth - Primary Driver | B87: 0 | C87: 0
A88: 0 | B88: 0 | C88: 0
A89: Bonnybrook Heat Recovery | B89: 0 | C89: 20 | D89: 0 | E89: 0 | F89: 0 | G89: 12.5 | H89: 12.5 | I89: 25 | J89: 25 | K89: 25 | L89: 0
A90: Bonnybrook Integrated Resource Recovery | B90: 0 | C90: 627.647 | D90: 5.702090506 | E90: 10.38210969 | F90: 23.63908375 | G90: 13.82130401 | H90: 1.91190271 | I90: 6.681462669 | J90: 11.13587733 | K90: 13.36308466 | L90: 13.36308466
A91: Bonnybrook New Head Works | B91: 0 | C91: 115.4 | D91: 0.3466204506 | E91: 2.59965338 | F91: 3.899480069 | G91: 6.499133449 | H91: 0 | I91: 21.66377816 | J91: 38.99480069 | K91: 25.9965338 | L91: 0
A92: Bonnybrook Plant D Expansion | B92: 0 | C92: 158.591 | D92: 5.993404418 | E92: 2.333045381 | F92: 3.418857312 | G92: 41.19275369 | H92: 42.41161226 | I92: 4.555744021 | J92: 0.09458292085 | K92: 0 | L92: 0
A93: Bonnybrook Plant E Expansion Study | B93: 0 | C93: 0.252 | D93: 100 | E93: 0 | F93: 0 | G93: 0 | H93: 0 | I93: 0 | J93: 0 | K93: 0 | L93: 0
A94: Bonnybrook Solid Stream Upgrade/Expansion | B94: 0 | C94: 278.01 | D94: 0.1079097874 | E94: 2.130498903 | F94: 4.551994533 | G94: 6.503003489 | H94: 8.670551419 | I94: 26.01201396 | J94: 26.01201396 | K94: 26.01201396 | L94: 0
A95: Control Systems & Electrical Upgrades - Pine Creek Second Feeder | B95: 0 | C95: 3.2 | D95: 0 | E95: 9.375 | F95: 43.75 | G95: 46.875 | H95: 0 | I95: 0 | J95: 0 | K95: 0 | L95: 0
A96: Lift Stations | B96: 0 | C96: 7.35 | D96: 0 | E96: 0 | F96: 0 | G96: 0 | H96: 0 | I96: 0 | J96: 1.360544218 | K96: 98.63945578 | L96: 0
A97: Belvedere Sanitary Lift Station and Forcemain | B97: 0 | C97: 7 | D97: 0 | E97: 0 | F97: 0 | G97: 0 | H97: 0 | I97: 0 | J97: 0 | K97: 100 | L97: 0
A98: Bowness Lift Station | B98: 0 | C98: 0.35 | D98: 0 | E98: 0 | F98: 0 | G98: 0 | H98: 0 | I98: 0 | J98: 28.57142857 | K98: 71.42857143 | L98: 0
A99: New Community Growth Sanitary Linear Extensions | B99: 0 | C99: 23 | D99: 0 | E99: 0 | F99: 0 | G99: 0 | H99: 43.47826087 | I99: 0 | J99: 0 | K99: 13.04347826 | L99: 43.47826087
A100: Sanitary Established Area Linear Program | B100: 0 | C100: 13.5 | D100: 11.11111111 | E100: 11.11111111 | F100: 11.11111111 | G100: 11.11111111 | H100: 11.11111111 | I100: 11.11111111 | J100: 11.11111111 | K100: 11.11111111 | L100: 11.11111111
A101: Sanitary Redevelopment Program | B101: 0 | C101: 18 | D101: 11.11111111 | E101: 11.11111111 | F101: 11.11111111 | G101: 11.11111111 | H101: 11.11111111 | I101: 11.11111111 | J101: 11.11111111 | K101: 11.11111111 | L101: 11.11111111
A102: Sanitary Trunk Upgrades | B102: 0 | C102: 189.927 | D102: 20.29674559 | E102: 15.86978155 | F102: 24.6673722 | G102: 22.52023146 | H102: 9.554723657 | I102: 0.7086933401 | J102: 3.734592765 | K102: 2.647859441 | L102: 0
A103: East Keystone Sanitary Trunk | B103: 0 | C103: 3 | D103: 100 | E103: 0 | F103: 0 | G103: 0 | H103: 0 | I103: 0 | J103: 0 | K103: 0 | L103: 0
A104: Nose Creek Trunk Upgrade | B104: 0 | C104: 0.028 | D104: 50 | E104: 50 | F104: 0 | G104: 0 | H104: 0 | I104: 0 | J104: 0 | K104: 0 | L104: 0
A105: Nose Creek Trunk Upgrade - 128 Ave | B105: 0 | C105: 4.383 | D105: 0 | E105: 0 | F105: 5.703855807 | G105: 6.205795117 | H105: 60.39242528 | I105: 2.76066621 | J105: 24.93725759 | K105: 0 | L105: 0
A106: Nose Creek Trunk Upgrade - 144 Ave | B106: 0 | C106: 51 | D106: 49.01960784 | E106: 33.33333333 | F106: 17.64705882 | G106: 0 | H106: 0 | I106: 0 | J106: 0 | K106: 0 | L106: 0
A107: Providence Sanitary Trunk Design | B107: 0 | C107: 30.2 | D107: 0 | E107: 0 | F107: 0 | G107: 49.66887417 | H107: 50.33112583 | I107: 0 | J107: 0 | K107: 0 | L107: 0
A108: Sanitary Trunk Upgrade - 10 Ave SW | B108: 0 | C108: 12.554 | D108: 0 | E108: 0 | F108: 0 | G108: 0 | H108: 2.389676597 | I108: 9.757846105 | J108: 47.79353194 | K108: 40.05894536 | L108: 0
A109: Sanitary Trunk Upgrade - Bowness | B109: 0 | C109: 2.252 | D109: 9.991119005 | E109: 90.00888099 | F109: 0 | G109: 0 | H109: 0 | I109: 0 | J109: 0 | K109: 0 | L109: 0
A110: Sanitary Trunk Upgrade - Ramsay | B110: 0 | C110: 1.07 | D110: 100 | E110: 0 | F110: 0 | G110: 0 | H110: 0 | I110: 0 | J110: 0 | K110: 0 | L110: 0
A111: Sanitary Trunk Upgrade - Shepard | B111: 0 | C111: 28 | D111: 28.57142857 | E111: 35.71428571 | F111: 35.71428571 | G111: 0 | H111: 0 | I111: 0 | J111: 0 | K111: 0 | L111: 0
A112: Trans Canada Sanitary Trunk | B112: 0 | C112: 2.44 | D112: 50.81967213 | E112: 45.08196721 | F112: 4.098360656 | G112: 0 | H112: 0 | I112: 0 | J112: 0 | K112: 0 | L112: 0
A113: West Pine Creek Sanitary Trunk Phase 3 Design | B113: 0 | C113: 55 | D113: 0 | E113: 0 | F113: 50 | G113: 50 | H113: 0 | I113: 0 | J113: 0 | K113: 0 | L113: 0
A114: Wastewater Downtown Upgrades | B114: 0 | C114: 2.7 | D114: 11.11111111 | E114: 11.11111111 | F114: 11.11111111 | G114: 11.11111111 | H114: 11.11111111 | I114: 11.11111111 | J114: 11.11111111 | K114: 11.11111111 | L114: 11.11111111
A115: Wastewater Treatment-South Catchment Expansion Plan | B115: 0 | C115: 817.049 | D115: 2.651003795 | E115: 2.406220435 | F115: 3.973813076 | G115: 16.23831618 | H115: 17.75132214 | I115: 14.17099831 | J115: 9.757431929 | K115: 15.92022021 | L115: 17.13067393
A116: 0 | B116: 0 | C116: 0
A117: Transformative - Primary Driver | B117: 0 | C117: 0
A118: 0 | B118: 0 | C118: 0
A119: Prairie Economic Gateway Sanitary Forcemain to Shepard Trunk | B119: 0 | C119: 32.5 | D119: 0 | E119: 0 | F119: 66.46153846 | G119: 33.53846154 | H119: 0 | I119: 0 | J119: 0 | K119: 0 | L119: 0
A120: 0 | B120: 0 | C120: 0 | D120: 0 | E120: 0 | F120: 0 | G120: 0 | H120: 0 | I120: 0 | J120: 0 | K120: 0 | L120: 0
A121: Total Capital Infrastructure Needs - Water Utilities (Wastewater Treatment & Collection) | B121: 0 | C121: 3985
A125: ICS: Unrestricted

Sheet WU (Water Treatment & Supply)
A1: Appendix B: Capital Infrastructure Needs - Water Utility (Water Treatment & Distribution)
A2: The values presented reflect the unfunded components of each investment and have been rounded to the nearest million for planning and presentation purposes. In some cases, an investment may appear more than once, as high-priority and medium-priority components have been presented separately to clearly distinguish timing, phasing, and delivery considerations. The majority of the 10-year capital investments are foundational in nature and have been prioritized as High, reflecting the minimum funding required to sustain current service levels, meet regulatory and safety obligations, and manage core operational risks. These investments establish the baseline level of service and define the essential capital required to maintain system reliability over time. A smaller number of investments are prioritized as Medium, representing instances where opportunities existed to scale back, defer, or modify scope while still maintaining acceptable service and risk outcomes. In these cases, Annual Investment Programs (AIPs) have been reduced to scaled program values and/or project scopes have been adjusted to balance affordability with long-term service continuity.
B3: Legend (% of capital $ per opportunity item) | F3: Critical Assets in Poor / Very Poor Condition
B4: 1% ~ 10% | F4: Severe Consequence of Failure
B5: 11% ~ 25% | F5: High Consequence of Failure
B6: 25% +
A8: Appendix B: Capital Infrastructure Needs | C8: Total | D8: 0 | E8: 0 | F8: 0 | G8: 0 | H8: 0 | I8: 0 | J8: 0 | K8: 0 | L8: 0
A9: ($millions) | C9: 2027-2035+ | D9: 2027 | E9: 2028 | F9: 2029 | G9: 2030 | H9: 2031 | I9: 2032 | J9: 2033 | K9: 2034 | L9: 2035+
A10: 0 | C10: 0 | D10: 0 | E10: 0 | F10: 0 | G10: 0 | H10: 0 | I10: 0 | J10: 0 | K10: 0 | L10: 0
A11: Maintenance - Primary Driver | C11: 0 | D11: 0 | E11: 0 | F11: 0 | G11: 0 | H11: 0 | I11: 0 | J11: 0 | K11: 0 | L11: 0
C12: 0 | D12: 0 | E12: 0 | F12: 0 | G12: 0 | H12: 0 | I12: 0 | J12: 0 | K12: 0 | L12: 0
A13: Advanced Meter Infrastructure | C13: 241 | D13: 23.06509695 | E13: 17.0783658 | F13: 16.16670189 | G13: 15.63379289 | H13: 9.159735949 | I13: 4.724076629 | J13: 4.724076629 | K13: 4.724076629 | L13: 4.724076629
A14: Bearspaw Power Utility Planning | C14: 55.5 | D14: 3.990990991 | E14: 15.88288288 | F14: 16.42342342 | G14: 17.93693694 | H14: 37.65765766 | I14: 8.108108108 | J14: 0 | K14: 0 | L14: 0
A15: Cathodic Protection | C15: 33.48 | D15: 11.11111111 | E15: 11.11111111 | F15: 11.11111111 | G15: 11.11111111 | H15: 11.11111111 | I15: 11.11111111 | J15: 11.11111111 | K15: 11.11111111 | L15: 11.11111111
A16: Control Systems & Electrical - Bearspaw Arc Flash Studies | C16: 0.5 | D16: 0 | E16: 100 | F16: 0 | G16: 0 | H16: 0 | I16: 0 | J16: 0 | K16: 0 | L16: 0
A17: Copper-Lead Service Replacement | C17: 90 | D17: 11.11111111 | E17: 11.11111111 | F17: 11.11111111 | G17: 11.11111111 | H17: 11.11111111 | I17: 11.11111111 | J17: 11.11111111 | K17: 11.11111111 | L17: 11.11111111
A18: Feedermains | C18: 680 | D18: 22.90562036 | E18: 23.26231563 | F18: 9.370481057 | G18: 5.514316013 | H18: 7.635206787 | I18: 7.828015039 | J18: 7.828015039 | K18: 7.828015039 | L18: 7.828015039
A19: Bearspaw South Feedermain Short and Long Repair | C19: 369.468 | D19: 99.82136477 | E19: 0.1786352269 | F19: 0 | G19: 0 | H19: 0 | I19: 0 | J19: 0 | K19: 0 | L19: 0
A20: Water Main Replacement and Upgrades | C20: 278.9 | D20: 7.923987092 | E20: 8.282538544 | F20: 8.641089996 | G20: 8.999641449 | H20: 12.94370742 | I20: 13.30225887 | J20: 13.30225887 | K20: 13.30225887 | L20: 13.30225887
A21: Watermain Research | C21: 31.5 | D21: 11.11111111 | E21: 11.11111111 | F21: 11.11111111 | G21: 11.11111111 | H21: 11.11111111 | I21: 11.11111111 | J21: 11.11111111 | K21: 11.11111111 | L21: 11.11111111
A22: Glenmore Water Treatment Plant - Chemical Boiler Upgrade | C22: 3 | D22: 8.928571429 | E22: 33.92857143 | F22: 57.14285714 | G22: 0 | H22: 0 | I22: 0 | J22: 0 | K22: 0 | L22: 0
A23: Hydrants - McAvity Replacement | C23: 4.5 | D23: 11.11111111 | E23: 11.11111111 | F23: 11.11111111 | G23: 11.11111111 | H23: 11.11111111 | I23: 11.11111111 | J23: 11.11111111 | K23: 11.11111111 | L23: 11.11111111
A24: Leak Detection - Proactive | C24: 9 | D24: 11.11111111 | E24: 11.11111111 | F24: 11.11111111 | G24: 11.11111111 | H24: 11.11111111 | I24: 11.11111111 | J24: 11.11111111 | K24: 11.11111111 | L24: 11.11111111
A25: Mechanical Equipment & Electrical Upgrades | C25: 24.341 | D25: 8.422004026 | E25: 9.001273571 | F25: 9.613409474 | G25: 10.26252003 | H25: 10.95682182 | I25: 11.69220657 | J25: 12.48510743 | K25: 13.33141613 | L25: 14.23524095
A26: Pump Stations - Lifecycle Replacement | C26: 60 | D26: 12.5 | E26: 12.5 | F26: 12.5 | G26: 12.5 | H26: 12.5 | I26: 12.5 | J26: 12.5 | K26: 12.5 | L26: 0
A27: Reservoir Condition Assessment | C27: 2.25 | D27: 11.11111111 | E27: 11.11111111 | F27: 11.11111111 | G27: 11.11111111 | H27: 11.11111111 | I27: 11.11111111 | J27: 11.11111111 | K27: 11.11111111 | L27: 11.11111111
A28: Tools, Equipment & Technology | C28: 25.02 | D28: 11.07114309 | E28: 11.07114309 | F28: 11.27098321 | G28: 11.31095124 | H28: 11.11111111 | I28: 10.91127098 | J28: 10.95123901 | K28: 11.15107914 | L28: 11.15107914
A29: Software Tools & Equipment | C29: 0.72 | D29: 9.722222222 | E29: 9.722222222 | F29: 9.722222222 | G29: 11.11111111 | H29: 11.11111111 | I29: 11.11111111 | J29: 12.5 | K29: 12.5 | L29: 12.5
A30: Tools and Equipment Operational Services | C30: 11.7 | D30: 11.11111111 | E30: 11.11111111 | F30: 11.11111111 | G30: 11.11111111 | H30: 11.11111111 | I30: 11.11111111 | J30: 11.11111111 | K30: 11.11111111 | L30: 11.11111111
A31: Water Quality and Regulatory Assurance Labs & Capital Equipment | C31: 4.5 | D31: 11.11111111 | E31: 11.11111111 | F31: 11.11111111 | G31: 11.11111111 | H31: 11.11111111 | I31: 11.11111111 | J31: 11.11111111 | K31: 11.11111111 | L31: 11.11111111
A32: Technology Equipment Lifecycle and Upgrades | C32: 8.1 | D32: 11.11111111 | E32: 11.11111111 | F32: 11.72839506 | G32: 11.72839506 | H32: 11.11111111 | I32: 10.49382716 | J32: 10.49382716 | K32: 11.11111111 | L32: 11.11111111
A33: Transmission Capital Maintenance | C33: 36 | D33: 11.11111111 | E33: 11.11111111 | F33: 11.11111111 | G33: 11.11111111 | H33: 11.11111111 | I33: 11.11111111 | J33: 11.11111111 | K33: 11.11111111 | L33: 11.11111111
A34: Valve Replacement/ Installation | C34: 9 | D34: 11.11111111 | E34: 11.11111111 | F34: 11.11111111 | G34: 11.11111111 | H34: 11.11111111 | I34: 11.11111111 | J34: 11.11111111 | K34: 11.11111111 | L34: 11.11111111
A35: Water Centre Building Upgrades | C35: 9.35 | D35: 22.45989305 | E35: 20.32085561 | F35: 8.021390374 | G35: 10.69518717 | H35: 6.951871658 | I35: 6.951871658 | J35: 7.486631016 | K35: 8.556149733 | L35: 8.556149733
A36: Water Treatment Plant - Capital Maintenance - Bearspaw | C36: 248.623 | D36: 9.784694095 | E36: 10.06302715 | F36: 10.36227541 | G36: 10.68444995 | H36: 11.0303552 | I36: 11.40200223 | J36: 11.80140212 | K36: 12.23016374 | L36: 12.6416301
A38: Service Enhancement - Primary Driver
A40: Bearspaw Water Treatment Plant - Standby Generators Replacement | C40: 6.77 | D40: 79.32053176 | E40: 20.67946824 | F40: 0 | G40: 0 | H40: 0 | I40: 0 | J40: 0 | K40: 0 | L40: 0
A41: Control Systems & Electrical | C41: 66.21 | D41: 30.22202084 | E41: 19.67980668 | F41: 10.37607612 | G41: 7.249660172 | H41: 6.947590998 | I41: 6.947590998 | J41: 6.192418064 | K41: 6.192418064 | L41: 6.192418064
A42: Electrical Upgrade for Glenmore Water Treatment Plant | C42: 24.51 | D42: 62.05630355 | E42: 31.53814769 | F42: 6.405548756 | G42: 0 | H42: 0 | I42: 0 | J42: 0 | K42: 0 | L42: 0
A43: Glenmore & Bearspaw Control Systems Improvement | C43: 29.7 | D43: 11.11111111 | E43: 11.11111111 | F43: 11.11111111 | G43: 11.11111111 | H43: 11.11111111 | I43: 11.11111111 | J43: 11.11111111 | K43: 11.11111111 | L43: 11.11111111
A44: Glenmore & Bearspaw DeltaV Control Systems Modernization | C44: 12 | D44: 12.5 | E44: 16.66666667 | F44: 16.66666667 | G44: 12.5 | H44: 10.83333333 | I44: 10.83333333 | J44: 6.666666667 | K44: 6.666666667 | L44: 6.666666667
A45: Dead End Mains | C45: 10.8 | D45: 11.11111111 | E45: 11.11111111 | F45: 11.11111111 | G45: 11.11111111 | H45: 11.11111111 | I45: 11.11111111 | J45: 11.11111111 | K45: 11.11111111 | L45: 11.11111111
A46: District Metering and System Monitoring | C46: 2.7 | D46: 11.11111111 | E46: 11.11111111 | F46: 11.11111111 | G46: 11.11111111 | H46: 11.11111111 | I46: 11.11111111 | J46: 11.11111111 | K46: 11.11111111 | L46: 11.11111111
A47: Energy Recover Stations | C47: 5.6 | D47: 3.333333333 | E47: 44.16666667 | F47: 41.66666667 | G47: 4.166666667 | H47: 0 | I47: 0 | J47: 0 | K47: 0 | L47: 0
A48: North Calgary Energy Recovery Station | C48: 3 | D48: 6.666666667 | E48: 83.33333333 | F48: 10 | G48: 0 | H48: 0 | I48: 0 | J48: 0 | K48: 0 | L48: 0
A49: South Calgary Energy Recovery Station | C49: 2.6 | D49: 0 | E49: 5.769230769 | F49: 84.61538462 | G49: 9.615384615 | H49: 0 | I49: 0 | J49: 0 | K49: 0 | L49: 0
A50: Glenmore Dam Safety Regulatory | C50: 0.97 | D50: 14.74226804 | E50: 48.55670103 | F50: 23.09278351 | G50: 13.60824742 | H50: 0 | I50: 0 | J50: 0 | K50: 0 | L50: 0
A51: Glenmore Water Treatment Plant | C51: 158.4 | D51: 1.988636364 | E51: 14.64997222 | F51: 32.37584154 | G51: 32.37584154 | H51: 18.60970833 | I51: 0 | J51: 0 | K51: 0 | L51: 0
A52: Clearwell and High Lift Pump Station | C52: 155.4 | D52: 1.544401544 | E52: 14.45016474 | F52: 32.5182323 | G52: 32.5182323 | H52: 18.96896911 | I52: 0 | J52: 0 | K52: 0 | L52: 0
A53: Steam Boilers Replacement | C53: 3 | D53: 25 | E53: 25 | F53: 25 | G53: 25 | H53: 0 | I53: 0 | J53: 0 | K53: 0 | L53: 0
A54: Hydrants - Installations | C54: 5.4 | D54: 11.11111111 | E54: 11.11111111 | F54: 11.11111111 | G54: 11.11111111 | H54: 11.11111111 | I54: 11.11111111 | J54: 11.11111111 | K54: 11.11111111 | L54: 11.11111111
A55: Process Control Systems | C55: 1.692 | D55: 10.3427896 | E55: 10.46099291 | F55: 10.63829787 | G55: 10.87470449 | H55: 11.11111111 | I55: 11.28841608 | J55: 11.5248227 | K55: 11.76122931 | L55: 11.99763593
A56: Pump Stations - Pump & Motor Efficiency | C56: 1 | D56: 25 | E56: 25 | F56: 25 | G56: 25 | H56: 0 | I56: 0 | J56: 0 | K56: 0 | L56: 0
A57: RAW II Frazil Ice Boom | C57: 0.02 | D57: 100 | E57: 0 | F57: 0 | G57: 0 | H57: 0 | I57: 0 | J57: 0 | K57: 0 | L57: 0
A58: Tools, Equipment & Technology | C58: 47.5 | D58: 11.57894737 | E58: 15.78947368 | F58: 9.473684211 | G58: 10.52631579 | H58: 10.52631579 | I58: 10.52631579 | J58: 10.52631579 | K58: 10.52631579 | L58: 10.52631579
A59: AI Intiatives and New Emerging Tech | C59: 16 | D59: 0 | E59: 12.5 | F59: 12.5 | G59: 12.5 | H59: 12.5 | I59: 12.5 | J59: 12.5 | K59: 12.5 | L59: 12.5
A60: Billing Improvements | C60: 6 | D60: 50 | E60: 50 | F60: 0 | G60: 0 | H60: 0 | I60: 0 | J60: 0 | K60: 0 | L60: 0
A61: Software Lifecycle and Upgrade | C61: 25.5 | D61: 9.803921569 | E61: 9.803921569 | F61: 9.803921569 | G61: 11.76470588 | H61: 11.76470588 | I61: 11.76470588 | J61: 11.76470588 | K61: 11.76470588 | L61: 11.76470588
A62: Transmission SCADA Comms Modernization | C62: 5.3 | D62: 24.52830189 | E62: 15.09433962 | F62: 15.09433962 | G62: 7.547169811 | H62: 7.547169811 | I62: 7.547169811 | J62: 7.547169811 | K62: 7.547169811 | L62: 7.547169811
A63: Valve Replacement and Installation | C63: 78.02 | D63: 11.02281466 | E63: 11.02281466 | F63: 11.09971802 | G63: 11.09971802 | H63: 11.15098693 | I63: 11.15098693 | J63: 11.15098693 | K63: 11.15098693 | L63: 11.15098693
A64: Water Infrastructure Access Road Construction | C64: 4.5 | D64: 11.11111111 | E64: 11.11111111 | F64: 11.11111111 | G64: 11.11111111 | H64: 11.11111111 | I64: 11.11111111 | J64: 11.11111111 | K64: 11.11111111 | L64: 11.11111111
A65: Water Distribution Network Monitoring | C65: 22.5 | D65: 11.11111111 | E65: 11.11111111 | F65: 11.11111111 | G65: 11.11111111 | H65: 11.11111111 | I65: 11.11111111 | J65: 11.11111111 | K65: 11.11111111 | L65: 11.11111111
A67: Growth - Primary Driver
A69: Downtown Upgrades | C69: 2.7 | D69: 11.11111111 | E69: 11.11111111 | F69: 11.11111111 | G69: 11.11111111 | H69: 11.11111111 | I69: 11.11111111 | J69: 11.11111111 | K69: 11.11111111 | L69: 11.11111111
A70: Feedermains | C70: 559 | D70: 2.378546919 | E70: 7.866018348 | F70: 22.94590571 | G70: 25.10923223 | H70: 20.47485666 | I70: 5.839313223 | J70: 3.985562993 | K70: 2.224500275 | L70: 9.176063636
A71: Belvedere Feedermain Phase 3 | C71: 30.4 | D71: 0 | E71: 0 | F71: 0 | G71: 0 | H71: 0 | I71: 0 | J71: 49.34210526 | K71: 50.65789474 | L71: 0
A72: Country Hills Boulevard Crosstie Feedermain | C72: 42.2 | D72: 0 | E72: 50 | F72: 50 | G72: 0 | H72: 0 | I72: 0 | J72: 0 | K72: 0 | L72: 0
A73: Main Extensions | C73: 18 | D73: 11.11111111 | E73: 11.11111111 | F73: 11.11111111 | G73: 11.11111111 | H73: 11.11111111 | I73: 11.11111111 | J73: 11.11111111 | K73: 11.11111111 | L73: 11.11111111
A74: Northridge Feedermain Phase 2 | C74: 20 | D74: 0 | E74: 0 | F74: 0 | G74: 0 | H74: 0 | I74: 0 | J74: 50 | K74: 50 | L74: 0
A75: Ogden Feedermain Phase 2 | C75: 14.2 | D75: 0 | E75: 0 | F75: 0 | G75: 0 | H75: 0 | I75: 0 | J75: 0 | K75: 0 | L75: 100
A76: Providence Westview Feedermain Ph 1 & 2 | C76: 36 | D76: 0 | E76: 0 | F76: 36.41456583 | G76: 63.58543417 | H76: 0 | I76: 0 | J76: 0 | K76: 0 | L76: 0
A77: South Water Servicing Feedermain | C77: 279.747 | D77: 1.01198583 | E77: 1.548899541 | F77: 28.84070249 | G77: 34.29920607 | H77: 34.29920607 | I77: 0 | J77: 0 | K77: 0 | L77: 0
A78: Starlight Feedermain Phase 2 & 3 | C78: 25 | D78: 0 | E78: 0 | F78: 0 | G78: 100 | H78: 0 | I78: 0 | J78: 0 | K78: 0 | L78: 0
A79: Top Hill Feedermain Design | C79: 22.5 | D79: 0 | E79: 0 | F79: 0 | G79: 0 | H79: 0 | I79: 0 | J79: 0 | K79: 44.44444444 | L79: 55.55555556
A80: West View Crestmont Feedermain Phases 1 - 3 | C80: 8 | D80: 100 | E80: 0 | F80: 0 | G80: 0 | H80: 0 | I80: 0 | J80: 0 | K80: 0 | L80: 0
A81: Glenmore Water Treatment Plant | C81: 16.2 | D81: 79.85185185 | E81: 20.14814815 | F81: 0 | G81: 0 | H81: 0 | I81: 0 | J81: 0 | K81: 0 | L81: 0
A82: Filter Recommissioning | C82: 11.164 | D82: 70.76316732 | E82: 29.23683268 | F82: 0 | G82: 0 | H82: 0 | I82: 0 | J82: 0 | K82: 0 | L82: 0
A83: Raw Water Pump Station Capacity Upgrade | C83: 5.036 | D83: 100 | E83: 0 | F83: 0 | G83: 0 | H83: 0 | I83: 0 | J83: 0 | K83: 0 | L83: 0
A84: Land Acquisitions | C84: 3.8 | D84: 100 | E84: 0 | F84: 0 | G84: 0 | H84: 0 | I84: 0 | J84: 0 | K84: 0 | L84: 0
A85: Starlight Reservoir Land Acquisition | C85: 2 | D85: 100 | E85: 0 | F85: 0 | G85: 0 | H85: 0 | I85: 0 | J85: 0 | K85: 0 | L85: 0
A86: Westview Reservoir Land Acquisition | C86: 1.8 | D86: 100 | E86: 0 | F86: 0 | G86: 0 | H86: 0 | I86: 0 | J86: 0 | K86: 0 | L86: 0
A87: New Water Treatment Plant Expansion | C87: 2270 | D87: 1.321587067 | E87: 2.643174135 | F87: 2.643174135 | G87: 15.56534411 | H87: 15.56534411 | I87: 15.56534411 | J87: 15.56534411 | K87: 15.56534411 | L87: 15.56534411
A88: North Calgary Water Servicing | C88: 222 | D88: 78.7990991 | E88: 21.51666667 | F88: -0.2702702703 | G88: 0 | H88: 0 | I88: 0 | J88: 0 | K88: 0 | L88: 0
A89: North Calgary Water Servicing - Linear | C89: 41 | D89: 101.2968054 | E89: -1.053502348 | F89: -0.2433030827 | G89: 0 | H89: 0 | I89: 0 | J89: 0 | K89: 0 | L89: 0
A90: North Calgary Water Servicing - Facilities | C90: 181 | D90: 73.64640884 | E90: 26.62983425 | F90: -0.2762430939 | G90: 0 | H90: 0 | I90: 0 | J90: 0 | K90: 0 | L90: 0
A91: Pump Stations | C91: 43 | D91: 13.95348837 | E91: 0 | F91: 34.88372093 | G91: 51.1627907 | H91: 0 | I91: 0 | J91: 0 | K91: 0 | L91: 0
A92: Starlight Pump Station Station 049 located at Westview Reservoir | C92: 33.6 | D92: 0 | E92: 0 | F92: 44.64285714 | G92: 55.35714286 | H92: 0 | I92: 0 | J92: 0 | K92: 0 | L92: 0
A93: Providence Westview Pump Station Station 056 | C93: 3.4 | D93: 0 | E93: 0 | F93: 0 | G93: 100 | H93: 0 | I93: 0 | J93: 0 | K93: 0 | L93: 0
A94: Valley Ridge Pump Station Upgrades | C94: 6 | D94: 100 | E94: 0 | F94: 0 | G94: 0 | H94: 0 | I94: 0 | J94: 0 | K94: 0 | L94: 0
A95: Raw Water Intake | C95: 414.608 | D95: 0.836211554 | E95: 0.836211554 | F95: 14.7409119 | G95: 23.72530197 | H95: 24.22529232 | I95: 14.41120287 | J95: 10.61243391 | K95: 10.61243391 | L95: 0
A96: Reservoirs | C96: 14 | D96: 0 | E96: 13.43283582 | F96: 44.7761194 | G96: 41.79104478 | H96: 0 | I96: 0 | J96: 0 | K96: 0 | L96: 0
A97: Northridge Reservoir | C97: 2 | D97: 0 | E97: 100 | F97: 0 | G97: 0 | H97: 0 | I97: 0 | J97: 0 | K97: 0 | L97: 0
A98: Providence Westview Reservoir Storage Cell 1 | C98: 12 | D98: 0 | E98: 0 | F98: 51.72413793 | G98: 48.27586207 | H98: 0 | I98: 0 | J98: 0 | K98: 0 | L98: 0
A99: Water Redevelopment Program | C99: 54 | D99: 11.11111111 | E99: 11.11111111 | F99: 11.11111111 | G99: 11.11111111 | H99: 11.11111111 | I99: 11.11111111 | J99: 11.11111111 | K99: 11.11111111 | L99: 11.11111111
A100: Water Treatment Optimization & Capacity Upgrades | C100: 4.932 | D100: 100 | E100: 0 | F100: 0 | G100: 0 | H100: 0 | I100: 0 | J100: 0 | K100: 0 | L100: 0
A102: Transformative - Primary Driver
A104: Prairie Economic Gateway Feedermain A | C104: 62.5 | D104: 0 | E104: 24 | F104: 32 | G104: 44 | H104: 0 | I104: 0 | J104: 0 | K104: 0 | L104: 0
A106: Total Capital Infrastructure Needs - Water Treatment & Supply | C106: 5551 | D106: 816.768 | E106: 366.802556 | F106: 501.936333 | G106: 871.854333 | H106: 755.584778 | I106: 564.418 | J106: 569.718 | K106: 581.544 | L106: 522.791
A110: ICS: Unrestricted
